Body,Body Name,Date,TransNo,Amount � (Excl VAT),Supplier name,Supplier ID,Expense Area,Expense Type,Expense Code
http://opendatacommunities.org/id/london-borough-council/sutton,London Borough of Sutton,10/07/2020,6974552,"41,853.00",Encompass,29087,"Environment, Housing & Regeneration Directorate",Recharge-Other Staff,A254
http://opendatacommunities.org/id/london-borough-council/sutton,London Borough of Sutton,10/07/2020,6974553,"42,626.00",Encompass,29087,"Environment, Housing & Regeneration Directorate",Recharge-Other Staff,A254
http://opendatacommunities.org/id/london-borough-council/sutton,London Borough of Sutton,30/06/2020,6973598,"1,850.00",Allen Lane Ltd,18334,Resources Directorate,Agency Staff - Other,A301
http://opendatacommunities.org/id/london-borough-council/sutton,London Borough of Sutton,30/06/2020,6973605,"1,868.75",Allen Lane Ltd,18334,Resources Directorate,Agency Staff - Other,A301
http://opendatacommunities.org/id/london-borough-council/sutton,London Borough of Sutton,30/06/2020,6973607,"1,868.75",Allen Lane Ltd,18334,Resources Directorate,Agency Staff - Other,A301
http://opendatacommunities.org/id/london-borough-council/sutton,London Borough of Sutton,07/07/2020,6974005,"1,868.75",Allen Lane Ltd,18334,Resources Directorate,Agency Staff - Other,A301
http://opendatacommunities.org/id/london-borough-council/sutton,London Borough of Sutton,07/07/2020,6974006,"3,450.00",Allen Lane Ltd,18334,Resources Directorate,Agency Staff - Other,A301
http://opendatacommunities.org/id/london-borough-council/sutton,London Borough of Sutton,07/07/2020,6974007,"1,868.75",Allen Lane Ltd,18334,Resources Directorate,Agency Staff - Other,A301
http://opendatacommunities.org/id/london-borough-council/sutton,London Borough of Sutton,07/07/2020,6974008,"1,850.00",Allen Lane Ltd,18334,Resources Directorate,Agency Staff - Other,A301
http://opendatacommunities.org/id/london-borough-council/sutton,London Borough of Sutton,07/07/2020,6974014,"2,760.00",Allen Lane Ltd,18334,Resources Directorate,Agency Staff - Other,A301
http://opendatacommunities.org/id/london-borough-council/sutton,London Borough of Sutton,14/07/2020,6974543,"1,850.00",Allen Lane Ltd,18334,Resources Directorate,Agency Staff - Other,A301
http://opendatacommunities.org/id/london-borough-council/sutton,London Borough of Sutton,14/07/2020,6974544,"1,868.75",Allen Lane Ltd,18334,Resources Directorate,Agency Staff - Other,A301
http://opendatacommunities.org/id/london-borough-council/sutton,London Borough of Sutton,14/07/2020,6974545,"3,450.00",Allen Lane Ltd,18334,Resources Directorate,Agency Staff - Other,A301
http://opendatacommunities.org/id/london-borough-council/sutton,London Borough of Sutton,14/07/2020,6974546,"1,868.75",Allen Lane Ltd,18334,Resources Directorate,Agency Staff - Other,A301
http://opendatacommunities.org/id/london-borough-council/sutton,London Borough of Sutton,14/07/2020,6974547,"2,748.50",Allen Lane Ltd,18334,Resources Directorate,Agency Staff - Other,A301
http://opendatacommunities.org/id/london-borough-council/sutton,London Borough of Sutton,14/07/2020,6974550,"2,760.00",Allen Lane Ltd,18334,Resources Directorate,Agency Staff - Other,A301
http://opendatacommunities.org/id/london-borough-council/sutton,London Borough of Sutton,21/07/2020,6974953,"3,450.00",Allen Lane Ltd,18334,Resources Directorate,Agency Staff - Other,A301
http://opendatacommunities.org/id/london-borough-council/sutton,London Borough of Sutton,21/07/2020,6974954,"1,850.00",Allen Lane Ltd,18334,Resources Directorate,Agency Staff - Other,A301
http://opendatacommunities.org/id/london-borough-council/sutton,London Borough of Sutton,21/07/2020,6974955,"3,450.00",Allen Lane Ltd,18334,Resources Directorate,Agency Staff - Other,A301
http://opendatacommunities.org/id/london-borough-council/sutton,London Borough of Sutton,21/07/2020,6974956,"1,868.75",Allen Lane Ltd,18334,Resources Directorate,Agency Staff - Other,A301
http://opendatacommunities.org/id/london-borough-council/sutton,London Borough of Sutton,21/07/2020,6974957,"1,868.75",Allen Lane Ltd,18334,Resources Directorate,Agency Staff - Other,A301
http://opendatacommunities.org/id/london-borough-council/sutton,London Borough of Sutton,16/06/2020,6975055,"2,198.80",Allen Lane Ltd,18334,Resources Directorate,Agency Staff - Other,A301
http://opendatacommunities.org/id/london-borough-council/sutton,London Borough of Sutton,09/06/2020,6975056,"4,397.60",Allen Lane Ltd,18334,Resources Directorate,Agency Staff - Other,A301
http://opendatacommunities.org/id/london-borough-council/sutton,London Borough of Sutton,28/07/2020,6975237,"2,760.00",Allen Lane Ltd,18334,Resources Directorate,Agency Staff - Other,A301
http://opendatacommunities.org/id/london-borough-council/sutton,London Borough of Sutton,28/07/2020,6975243,"3,450.00",Allen Lane Ltd,18334,Resources Directorate,Agency Staff - Other,A301
http://opendatacommunities.org/id/london-borough-council/sutton,London Borough of Sutton,28/07/2020,6975245,"2,198.80",Allen Lane Ltd,18334,Resources Directorate,Agency Staff - Other,A301
http://opendatacommunities.org/id/london-borough-council/sutton,London Borough of Sutton,28/07/2020,6975248,"1,868.75",Allen Lane Ltd,18334,Resources Directorate,Agency Staff - Other,A301
http://opendatacommunities.org/id/london-borough-council/sutton,London Borough of Sutton,30/06/2020,6973663,"10,312.50",Baltimore Consulting Ltd,35386,Chief Executive's Directorate,Agency Staff - Other,A301
http://opendatacommunities.org/id/london-borough-council/sutton,London Borough of Sutton,14/07/2020,6974559,"6,875.00",Baltimore Consulting Ltd,35386,Chief Executive's Directorate,Agency Staff - Other,A301
http://opendatacommunities.org/id/london-borough-council/sutton,London Borough of Sutton,30/06/2020,6975335,"5,270.58",Barnardo's,10370,Peoples Services Directorate,Agency Staff - Other,A301
http://opendatacommunities.org/id/london-borough-council/sutton,London Borough of Sutton,03/07/2020,6973839,"2,587.50",Global Resourcing Limited,35413,Resources Directorate,Agency Staff - Other,A301
http://opendatacommunities.org/id/london-borough-council/sutton,London Borough of Sutton,12/07/2020,6974390,"2,587.50",Global Resourcing Limited,35413,Resources Directorate,Agency Staff - Other,A301
http://opendatacommunities.org/id/london-borough-council/sutton,London Borough of Sutton,20/07/2020,6974850,"2,587.50",Global Resourcing Limited,35413,Resources Directorate,Agency Staff - Other,A301
http://opendatacommunities.org/id/london-borough-council/sutton,London Borough of Sutton,27/07/2020,6975155,"2,587.50",Global Resourcing Limited,35413,Resources Directorate,Agency Staff - Other,A301
http://opendatacommunities.org/id/london-borough-council/sutton,London Borough of Sutton,30/06/2020,6973914,"3,175.00",Hammond Clarke Ltd,26383,Peoples Services Directorate,Agency Staff - Other,A301
http://opendatacommunities.org/id/london-borough-council/sutton,London Borough of Sutton,17/07/2020,6974778,"3,175.00",Hammond Clarke Ltd,26383,Peoples Services Directorate,Agency Staff - Other,A301
http://opendatacommunities.org/id/london-borough-council/sutton,London Borough of Sutton,13/07/2020,6975036,"3,175.00",Hammond Clarke Ltd,26383,Peoples Services Directorate,Agency Staff - Other,A301
http://opendatacommunities.org/id/london-borough-council/sutton,London Borough of Sutton,25/06/2020,6973356,"1,200.00",Law Morgan Limited T/A Morgan Law,32106,Resources Directorate,Agency Staff - Other,A301
http://opendatacommunities.org/id/london-borough-council/sutton,London Borough of Sutton,02/07/2020,6973771,"1,500.00",Law Morgan Limited T/A Morgan Law,32106,Resources Directorate,Agency Staff - Other,A301
http://opendatacommunities.org/id/london-borough-council/sutton,London Borough of Sutton,09/07/2020,6974236,"1,500.00",Law Morgan Limited T/A Morgan Law,32106,Resources Directorate,Agency Staff - Other,A301
http://opendatacommunities.org/id/london-borough-council/sutton,London Borough of Sutton,23/06/2020,6973246,"1,537.23",NonStop Consulting Ltd,35396,Peoples Services Directorate,Agency Staff - Other,A301
http://opendatacommunities.org/id/london-borough-council/sutton,London Borough of Sutton,30/06/2020,6973606,"1,537.23",NonStop Consulting Ltd,35396,Peoples Services Directorate,Agency Staff - Other,A301
http://opendatacommunities.org/id/london-borough-council/sutton,London Borough of Sutton,07/07/2020,6974033,"1,537.23",NonStop Consulting Ltd,35396,Peoples Services Directorate,Agency Staff - Other,A301
http://opendatacommunities.org/id/london-borough-council/sutton,London Borough of Sutton,14/07/2020,6974556,"1,537.23",NonStop Consulting Ltd,35396,Peoples Services Directorate,Agency Staff - Other,A301
http://opendatacommunities.org/id/london-borough-council/sutton,London Borough of Sutton,21/07/2020,6974976,"1,537.23",NonStop Consulting Ltd,35396,Peoples Services Directorate,Agency Staff - Other,A301
http://opendatacommunities.org/id/london-borough-council/sutton,London Borough of Sutton,15/07/2020,6974728,"13,650.00",Penna Barkers,15652,Resources Directorate,Agency Staff - Other,A301
http://opendatacommunities.org/id/london-borough-council/sutton,London Borough of Sutton,14/07/2020,6974667,"5,670.00",Piers Meadows Recruitment Ltd,17621,Peoples Services Directorate,Agency Staff - Other,A301
http://opendatacommunities.org/id/london-borough-council/sutton,London Borough of Sutton,29/06/2020,6973574,"2,750.00",Precision Resource Group Ltd T/A Panoramic Associates,28674,Resources Directorate,Agency Staff - Other,A301
http://opendatacommunities.org/id/london-borough-council/sutton,London Borough of Sutton,07/07/2020,6973976,"2,750.00",Precision Resource Group Ltd T/A Panoramic Associates,28674,Resources Directorate,Agency Staff - Other,A301
http://opendatacommunities.org/id/london-borough-council/sutton,London Borough of Sutton,13/07/2020,6974487,"2,750.00",Precision Resource Group Ltd T/A Panoramic Associates,28674,Resources Directorate,Agency Staff - Other,A301
http://opendatacommunities.org/id/london-borough-council/sutton,London Borough of Sutton,18/06/2020,6973064,"1,084.80",Pulse Healthcare Ltd,23574,Peoples Services Directorate,Agency Staff - Other,A301
http://opendatacommunities.org/id/london-borough-council/sutton,London Borough of Sutton,23/06/2020,6973280,"1,084.80",Pulse Healthcare Ltd,23574,Peoples Services Directorate,Agency Staff - Other,A301
http://opendatacommunities.org/id/london-borough-council/sutton,London Borough of Sutton,30/06/2020,6973662,"1,175.20",Pulse Healthcare Ltd,23574,Peoples Services Directorate,Agency Staff - Other,A301
http://opendatacommunities.org/id/london-borough-council/sutton,London Borough of Sutton,07/07/2020,6974064,"1,115.08",Pulse Healthcare Ltd,23574,Peoples Services Directorate,Agency Staff - Other,A301
http://opendatacommunities.org/id/london-borough-council/sutton,London Borough of Sutton,16/07/2020,6974772,"1,107.40",Pulse Healthcare Ltd,23574,Peoples Services Directorate,Agency Staff - Other,A301
http://opendatacommunities.org/id/london-borough-council/sutton,London Borough of Sutton,21/07/2020,6975006,"1,084.80",Pulse Healthcare Ltd,23574,Peoples Services Directorate,Agency Staff - Other,A301
http://opendatacommunities.org/id/london-borough-council/sutton,London Borough of Sutton,28/07/2020,6975286,"1,197.80",Pulse Healthcare Ltd,23574,Peoples Services Directorate,Agency Staff - Other,A301
http://opendatacommunities.org/id/london-borough-council/sutton,London Borough of Sutton,01/07/2020,6973846,"1,756.50",The Oyster Partnership Ltd,27566,"Environment, Housing & Regeneration Directorate",Agency Staff - Other,A301
http://opendatacommunities.org/id/london-borough-council/sutton,London Borough of Sutton,08/07/2020,6974204,"1,756.50",The Oyster Partnership Ltd,27566,"Environment, Housing & Regeneration Directorate",Agency Staff - Other,A301
http://opendatacommunities.org/id/london-borough-council/sutton,London Borough of Sutton,15/07/2020,6974701,"1,756.50",The Oyster Partnership Ltd,27566,"Environment, Housing & Regeneration Directorate",Agency Staff - Other,A301
http://opendatacommunities.org/id/london-borough-council/sutton,London Borough of Sutton,22/07/2020,6975039,"1,756.50",The Oyster Partnership Ltd,27566,"Environment, Housing & Regeneration Directorate",Agency Staff - Other,A301
http://opendatacommunities.org/id/london-borough-council/sutton,London Borough of Sutton,30/06/2020,6973573,"13,600.00",Tipi Consulting Ltd,35331,Resources Directorate,Agency Staff - Other,A301
http://opendatacommunities.org/id/london-borough-council/sutton,London Borough of Sutton,30/06/2020,6973831,"4,042.50",Advanced Health & Care,23939,Peoples Services Directorate,Consultants/Hons,A310
http://opendatacommunities.org/id/london-borough-council/sutton,London Borough of Sutton,15/07/2020,6974713,750,Guardian News & Media,15893,Resources Directorate,Staff Advertising,A500
http://opendatacommunities.org/id/london-borough-council/sutton,London Borough of Sutton,02/07/2020,6974003,"1,000.00",JGP Resourcing,24660,Resources Directorate,Staff Advertising,A500
http://opendatacommunities.org/id/london-borough-council/sutton,London Borough of Sutton,09/07/2020,6974296,"3,145.00",Reed Business Information Ltd (New Scientist),13731,Resources Directorate,Staff Advertising,A500
http://opendatacommunities.org/id/london-borough-council/sutton,London Borough of Sutton,10/02/2020,6974700,625,Bournemouth University,10556,Peoples Services Directorate,Training - Course Fees,A520
http://opendatacommunities.org/id/london-borough-council/sutton,London Borough of Sutton,16/07/2020,6974975,500,London Borough of Barnet,20145,Peoples Services Directorate,Training - Course Fees,A520
http://opendatacommunities.org/id/london-borough-council/sutton,London Borough of Sutton,02/07/2020,6973825,"1,409.49",PAMS Assessments Ltd,35514,Peoples Services Directorate,Training - Course Fees,A520
http://opendatacommunities.org/id/london-borough-council/sutton,London Borough of Sutton,27/06/2019,6969840,"1,180.00",The UK Committee for UNICEF - Sales account,30160,Chief Executive's Directorate,Training - Course Fees,A520
http://opendatacommunities.org/id/london-borough-council/sutton,London Borough of Sutton,16/07/2020,6974735,798,National Appropriate Adult Network,15966,Peoples Services Directorate,Subscriptions to Professional Bodies,A740
http://opendatacommunities.org/id/london-borough-council/sutton,London Borough of Sutton,30/06/2020,6973828,"2,617.57",Barnett Waddingham LLP,28449,Non-Service Cost Centres,Investment Expenses,A931
http://opendatacommunities.org/id/london-borough-council/sutton,London Borough of Sutton,08/07/2020,6974170,"4,040.00",Hymans Robertson Actuaries & Consultants,12213,Non-Service Cost Centres,Investment Expenses,A931
http://opendatacommunities.org/id/london-borough-council/sutton,London Borough of Sutton,03/07/2020,6973876,"1,291.67",Legal & General Assurance (Pensions Management),23906,Non-Service Cost Centres,Investment Expenses,A931
http://opendatacommunities.org/id/london-borough-council/sutton,London Borough of Sutton,13/07/2020,6974777,"134,295.57",Schroder Pension Management Ltd,25033,Non-Service Cost Centres,Investment Expenses,A931
http://opendatacommunities.org/id/london-borough-council/sutton,London Borough of Sutton,25/06/2020,6973557,"1,956.40",Mitie Technical Facilities Management Ltd,97595,Resources Directorate,General Works,D400
http://opendatacommunities.org/id/london-borough-council/sutton,London Borough of Sutton,30/06/2020,6973641,"3,472.20",Mitie Technical Facilities Management Ltd,97595,HRA,General Works,D400
http://opendatacommunities.org/id/london-borough-council/sutton,London Borough of Sutton,13/07/2020,6974522,"3,915.32",Mitie Technical Facilities Management Ltd,97595,Resources Directorate,General Works,D400
http://opendatacommunities.org/id/london-borough-council/sutton,London Borough of Sutton,14/07/2020,6974633,641.52,Mitie Technical Facilities Management Ltd,97595,Resources Directorate,General Works,D400
http://opendatacommunities.org/id/london-borough-council/sutton,London Borough of Sutton,20/07/2020,6974912,"27,612.08",Mitie Technical Facilities Management Ltd,97595,Chief Executive's Directorate,General Works,D400
http://opendatacommunities.org/id/london-borough-council/sutton,London Borough of Sutton,15/07/2020,6974916,"4,497.88",Mitie Technical Facilities Management Ltd,97595,Chief Executive's Directorate,General Works,D400
http://opendatacommunities.org/id/london-borough-council/sutton,London Borough of Sutton,24/07/2020,6975169,"1,296.00",Mitie Technical Facilities Management Ltd,97595,Chief Executive's Directorate,General Works,D400
http://opendatacommunities.org/id/london-borough-council/sutton,London Borough of Sutton,16/07/2020,6975184,"1,738.80",Mitie Technical Facilities Management Ltd,97595,Resources Directorate,General Works,D400
http://opendatacommunities.org/id/london-borough-council/sutton,London Borough of Sutton,17/07/2020,6974781,"1,462.00",SLM Ltd,23909,Chief Executive's Directorate,General Works,D400
http://opendatacommunities.org/id/london-borough-council/sutton,London Borough of Sutton,17/07/2020,6974782,634.24,SLM Ltd,23909,Chief Executive's Directorate,General Works,D400
http://opendatacommunities.org/id/london-borough-council/sutton,London Borough of Sutton,01/06/2020,6975160,"3,217.86",PURE WASHROOMS LTD,34576,Peoples Services Directorate,Water and Sanitary Services,D424
http://opendatacommunities.org/id/london-borough-council/sutton,London Borough of Sutton,01/06/2020,6975161,"1,764.96",PURE WASHROOMS LTD,34576,Peoples Services Directorate,Water and Sanitary Services,D424
http://opendatacommunities.org/id/london-borough-council/sutton,London Borough of Sutton,01/07/2020,6973719,"32,666.67",Sutton Housing Partnership,18765,HRA,HRA - Intensive Housing Management,D493
http://opendatacommunities.org/id/london-borough-council/sutton,London Borough of Sutton,01/07/2020,6973719,"172,500.00",Sutton Housing Partnership,18765,HRA,HRA - Special Services Total,D497
http://opendatacommunities.org/id/london-borough-council/sutton,London Borough of Sutton,01/07/2020,6973719,"598,166.67",Sutton Housing Partnership,18765,HRA,HRA - Gen Mgmt Total,D498
http://opendatacommunities.org/id/london-borough-council/sutton,London Borough of Sutton,01/07/2020,6973719,"548,333.33",Sutton Housing Partnership,18765,HRA,HRA - Rep & Maint Total,D499
http://opendatacommunities.org/id/london-borough-council/sutton,London Borough of Sutton,01/07/2020,6973719,"54,166.67",Sutton Housing Partnership,18765,HRA,HRA - Rep & Maint Total,D499
http://opendatacommunities.org/id/london-borough-council/sutton,London Borough of Sutton,22/07/2020,6975030,540,Balmont Ltd,97636,Peoples Services Directorate,General Maintenance,D500
http://opendatacommunities.org/id/london-borough-council/sutton,London Borough of Sutton,21/07/2020,6974983,654.93,Mitie Technical Facilities Management Ltd,97595,Peoples Services Directorate,General Maintenance,D500
http://opendatacommunities.org/id/london-borough-council/sutton,London Borough of Sutton,19/05/2020,6974933,722.72,Schindler Ltd,97153,Peoples Services Directorate,General Maintenance,D500
http://opendatacommunities.org/id/london-borough-council/sutton,London Borough of Sutton,03/03/2020,6973197,"1,099.75",Metric Group Ltd,12947,"Environment, Housing & Regeneration Directorate",Equipment including Meters,D520
http://opendatacommunities.org/id/london-borough-council/sutton,London Borough of Sutton,03/03/2020,6973198,"5,692.38",Metric Group Ltd,12947,"Environment, Housing & Regeneration Directorate",Equipment including Meters,D520
http://opendatacommunities.org/id/london-borough-council/sutton,London Borough of Sutton,03/03/2020,6973198,916.41,Metric Group Ltd,12947,"Environment, Housing & Regeneration Directorate",Equipment including Meters,D520
http://opendatacommunities.org/id/london-borough-council/sutton,London Borough of Sutton,15/05/2020,6974649,800,Approved Multi Services Ltd,97774,"Environment, Housing & Regeneration Directorate",Road Markings,D523
http://opendatacommunities.org/id/london-borough-council/sutton,London Borough of Sutton,17/07/2020,6974797,"1,050.00",Advanced Demand Side Management Ltd,26989,"Environment, Housing & Regeneration Directorate",Special,D535
http://opendatacommunities.org/id/london-borough-council/sutton,London Borough of Sutton,08/07/2020,6974076,480,McKeown Fencing Ltd,97708,"Environment, Housing & Regeneration Directorate",Special,D535
http://opendatacommunities.org/id/london-borough-council/sutton,London Borough of Sutton,10/07/2020,6974469,"11,791.22",Mitie Technical Facilities Management Ltd,97595,"Environment, Housing & Regeneration Directorate",Special,D535
http://opendatacommunities.org/id/london-borough-council/sutton,London Borough of Sutton,07/07/2020,6974062,"1,500.00",Beeches Tree Care,10451,"Environment, Housing & Regeneration Directorate",Emergency Repairs,D540
http://opendatacommunities.org/id/london-borough-council/sutton,London Borough of Sutton,21/07/2020,6975000,834,Beeches Tree Care,10451,"Environment, Housing & Regeneration Directorate",Emergency Repairs,D540
http://opendatacommunities.org/id/london-borough-council/sutton,London Borough of Sutton,21/07/2020,6975001,525,Beeches Tree Care,10451,"Environment, Housing & Regeneration Directorate",Emergency Repairs,D540
http://opendatacommunities.org/id/london-borough-council/sutton,London Borough of Sutton,23/07/2020,6975093,"3,043.00",Beeches Tree Care,10451,"Environment, Housing & Regeneration Directorate",Emergency Repairs,D540
http://opendatacommunities.org/id/london-borough-council/sutton,London Borough of Sutton,07/07/2020,6974054,490,Beeches Tree Care,10451,"Environment, Housing & Regeneration Directorate",Highway Trees - Maintenance,D560
http://opendatacommunities.org/id/london-borough-council/sutton,London Borough of Sutton,07/07/2020,6974057,500,Beeches Tree Care,10451,"Environment, Housing & Regeneration Directorate",Highway Trees - Maintenance,D560
http://opendatacommunities.org/id/london-borough-council/sutton,London Borough of Sutton,21/07/2020,6975002,"1,065.00",Beeches Tree Care,10451,"Environment, Housing & Regeneration Directorate",Highway Trees - Maintenance,D560
http://opendatacommunities.org/id/london-borough-council/sutton,London Borough of Sutton,22/07/2020,6975004,"8,000.00",Beeches Tree Care,10451,"Environment, Housing & Regeneration Directorate",Highway Trees - Maintenance,D560
http://opendatacommunities.org/id/london-borough-council/sutton,London Borough of Sutton,08/07/2020,6974763,497.21,Corona Energy,11163,Resources Directorate,Gas - General,D610
http://opendatacommunities.org/id/london-borough-council/sutton,London Borough of Sutton,23/07/2020,6975170,"17,692.49",Kent County Council (Kcs)Incomea/C,12441,Resources Directorate,Gas - General,D610
http://opendatacommunities.org/id/london-borough-council/sutton,London Borough of Sutton,20/07/2020,6975210,817.1,Southern Electric,16013,Resources Directorate,Gas - General,D610
http://opendatacommunities.org/id/london-borough-council/sutton,London Borough of Sutton,03/07/2020,6974524,905.9,British Gas,10641,Peoples Services Directorate,Electricity - General,D620
http://opendatacommunities.org/id/london-borough-council/sutton,London Borough of Sutton,30/06/2020,6973999,"-2,967.84",EDF Energy (Seeboard),13999,Resources Directorate,Electricity - General,D620
http://opendatacommunities.org/id/london-borough-council/sutton,London Borough of Sutton,29/06/2020,6974000,"-3,948.66",EDF Energy (Seeboard),13999,Resources Directorate,Electricity - General,D620
http://opendatacommunities.org/id/london-borough-council/sutton,London Borough of Sutton,30/06/2020,6974011,"3,276.90",EDF Energy (Seeboard),13999,Resources Directorate,Electricity - General,D620
http://opendatacommunities.org/id/london-borough-council/sutton,London Borough of Sutton,02/07/2020,6974417,"2,389.22",EDF Energy (Seeboard),13999,Resources Directorate,Electricity - General,D620
http://opendatacommunities.org/id/london-borough-council/sutton,London Borough of Sutton,01/07/2020,6974618,472.65,EDF Energy (Seeboard),13999,"Environment, Housing & Regeneration Directorate",Electricity - General,D620
http://opendatacommunities.org/id/london-borough-council/sutton,London Borough of Sutton,06/07/2020,6975290,761.68,EDF Energy (Seeboard),13999,"Environment, Housing & Regeneration Directorate",Electricity - General,D620
http://opendatacommunities.org/id/london-borough-council/sutton,London Borough of Sutton,18/05/2020,6973761,"87,373.97",Kent County Council (Kcs)Incomea/C,12441,"Environment, Housing & Regeneration Directorate",Electricity - General,D620
http://opendatacommunities.org/id/london-borough-council/sutton,London Borough of Sutton,18/06/2020,6973795,"30,616.56",Kent County Council (Kcs)Incomea/C,12441,"Environment, Housing & Regeneration Directorate",Electricity - General,D620
http://opendatacommunities.org/id/london-borough-council/sutton,London Borough of Sutton,17/07/2020,6974940,"26,854.99",Kent County Council (Kcs)Incomea/C,12441,"Environment, Housing & Regeneration Directorate",Electricity - General,D620
http://opendatacommunities.org/id/london-borough-council/sutton,London Borough of Sutton,23/07/2020,6975171,"43,894.75",Kent County Council (Kcs)Incomea/C,12441,Resources Directorate,Electricity - General,D620
http://opendatacommunities.org/id/london-borough-council/sutton,London Borough of Sutton,08/07/2020,6974168,"-78,237.79",NPower,15591,"Environment, Housing & Regeneration Directorate",Electricity - General,D620
http://opendatacommunities.org/id/london-borough-council/sutton,London Borough of Sutton,02/07/2020,6973787,"1,047.70",Ability Housing Association,23287,Peoples Services Directorate,Rent - General,D650
http://opendatacommunities.org/id/london-borough-council/sutton,London Borough of Sutton,27/05/2020,6975292,"11,850.00",Surrey County Council,14410,Peoples Services Directorate,Rent - General,D650
http://opendatacommunities.org/id/london-borough-council/sutton,London Borough of Sutton,02/07/2020,6973785,"2,136.68",Sutton Housing Society,14462,Peoples Services Directorate,Rent - General,D650
http://opendatacommunities.org/id/london-borough-council/sutton,London Borough of Sutton,09/07/2020,6974450,"4,196.54",Advanced Demand Side Management Ltd,26989,Resources Directorate,Water - Metered,D690
http://opendatacommunities.org/id/london-borough-council/sutton,London Borough of Sutton,30/06/2020,6974810,"2,242.53",Advanced Demand Side Management Ltd,26989,Resources Directorate,Water - Metered,D690
http://opendatacommunities.org/id/london-borough-council/sutton,London Borough of Sutton,26/06/2020,6974078,"1,903.89",SES - Sutton And East Surrey Water,97164,Resources Directorate,Water - Metered,D690
http://opendatacommunities.org/id/london-borough-council/sutton,London Borough of Sutton,24/07/2020,6975164,"1,205.28",Mitie Technical Facilities Management Ltd,97595,Chief Executive's Directorate,Purchase/Replacement of Fixtures and Fittings,D700
http://opendatacommunities.org/id/london-borough-council/sutton,London Borough of Sutton,30/06/2020,6974508,"5,851.00",The Design Concept Ltd,26245,Chief Executive's Directorate,Purchase/Replacement of Fixtures and Fittings,D700
http://opendatacommunities.org/id/london-borough-council/sutton,London Borough of Sutton,11/06/2020,6972824,940.74,Mitie Technical Facilities Management Ltd,97595,Chief Executive's Directorate,Repairs to Fixtures and Fittings,D701
http://opendatacommunities.org/id/london-borough-council/sutton,London Borough of Sutton,17/07/2020,6974818,"1,821.60",Balmont Ltd,97636,Peoples Services Directorate,Other Premises Costs,D715
http://opendatacommunities.org/id/london-borough-council/sutton,London Borough of Sutton,09/07/2020,6974472,483.84,Mitie Technical Facilities Management Ltd,97595,Resources Directorate,Other Premises Costs,D715
http://opendatacommunities.org/id/london-borough-council/sutton,London Borough of Sutton,20/07/2020,6974915,"3,002.40",Mitie Technical Facilities Management Ltd,97595,Resources Directorate,Other Premises Costs,D715
http://opendatacommunities.org/id/london-borough-council/sutton,London Borough of Sutton,13/07/2020,1295570,"8,240.00",Absolute Care Services Ltd,10021,Peoples Services Directorate,Contract Cleaning,D806
http://opendatacommunities.org/id/london-borough-council/sutton,London Borough of Sutton,21/07/2020,1295754,"10,000.00",Absolute Care Services Ltd,10021,Peoples Services Directorate,Contract Cleaning,D806
http://opendatacommunities.org/id/london-borough-council/sutton,London Borough of Sutton,13/07/2020,1295583,"3,920.00",Best at Home Domiciliary Care Services Ltd,30159,Peoples Services Directorate,Contract Cleaning,D806
http://opendatacommunities.org/id/london-borough-council/sutton,London Borough of Sutton,21/07/2020,1295756,"10,000.00",Best at Home Domiciliary Care Services Ltd,30159,Peoples Services Directorate,Contract Cleaning,D806
http://opendatacommunities.org/id/london-borough-council/sutton,London Borough of Sutton,13/07/2020,1295590,"3,760.00",Care More Ltd,33872,Peoples Services Directorate,Contract Cleaning,D806
http://opendatacommunities.org/id/london-borough-council/sutton,London Borough of Sutton,21/07/2020,1295757,"10,000.00",Care More Ltd,33872,Peoples Services Directorate,Contract Cleaning,D806
http://opendatacommunities.org/id/london-borough-council/sutton,London Borough of Sutton,13/07/2020,1295575,"2,160.00",Caremark (Sutton),25541,Peoples Services Directorate,Contract Cleaning,D806
http://opendatacommunities.org/id/london-borough-council/sutton,London Borough of Sutton,21/07/2020,1295758,"5,000.00",Caremark (Sutton),25541,Peoples Services Directorate,Contract Cleaning,D806
http://opendatacommunities.org/id/london-borough-council/sutton,London Borough of Sutton,13/07/2020,1295589,"1,920.00",Clovecare Ltd,33431,Peoples Services Directorate,Contract Cleaning,D806
http://opendatacommunities.org/id/london-borough-council/sutton,London Borough of Sutton,21/07/2020,1295759,"5,000.00",Clovecare Ltd,33431,Peoples Services Directorate,Contract Cleaning,D806
http://opendatacommunities.org/id/london-borough-council/sutton,London Borough of Sutton,13/07/2020,1295571,"1,040.00",Community Home Care Provider,11097,Peoples Services Directorate,Contract Cleaning,D806
http://opendatacommunities.org/id/london-borough-council/sutton,London Borough of Sutton,21/07/2020,1295760,"5,000.00",Community Home Care Provider,11097,Peoples Services Directorate,Contract Cleaning,D806
http://opendatacommunities.org/id/london-borough-council/sutton,London Borough of Sutton,17/07/2020,1295662,"4,802.49",Consensus Support Services Limited,35530,Peoples Services Directorate,Contract Cleaning,D806
http://opendatacommunities.org/id/london-borough-council/sutton,London Borough of Sutton,17/07/2020,1295663,"4,268.88",Consensus Support Services Limited,35530,Peoples Services Directorate,Contract Cleaning,D806
http://opendatacommunities.org/id/london-borough-council/sutton,London Borough of Sutton,13/07/2020,1295579,"4,240.00",Day and Nite Services,26773,Peoples Services Directorate,Contract Cleaning,D806
http://opendatacommunities.org/id/london-borough-council/sutton,London Borough of Sutton,21/07/2020,1295761,"10,000.00",Day and Nite Services,26773,Peoples Services Directorate,Contract Cleaning,D806
http://opendatacommunities.org/id/london-borough-council/sutton,London Borough of Sutton,13/07/2020,1295577,"2,560.00",Elite CarePlus Ltd,26199,Peoples Services Directorate,Contract Cleaning,D806
http://opendatacommunities.org/id/london-borough-council/sutton,London Borough of Sutton,21/07/2020,1295762,"5,000.00",Elite CarePlus Ltd,26199,Peoples Services Directorate,Contract Cleaning,D806
http://opendatacommunities.org/id/london-borough-council/sutton,London Borough of Sutton,13/07/2020,1295587,"4,800.00",Exodus Health Care Services Ltd,33380,Peoples Services Directorate,Contract Cleaning,D806
http://opendatacommunities.org/id/london-borough-council/sutton,London Borough of Sutton,21/07/2020,1295763,"10,000.00",Exodus Health Care Services Ltd,33380,Peoples Services Directorate,Contract Cleaning,D806
http://opendatacommunities.org/id/london-borough-council/sutton,London Borough of Sutton,21/07/2020,1295774,"1,000.00",Friends Of The Elderly,11766,Peoples Services Directorate,Contract Cleaning,D806
http://opendatacommunities.org/id/london-borough-council/sutton,London Borough of Sutton,10/07/2020,1295442,"4,268.88",Glancestyle Care Homes Ltd,25502,Peoples Services Directorate,Contract Cleaning,D806
http://opendatacommunities.org/id/london-borough-council/sutton,London Borough of Sutton,07/07/2020,1295334,"3,735.27",Heathcotes (Southern) Limited,26792,Peoples Services Directorate,Contract Cleaning,D806
http://opendatacommunities.org/id/london-borough-council/sutton,London Borough of Sutton,07/07/2020,1295335,"4,268.88",Heathcotes (Southern) Limited,26792,Peoples Services Directorate,Contract Cleaning,D806
http://opendatacommunities.org/id/london-borough-council/sutton,London Borough of Sutton,13/07/2020,1295588,"1,680.00",Helpr Ltd,33430,Peoples Services Directorate,Contract Cleaning,D806
http://opendatacommunities.org/id/london-borough-council/sutton,London Borough of Sutton,21/07/2020,1295764,"5,000.00",Helpr Ltd,33430,Peoples Services Directorate,Contract Cleaning,D806
http://opendatacommunities.org/id/london-borough-council/sutton,London Borough of Sutton,13/07/2020,1295578,640,J.C. Michael Group,26274,Peoples Services Directorate,Contract Cleaning,D806
http://opendatacommunities.org/id/london-borough-council/sutton,London Borough of Sutton,21/07/2020,1295755,"1,000.00",J.C. Michael Group,26274,Peoples Services Directorate,Contract Cleaning,D806
http://opendatacommunities.org/id/london-borough-council/sutton,London Borough of Sutton,13/07/2020,1295584,"1,120.00",Lakeshore Care Ltd,30212,Peoples Services Directorate,Contract Cleaning,D806
http://opendatacommunities.org/id/london-borough-council/sutton,London Borough of Sutton,21/07/2020,1295765,"5,000.00",Lakeshore Care Ltd,30212,Peoples Services Directorate,Contract Cleaning,D806
http://opendatacommunities.org/id/london-borough-council/sutton,London Borough of Sutton,13/07/2020,1295591,"1,120.00",Lavender Care Agency Ltd,35378,Peoples Services Directorate,Contract Cleaning,D806
http://opendatacommunities.org/id/london-borough-council/sutton,London Borough of Sutton,21/07/2020,1295766,"5,000.00",Lavender Care Agency Ltd,35378,Peoples Services Directorate,Contract Cleaning,D806
http://opendatacommunities.org/id/london-borough-council/sutton,London Borough of Sutton,02/07/2020,1295015,"3,201.66",Living Ambitions Ltd,10811,Peoples Services Directorate,Contract Cleaning,D806
http://opendatacommunities.org/id/london-borough-council/sutton,London Borough of Sutton,02/07/2020,1295016,"3,735.27",Living Ambitions Ltd,10811,Peoples Services Directorate,Contract Cleaning,D806
http://opendatacommunities.org/id/london-borough-council/sutton,London Borough of Sutton,21/07/2020,1295768,"1,000.00",Micbee Care & Employment Ltd,34209,Peoples Services Directorate,Contract Cleaning,D806
http://opendatacommunities.org/id/london-borough-council/sutton,London Borough of Sutton,29/07/2020,1296071,"1,067.22",Mrs R Jesudasan,19991,Peoples Services Directorate,Contract Cleaning,D806
http://opendatacommunities.org/id/london-borough-council/sutton,London Borough of Sutton,13/07/2020,1295586,"1,120.00",My Homecare Surrey,32315,Peoples Services Directorate,Contract Cleaning,D806
http://opendatacommunities.org/id/london-borough-council/sutton,London Borough of Sutton,21/07/2020,1295769,"5,000.00",My Homecare Surrey,32315,Peoples Services Directorate,Contract Cleaning,D806
http://opendatacommunities.org/id/london-borough-council/sutton,London Borough of Sutton,13/07/2020,1295581,"2,880.00",Savannah Care Ltd,29248,Peoples Services Directorate,Contract Cleaning,D806
http://opendatacommunities.org/id/london-borough-council/sutton,London Borough of Sutton,21/07/2020,1295770,"5,000.00",Savannah Care Ltd,29248,Peoples Services Directorate,Contract Cleaning,D806
http://opendatacommunities.org/id/london-borough-council/sutton,London Borough of Sutton,13/07/2020,1295580,"3,120.00",Sevacare UK Ltd t/a Mayfair Homecare,27810,Peoples Services Directorate,Contract Cleaning,D806
http://opendatacommunities.org/id/london-borough-council/sutton,London Borough of Sutton,21/07/2020,1295767,"10,000.00",Sevacare UK Ltd t/a Mayfair Homecare,27810,Peoples Services Directorate,Contract Cleaning,D806
http://opendatacommunities.org/id/london-borough-council/sutton,London Borough of Sutton,13/07/2020,1295585,"3,760.00",Simplified Staffing Ltd,30308,Peoples Services Directorate,Contract Cleaning,D806
http://opendatacommunities.org/id/london-borough-council/sutton,London Borough of Sutton,21/07/2020,1295771,"10,000.00",Simplified Staffing Ltd,30308,Peoples Services Directorate,Contract Cleaning,D806
http://opendatacommunities.org/id/london-borough-council/sutton,London Borough of Sutton,13/07/2020,1295572,"1,600.00",Surecare Services (Croydon),16603,Peoples Services Directorate,Contract Cleaning,D806
http://opendatacommunities.org/id/london-borough-council/sutton,London Borough of Sutton,21/07/2020,1295772,"5,000.00",Surecare Services (Croydon),16603,Peoples Services Directorate,Contract Cleaning,D806
http://opendatacommunities.org/id/london-borough-council/sutton,London Borough of Sutton,30/06/2020,6973599,"1,652.00",Sutton Housing Partnership,18765,HRA,Contract Cleaning,D806
http://opendatacommunities.org/id/london-borough-council/sutton,London Borough of Sutton,13/07/2020,1295582,"3,540.00",The Health Care Group (THCG) Ltd,29933,Peoples Services Directorate,Contract Cleaning,D806
http://opendatacommunities.org/id/london-borough-council/sutton,London Borough of Sutton,21/07/2020,1295773,"10,000.00",The Health Care Group (THCG) Ltd,29933,Peoples Services Directorate,Contract Cleaning,D806
http://opendatacommunities.org/id/london-borough-council/sutton,London Borough of Sutton,13/07/2020,1295574,800,Trinity Care Services Ltd,22975,Peoples Services Directorate,Contract Cleaning,D806
http://opendatacommunities.org/id/london-borough-council/sutton,London Borough of Sutton,21/07/2020,1295775,"5,000.00",Trinity Care Services Ltd,22975,Peoples Services Directorate,Contract Cleaning,D806
http://opendatacommunities.org/id/london-borough-council/sutton,London Borough of Sutton,21/07/2020,1295776,500,"Valor Care Services, Training and Consultancy Ltd",27288,Peoples Services Directorate,Contract Cleaning,D806
http://opendatacommunities.org/id/london-borough-council/sutton,London Borough of Sutton,13/07/2020,1295573,"6,960.00",Westminster Homecare Limited,22123,Peoples Services Directorate,Contract Cleaning,D806
http://opendatacommunities.org/id/london-borough-council/sutton,London Borough of Sutton,21/07/2020,1295777,"10,000.00",Westminster Homecare Limited,22123,Peoples Services Directorate,Contract Cleaning,D806
http://opendatacommunities.org/id/london-borough-council/sutton,London Borough of Sutton,02/07/2020,6973869,"2,566.00",R J Dance Contractors Ltd,97066,"Environment, Housing & Regeneration Directorate","Paths, Drives etc. - SCH",D870
http://opendatacommunities.org/id/london-borough-council/sutton,London Borough of Sutton,14/07/2020,6974567,480,R J Dance Contractors Ltd,97066,"Environment, Housing & Regeneration Directorate","Paths, Drives etc. - SCH",D870
http://opendatacommunities.org/id/london-borough-council/sutton,London Borough of Sutton,24/07/2020,6975142,"3,370.00",R J Dance Contractors Ltd,97066,"Environment, Housing & Regeneration Directorate","Paths, Drives etc. - SCH",D870
http://opendatacommunities.org/id/london-borough-council/sutton,London Borough of Sutton,07/07/2020,6974061,"1,624.00",Beeches Tree Care,10451,"Environment, Housing & Regeneration Directorate",Trees - SCH,D875
http://opendatacommunities.org/id/london-borough-council/sutton,London Borough of Sutton,07/07/2020,6974063,510,Beeches Tree Care,10451,"Environment, Housing & Regeneration Directorate",Trees - SCH,D875
http://opendatacommunities.org/id/london-borough-council/sutton,London Borough of Sutton,09/07/2020,6974273,"5,892.00",Beeches Tree Care,10451,"Environment, Housing & Regeneration Directorate",Trees - SCH,D875
http://opendatacommunities.org/id/london-borough-council/sutton,London Borough of Sutton,21/07/2020,6975003,"6,210.00",Beeches Tree Care,10451,"Environment, Housing & Regeneration Directorate",Trees - SCH,D875
http://opendatacommunities.org/id/london-borough-council/sutton,London Borough of Sutton,23/07/2020,6975086,"10,572.00",Beeches Tree Care,10451,"Environment, Housing & Regeneration Directorate",Trees - SCH,D875
http://opendatacommunities.org/id/london-borough-council/sutton,London Borough of Sutton,12/06/2020,6974442,"4,340.95",Mitie Technical Facilities Management Ltd,97595,Resources Directorate,Security Systems - SCH,D880
http://opendatacommunities.org/id/london-borough-council/sutton,London Borough of Sutton,29/03/2020,6973613,590.06,Secure Empty Property Limited,35164,Resources Directorate,Security Systems - SCH,D880
http://opendatacommunities.org/id/london-borough-council/sutton,London Borough of Sutton,26/04/2020,6973614,474.42,Secure Empty Property Limited,35164,Resources Directorate,Security Systems - SCH,D880
http://opendatacommunities.org/id/london-borough-council/sutton,London Borough of Sutton,28/06/2020,6973691,790,Secure Empty Property Limited,35164,Resources Directorate,Security Systems - SCH,D880
http://opendatacommunities.org/id/london-borough-council/sutton,London Borough of Sutton,26/07/2020,6975432,464.42,Secure Empty Property Limited,35164,Resources Directorate,Security Systems - SCH,D880
http://opendatacommunities.org/id/london-borough-council/sutton,London Borough of Sutton,30/06/2020,6973732,705.5,London Hire Ltd,12791,"Environment, Housing & Regeneration Directorate",Labour,E010
http://opendatacommunities.org/id/london-borough-council/sutton,London Borough of Sutton,30/06/2020,6973733,"1,153.54",London Hire Ltd,12791,"Environment, Housing & Regeneration Directorate",Labour,E010
http://opendatacommunities.org/id/london-borough-council/sutton,London Borough of Sutton,29/07/2020,6975321,528.08,London Hire Ltd,12791,"Environment, Housing & Regeneration Directorate",Labour,E010
http://opendatacommunities.org/id/london-borough-council/sutton,London Borough of Sutton,01/07/2020,6973895,688.17,Allstar Business Solutions,24482,"Environment, Housing & Regeneration Directorate",Fuel Etc,E030
http://opendatacommunities.org/id/london-borough-council/sutton,London Borough of Sutton,01/07/2020,6973900,"3,250.00",Pinnacle Chauffeur Transport Ltd,28970,Resources Directorate,Hired Vehicles,E070
http://opendatacommunities.org/id/london-borough-council/sutton,London Borough of Sutton,01/07/2020,6973709,"54,140.80",ADAM HTT LTD,34364,Peoples Services Directorate,Hired Peoples Transport (Children),E072
http://opendatacommunities.org/id/london-borough-council/sutton,London Borough of Sutton,01/07/2020,6973709,"61,075.26",ADAM HTT LTD,34364,Peoples Services Directorate,Hired Peoples Transport (Children),E072
http://opendatacommunities.org/id/london-borough-council/sutton,London Borough of Sutton,08/07/2020,6974163,"135,480.69",ADAM HTT LTD,34364,Peoples Services Directorate,Hired Peoples Transport (Children),E072
http://opendatacommunities.org/id/london-borough-council/sutton,London Borough of Sutton,15/07/2020,6974652,"54,467.89",ADAM HTT LTD,34364,Peoples Services Directorate,Hired Peoples Transport (Children),E072
http://opendatacommunities.org/id/london-borough-council/sutton,London Borough of Sutton,15/07/2020,6974652,"86,594.90",ADAM HTT LTD,34364,Peoples Services Directorate,Hired Peoples Transport (Children),E072
http://opendatacommunities.org/id/london-borough-council/sutton,London Borough of Sutton,28/06/2020,6974423,763,Wallington Cars & Couriers,14849,Peoples Services Directorate,Hired Peoples Transport (Children),E072
http://opendatacommunities.org/id/london-borough-council/sutton,London Borough of Sutton,02/06/2020,6975076,453,Wrixon Care Services,15040,Peoples Services Directorate,Hired Peoples Transport (Children),E072
http://opendatacommunities.org/id/london-borough-council/sutton,London Borough of Sutton,06/05/2020,6975078,787.25,Wrixon Care Services,15040,Peoples Services Directorate,Hired Peoples Transport (Children),E072
http://opendatacommunities.org/id/london-borough-council/sutton,London Borough of Sutton,28/07/2020,6975334,"52,276.35",Almond Pharma Ltd,35483,Resources Directorate,Health and Safety Equipment,F005
http://opendatacommunities.org/id/london-borough-council/sutton,London Borough of Sutton,28/07/2020,6975206,476,Gloveman Supplies Ltd,11854,Peoples Services Directorate,Health and Safety Equipment,F005
http://opendatacommunities.org/id/london-borough-council/sutton,London Borough of Sutton,24/07/2020,6975431,"14,563.50",Magpie Ltd,35487,Resources Directorate,Health and Safety Equipment,F005
http://opendatacommunities.org/id/london-borough-council/sutton,London Borough of Sutton,07/07/2020,6974002,"6,645.00",Train2Protect (T2P) International Ltd,36367,Resources Directorate,Health and Safety Equipment,F005
http://opendatacommunities.org/id/london-borough-council/sutton,London Borough of Sutton,20/05/2020,40433718,604.09,James Askew & Son Ltd,10253,Chief Executive's Directorate,Books,F006
http://opendatacommunities.org/id/london-borough-council/sutton,London Borough of Sutton,01/07/2020,40433723,"3,600.00",James Askew & Son Ltd,10253,Chief Executive's Directorate,Books,F006
http://opendatacommunities.org/id/london-borough-council/sutton,London Borough of Sutton,24/06/2020,40437462,734.12,James Askew & Son Ltd,10253,Chief Executive's Directorate,Books,F006
http://opendatacommunities.org/id/london-borough-council/sutton,London Borough of Sutton,15/07/2020,40437465,717.28,James Askew & Son Ltd,10253,Chief Executive's Directorate,Books,F006
http://opendatacommunities.org/id/london-borough-council/sutton,London Borough of Sutton,15/07/2020,40437467,583.85,James Askew & Son Ltd,10253,Chief Executive's Directorate,Books,F006
http://opendatacommunities.org/id/london-borough-council/sutton,London Borough of Sutton,15/07/2020,40437468,662.1,James Askew & Son Ltd,10253,Chief Executive's Directorate,Books,F006
http://opendatacommunities.org/id/london-borough-council/sutton,London Borough of Sutton,15/07/2020,40437475,469.93,James Askew & Son Ltd,10253,Chief Executive's Directorate,Books,F006
http://opendatacommunities.org/id/london-borough-council/sutton,London Borough of Sutton,27/07/2020,40441303,"5,000.00",Overdrive Inc,32111,Chief Executive's Directorate,Books,F006
http://opendatacommunities.org/id/london-borough-council/sutton,London Borough of Sutton,25/07/2020,6975198,"1,200.00",Just Cool It Limited,27036,Chief Executive's Directorate,Purchase Social Services Equipment,F012
http://opendatacommunities.org/id/london-borough-council/sutton,London Borough of Sutton,24/06/2020,6973345,"1,241.00",Foster Refrigerator (Uk) Ltd,11720,Resources Directorate,Other Equipment - Purchase,F015
http://opendatacommunities.org/id/london-borough-council/sutton,London Borough of Sutton,08/07/2020,6974593,"1,199.80",Nisbets,13206,Resources Directorate,Other Equipment - Purchase,F015
http://opendatacommunities.org/id/london-borough-council/sutton,London Borough of Sutton,30/06/2020,6973640,"2,561.76",Mitie Technical Facilities Management Ltd,97595,Resources Directorate,Operating Lease - General,F060
http://opendatacommunities.org/id/london-borough-council/sutton,London Borough of Sutton,30/06/2020,6973993,"1,879.00",RA Information Systems,27880,"Environment, Housing & Regeneration Directorate",Materials - General,F100
http://opendatacommunities.org/id/london-borough-council/sutton,London Borough of Sutton,19/06/2020,6973851,"161,874.00",SLM Ltd,23909,Chief Executive's Directorate,Materials - General,F100
http://opendatacommunities.org/id/london-borough-council/sutton,London Borough of Sutton,19/06/2020,6973853,"82,323.00",SLM Ltd,23909,Chief Executive's Directorate,Materials - General,F100
http://opendatacommunities.org/id/london-borough-council/sutton,London Borough of Sutton,19/06/2020,6973854,"311,290.00",SLM Ltd,23909,Chief Executive's Directorate,Materials - General,F100
http://opendatacommunities.org/id/london-borough-council/sutton,London Borough of Sutton,01/04/2020,6974018,"1,819.30",Fostering Network,11730,Peoples Services Directorate,Personal Requisites,F106
http://opendatacommunities.org/id/london-borough-council/sutton,London Borough of Sutton,01/04/2020,6974019,"2,346.00",Fostering Network,11730,Peoples Services Directorate,Personal Requisites,F106
http://opendatacommunities.org/id/london-borough-council/sutton,London Borough of Sutton,24/06/2020,6973627,"1,881.90",Heartwood Care,28813,Peoples Services Directorate,Personal Requisites,F106
http://opendatacommunities.org/id/london-borough-council/sutton,London Borough of Sutton,30/06/2020,6973547,"3,888.60",Higher Level Care (HLC),24443,Peoples Services Directorate,Personal Requisites,F106
http://opendatacommunities.org/id/london-borough-council/sutton,London Borough of Sutton,30/06/2020,6973566,"2,831.30",Higher Level Care (HLC),24443,Peoples Services Directorate,Personal Requisites,F106
http://opendatacommunities.org/id/london-borough-council/sutton,London Borough of Sutton,20/07/2020,6974887,"1,200.00",Meral Mehmet Ltd,24842,Peoples Services Directorate,Personal Requisites,F106
http://opendatacommunities.org/id/london-borough-council/sutton,London Borough of Sutton,10/07/2020,6974410,900,Project 4 Youth Empowerment CIC,35438,Peoples Services Directorate,Personal Requisites,F106
http://opendatacommunities.org/id/london-borough-council/sutton,London Borough of Sutton,10/07/2020,6975105,900,Project 4 Youth Empowerment CIC,35438,Peoples Services Directorate,Personal Requisites,F106
http://opendatacommunities.org/id/london-borough-council/sutton,London Borough of Sutton,01/05/2020,6975159,"1,020.00",Signis Ltd,25958,Peoples Services Directorate,Personal Requisites,F106
http://opendatacommunities.org/id/london-borough-council/sutton,London Borough of Sutton,30/06/2020,6973823,"9,828.35",Apetito Ltd,10206,Chief Executive's Directorate,Provisions - General,F150
http://opendatacommunities.org/id/london-borough-council/sutton,London Borough of Sutton,14/05/2020,6973867,979.49,BFS Group T/A Bidfood,14589,Chief Executive's Directorate,Refreshments,F155
http://opendatacommunities.org/id/london-borough-council/sutton,London Borough of Sutton,02/07/2020,6973899,444.82,BFS Group T/A Bidfood,14589,Chief Executive's Directorate,Refreshments,F155
http://opendatacommunities.org/id/london-borough-council/sutton,London Borough of Sutton,21/05/2020,6974129,"8,757.37",BFS Group T/A Bidfood,14589,"Environment, Housing & Regeneration Directorate",Refreshments,F155
http://opendatacommunities.org/id/london-borough-council/sutton,London Borough of Sutton,09/07/2020,6974422,479.34,BFS Group T/A Bidfood,14589,Chief Executive's Directorate,Refreshments,F155
http://opendatacommunities.org/id/london-borough-council/sutton,London Borough of Sutton,07/05/2020,6975018,465.96,BFS Group T/A Bidfood,14589,Chief Executive's Directorate,Refreshments,F155
http://opendatacommunities.org/id/london-borough-council/sutton,London Borough of Sutton,25/06/2020,6975181,532.14,BFS Group T/A Bidfood,14589,Chief Executive's Directorate,Refreshments,F155
http://opendatacommunities.org/id/london-borough-council/sutton,London Borough of Sutton,26/06/2020,6973519,604.7,Hilliard Bros. (Ewell) Ltd,35414,"Environment, Housing & Regeneration Directorate",Refreshments,F155
http://opendatacommunities.org/id/london-borough-council/sutton,London Borough of Sutton,29/07/2020,6975277,"1,755.00",Saba UK,14830,"Environment, Housing & Regeneration Directorate",Printing - Tickets,F211
http://opendatacommunities.org/id/london-borough-council/sutton,London Borough of Sutton,26/06/2020,6974653,705.16,Canon (UK) Ltd,13275,Resources Directorate,Printing - General,F215
http://opendatacommunities.org/id/london-borough-council/sutton,London Borough of Sutton,09/06/2020,6974747,"1,447.10",Canon (UK) Ltd,13275,Resources Directorate,Printing - General,F215
http://opendatacommunities.org/id/london-borough-council/sutton,London Borough of Sutton,09/06/2020,6974751,"18,511.88",Canon (UK) Ltd,13275,Resources Directorate,Printing - General,F215
http://opendatacommunities.org/id/london-borough-council/sutton,London Borough of Sutton,26/06/2020,6974753,"6,291.28",Canon (UK) Ltd,13275,Resources Directorate,Printing - General,F215
http://opendatacommunities.org/id/london-borough-council/sutton,London Borough of Sutton,30/06/2020,6974318,"8,035.84",Mitie Technical Facilities Management Ltd,97595,Resources Directorate,Printing - General,F215
http://opendatacommunities.org/id/london-borough-council/sutton,London Borough of Sutton,26/03/2020,6973784,515,STAPLES UK LTD,34565,"Environment, Housing & Regeneration Directorate",Stationery,F220
http://opendatacommunities.org/id/london-borough-council/sutton,London Borough of Sutton,31/07/2020,6975389,444.61,Iron Mountain (UK) Ltd,18641,Resources Directorate,Offsite Storage,F231
http://opendatacommunities.org/id/london-borough-council/sutton,London Borough of Sutton,31/07/2020,6975469,"-7,720.00",Iron Mountain (UK) Ltd,18641,Resources Directorate,Offsite Storage,F231
http://opendatacommunities.org/id/london-borough-council/sutton,London Borough of Sutton,31/07/2020,6975470,"-7,720.00",Iron Mountain (UK) Ltd,18641,Resources Directorate,Offsite Storage,F231
http://opendatacommunities.org/id/london-borough-council/sutton,London Borough of Sutton,29/06/2020,6973494,"1,574.00",Hammond Clarke Ltd,26383,"Environment, Housing & Regeneration Directorate",General Office Expenses,F235
http://opendatacommunities.org/id/london-borough-council/sutton,London Borough of Sutton,30/06/2020,6973913,"3,148.00",Hammond Clarke Ltd,26383,"Environment, Housing & Regeneration Directorate",General Office Expenses,F235
http://opendatacommunities.org/id/london-borough-council/sutton,London Borough of Sutton,13/07/2020,6974476,"2,361.00",Hammond Clarke Ltd,26383,"Environment, Housing & Regeneration Directorate",General Office Expenses,F235
http://opendatacommunities.org/id/london-borough-council/sutton,London Borough of Sutton,20/07/2020,6974858,"3,148.00",Hammond Clarke Ltd,26383,"Environment, Housing & Regeneration Directorate",General Office Expenses,F235
http://opendatacommunities.org/id/london-borough-council/sutton,London Borough of Sutton,27/07/2020,6975157,"3,148.00",Hammond Clarke Ltd,26383,"Environment, Housing & Regeneration Directorate",General Office Expenses,F235
http://opendatacommunities.org/id/london-borough-council/sutton,London Borough of Sutton,29/05/2020,6974815,"22,590.00",London Borough Of Merton,12697,Resources Directorate,General Office Expenses,F235
http://opendatacommunities.org/id/london-borough-council/sutton,London Borough of Sutton,29/05/2020,6974817,"20,910.70",London Borough Of Merton,12697,Resources Directorate,General Office Expenses,F235
http://opendatacommunities.org/id/london-borough-council/sutton,London Borough of Sutton,29/05/2020,6974821,"122,589.90",London Borough Of Merton,12697,Resources Directorate,General Office Expenses,F235
http://opendatacommunities.org/id/london-borough-council/sutton,London Borough of Sutton,14/07/2020,6974585,"2,900.00",Nautilus Consulting Limited,35468,Resources Directorate,General Office Expenses,F235
http://opendatacommunities.org/id/london-borough-council/sutton,London Borough of Sutton,30/06/2020,6973815,"1,800.00",Now Medical,18802,"Environment, Housing & Regeneration Directorate",General Office Expenses,F235
http://opendatacommunities.org/id/london-borough-council/sutton,London Borough of Sutton,07/07/2020,6974200,960,Pau Creative Ltd,32350,"Environment, Housing & Regeneration Directorate",General Office Expenses,F235
http://opendatacommunities.org/id/london-borough-council/sutton,London Borough of Sutton,30/06/2020,6973629,"1,337.00",Senator c/o JS Seating & Desking,16283,Resources Directorate,General Office Expenses,F235
http://opendatacommunities.org/id/london-borough-council/sutton,London Borough of Sutton,01/07/2020,6973743,800,Justlearn Tuition Centre,28406,Peoples Services Directorate,LAC - Education,F269
http://opendatacommunities.org/id/london-borough-council/sutton,London Borough of Sutton,01/07/2020,6973744,"3,670.00",Justlearn Tuition Centre,28406,Peoples Services Directorate,LAC - Education,F269
http://opendatacommunities.org/id/london-borough-council/sutton,London Borough of Sutton,02/07/2020,6973986,700,Sarah Morris,32132,Peoples Services Directorate,LAC - Education,F269
http://opendatacommunities.org/id/london-borough-council/sutton,London Borough of Sutton,12/06/2020,6973774,"7,702.74",TTS Group Ltd,14722,Peoples Services Directorate,LAC - Education,F269
http://opendatacommunities.org/id/london-borough-council/sutton,London Borough of Sutton,11/06/2020,6972673,"8,250.00",Braidwood Law Practice,99853,"Environment, Housing & Regeneration Directorate",External Legal Fees (Corporate Legal Approved),F277
http://opendatacommunities.org/id/london-borough-council/sutton,London Borough of Sutton,11/06/2020,6972674,"15,500.00",DPG Client Account,99853,"Environment, Housing & Regeneration Directorate",External Legal Fees (Corporate Legal Approved),F277
http://opendatacommunities.org/id/london-borough-council/sutton,London Borough of Sutton,29/05/2020,6974816,"10,693.54",London Borough Of Merton,12697,Resources Directorate,External Legal Fees (Corporate Legal Approved),F277
http://opendatacommunities.org/id/london-borough-council/sutton,London Borough of Sutton,29/05/2020,6974820,"53,687.42",London Borough Of Merton,12697,Resources Directorate,External Legal Fees (Corporate Legal Approved),F277
http://opendatacommunities.org/id/london-borough-council/sutton,London Borough of Sutton,28/03/2020,6975220,"9,951.02",Tavistock & Portman NHS FT,24071,Peoples Services Directorate,External Legal Fees (Corporate Legal Approved),F277
http://opendatacommunities.org/id/london-borough-council/sutton,London Borough of Sutton,09/06/2020,6975307,"21,712.50",Tavistock & Portman NHS FT,24071,Peoples Services Directorate,External Legal Fees (Corporate Legal Approved),F277
http://opendatacommunities.org/id/london-borough-council/sutton,London Borough of Sutton,14/07/2020,6974962,"2,406.00",Royal Borough of Kingston upon Thames,17086,Peoples Services Directorate,Fees - Interpreters,F282
http://opendatacommunities.org/id/london-borough-council/sutton,London Borough of Sutton,14/07/2020,6974964,740,Royal Borough of Kingston upon Thames,17086,Peoples Services Directorate,Fees - Interpreters,F282
http://opendatacommunities.org/id/london-borough-council/sutton,London Borough of Sutton,14/07/2020,6974966,"1,055.25",Royal Borough of Kingston upon Thames,17086,Peoples Services Directorate,Fees - Interpreters,F282
http://opendatacommunities.org/id/london-borough-council/sutton,London Borough of Sutton,14/07/2020,6974968,530.6,Royal Borough of Kingston upon Thames,17086,Peoples Services Directorate,Fees - Interpreters,F282
http://opendatacommunities.org/id/london-borough-council/sutton,London Borough of Sutton,14/07/2020,6974969,"2,053.32",Royal Borough of Kingston upon Thames,17086,Peoples Services Directorate,Fees - Interpreters,F282
http://opendatacommunities.org/id/london-borough-council/sutton,London Borough of Sutton,14/07/2020,6974970,"1,065.00",Royal Borough of Kingston upon Thames,17086,Peoples Services Directorate,Fees - Interpreters,F282
http://opendatacommunities.org/id/london-borough-council/sutton,London Borough of Sutton,02/07/2020,6973835,"7,891.60",AECOM Ltd,22196,"Environment, Housing & Regeneration Directorate",Fees - Consultants (Ad Hoc),F283
http://opendatacommunities.org/id/london-borough-council/sutton,London Borough of Sutton,02/07/2020,6973836,"47,014.00",AECOM Ltd,22196,"Environment, Housing & Regeneration Directorate",Fees - Consultants (Ad Hoc),F283
http://opendatacommunities.org/id/london-borough-council/sutton,London Borough of Sutton,03/07/2020,6973837,"8,378.00",AECOM Ltd,22196,"Environment, Housing & Regeneration Directorate",Fees - Consultants (Ad Hoc),F283
http://opendatacommunities.org/id/london-borough-council/sutton,London Borough of Sutton,02/07/2020,6974474,625,AMSY Limited T/A Amsy Charted Surveyors,35275,Resources Directorate,Fees - Consultants (Ad Hoc),F283
http://opendatacommunities.org/id/london-borough-council/sutton,London Borough of Sutton,30/06/2020,6974175,"3,035.61",BGC European Holdings LP,26645,Non-Service Cost Centres,Fees - Consultants (Ad Hoc),F283
http://opendatacommunities.org/id/london-borough-council/sutton,London Borough of Sutton,22/06/2020,6973174,"1,425.00",Cleaner Greener Safer Happier Ltd,29981,"Environment, Housing & Regeneration Directorate",Fees - Consultants (Ad Hoc),F283
http://opendatacommunities.org/id/london-borough-council/sutton,London Borough of Sutton,11/06/2020,6973175,"1,425.00",Cleaner Greener Safer Happier Ltd,29981,"Environment, Housing & Regeneration Directorate",Fees - Consultants (Ad Hoc),F283
http://opendatacommunities.org/id/london-borough-council/sutton,London Borough of Sutton,22/06/2020,6973179,"10,925.00",Cleaner Greener Safer Happier Ltd,29981,"Environment, Housing & Regeneration Directorate",Fees - Consultants (Ad Hoc),F283
http://opendatacommunities.org/id/london-borough-council/sutton,London Borough of Sutton,02/07/2020,6973794,"6,175.00",Cornerstone Property Assets Limited,35046,Resources Directorate,Fees - Consultants (Ad Hoc),F283
http://opendatacommunities.org/id/london-borough-council/sutton,London Borough of Sutton,30/06/2020,6973672,"1,287.67",Imperial Treasury Services Ltd,35267,Non-Service Cost Centres,Fees - Consultants (Ad Hoc),F283
http://opendatacommunities.org/id/london-borough-council/sutton,London Borough of Sutton,10/07/2020,6974321,"46,650.00",Miss Saira Kabir Sheikh,20976,"Environment, Housing & Regeneration Directorate",Fees - Consultants (Ad Hoc),F283
http://opendatacommunities.org/id/london-borough-council/sutton,London Borough of Sutton,10/07/2020,6974346,"1,550.00",Miss Saira Kabir Sheikh,20976,"Environment, Housing & Regeneration Directorate",Fees - Consultants (Ad Hoc),F283
http://opendatacommunities.org/id/london-borough-council/sutton,London Borough of Sutton,29/07/2020,6975312,"-8,600.00",Miss Saira Kabir Sheikh,20976,"Environment, Housing & Regeneration Directorate",Fees - Consultants (Ad Hoc),F283
http://opendatacommunities.org/id/london-borough-council/sutton,London Borough of Sutton,30/04/2020,6974017,"2,000.00",NPS Property Consultants Ltd,35303,"Environment, Housing & Regeneration Directorate",Fees - Consultants (Ad Hoc),F283
http://opendatacommunities.org/id/london-borough-council/sutton,London Borough of Sutton,15/06/2020,6973634,"11,950.41",PARK EDUCATION & TRAINING CENTRE,34400,Peoples Services Directorate,Fees - Consultants (Ad Hoc),F283
http://opendatacommunities.org/id/london-borough-council/sutton,London Borough of Sutton,13/07/2020,6974664,"7,437.82",PARK EDUCATION & TRAINING CENTRE,34400,Peoples Services Directorate,Fees - Consultants (Ad Hoc),F283
http://opendatacommunities.org/id/london-borough-council/sutton,London Borough of Sutton,14/07/2020,6974615,"23,112.00",Positive Families Partnership LLP,30278,Peoples Services Directorate,Fees - Consultants (Ad Hoc),F283
http://opendatacommunities.org/id/london-borough-council/sutton,London Borough of Sutton,24/06/2020,6974425,"15,747.76",Sutton And District Training Ltd,28788,Peoples Services Directorate,Fees - Consultants (Ad Hoc),F283
http://opendatacommunities.org/id/london-borough-council/sutton,London Borough of Sutton,10/07/2020,6974347,"4,000.00",REDACTED - PERSONAL DATA,35415,"Environment, Housing & Regeneration Directorate",Fees - Consultants (Ad Hoc),F283
http://opendatacommunities.org/id/london-borough-council/sutton,London Borough of Sutton,14/07/2020,6974637,550,Vail Williams LLP,14801,Resources Directorate,Fees - Consultants (Ad Hoc),F283
http://opendatacommunities.org/id/london-borough-council/sutton,London Borough of Sutton,30/06/2020,6974686,"1,125.00",Willows End Training,34374,Peoples Services Directorate,Fees - Consultants (Ad Hoc),F283
http://opendatacommunities.org/id/london-borough-council/sutton,London Borough of Sutton,30/06/2020,6974692,494.2,Willows End Training,34374,Peoples Services Directorate,Fees - Consultants (Ad Hoc),F283
http://opendatacommunities.org/id/london-borough-council/sutton,London Borough of Sutton,24/07/2020,6975250,736,ASSOCIATON OF ACCOUNTING TECHNICIANS,34474,Peoples Services Directorate,Fees - Exams,F285
http://opendatacommunities.org/id/london-borough-council/sutton,London Borough of Sutton,10/07/2020,6974385,"1,400.00",BCS Learning & Development Ltd,35092,Peoples Services Directorate,Fees - Exams,F285
http://opendatacommunities.org/id/london-borough-council/sutton,London Borough of Sutton,08/06/2020,6973760,"1,392.00",CPCAB,34532,Peoples Services Directorate,Fees - Exams,F285
http://opendatacommunities.org/id/london-borough-council/sutton,London Borough of Sutton,17/06/2020,6973757,655,Trinity College London,14680,Peoples Services Directorate,Fees - Exams,F285
http://opendatacommunities.org/id/london-borough-council/sutton,London Borough of Sutton,06/07/2020,6974314,"10,334.00",Trinity College London,14680,Peoples Services Directorate,Fees - Exams,F285
http://opendatacommunities.org/id/london-borough-council/sutton,London Borough of Sutton,31/05/2020,6973523,"-18,149.00",Grant Thornton Uk LLP,27828,Resources Directorate,External Audit Fees,F291
http://opendatacommunities.org/id/london-borough-council/sutton,London Borough of Sutton,30/06/2020,6973808,"3,046.40",Rand Associates,10005,Resources Directorate,Fees - Stock Condition survey,F298
http://opendatacommunities.org/id/london-borough-council/sutton,London Borough of Sutton,01/04/2020,6974710,"2,223.00",Alpha Parking Ltd,35495,"Environment, Housing & Regeneration Directorate",Fees - Other,F299
http://opendatacommunities.org/id/london-borough-council/sutton,London Borough of Sutton,14/02/2019,6974087,511.57,Coram Voice,21584,Peoples Services Directorate,Fees - Other,F299
http://opendatacommunities.org/id/london-borough-council/sutton,London Borough of Sutton,03/07/2020,6973829,"1,706.39",Dr Gbenga Sunday Asigo,26990,Peoples Services Directorate,Fees - Other,F299
http://opendatacommunities.org/id/london-borough-council/sutton,London Borough of Sutton,11/07/2020,6974373,700,Dr M O Oladinni,26649,Peoples Services Directorate,Fees - Other,F299
http://opendatacommunities.org/id/london-borough-council/sutton,London Borough of Sutton,02/05/2020,6973073,"3,513.90",Epsom & St Helier Nhs Trust,11542,Peoples Services Directorate,Fees - Other,F299
http://opendatacommunities.org/id/london-borough-council/sutton,London Borough of Sutton,18/06/2020,6975269,"1,305.00",Inform Cpi Ltd,25904,Resources Directorate,Fees - Other,F299
http://opendatacommunities.org/id/london-borough-council/sutton,London Borough of Sutton,02/07/2020,6973671,504.65,Jigsaw4u Limited,12381,Peoples Services Directorate,Fees - Other,F299
http://opendatacommunities.org/id/london-borough-council/sutton,London Borough of Sutton,09/07/2020,6974282,808.08,Jigsaw4u Limited,12381,Peoples Services Directorate,Fees - Other,F299
http://opendatacommunities.org/id/london-borough-council/sutton,London Borough of Sutton,27/07/2020,6975187,575.1,Jigsaw4u Limited,12381,Peoples Services Directorate,Fees - Other,F299
http://opendatacommunities.org/id/london-borough-council/sutton,London Borough of Sutton,23/06/2020,6973224,"32,000.00",Moody's Investors Service Ltd,99827,Resources Directorate,Fees - Other,F299
http://opendatacommunities.org/id/london-borough-council/sutton,London Borough of Sutton,13/07/2020,6974414,"4,220.00",Mrs CCA Davies,27702,Peoples Services Directorate,Fees - Other,F299
http://opendatacommunities.org/id/london-borough-council/sutton,London Borough of Sutton,28/07/2020,6975208,"6,000.00",Nicola Brownjohn Safeguarding Consultancy Ltd,35493,Peoples Services Directorate,Fees - Other,F299
http://opendatacommunities.org/id/london-borough-council/sutton,London Borough of Sutton,10/07/2020,6974342,"1,500.00",Oxygen Finance Limited,34609,Resources Directorate,Fees - Other,F299
http://opendatacommunities.org/id/london-borough-council/sutton,London Borough of Sutton,09/06/2020,6972893,"17,683.50",Sutton Housing Partnership,18765,HRA,Fees - Other,F299
http://opendatacommunities.org/id/london-borough-council/sutton,London Borough of Sutton,28/05/2020,6973600,"8,855.77",Sutton Housing Partnership,18765,"Environment, Housing & Regeneration Directorate",Fees - Other,F299
http://opendatacommunities.org/id/london-borough-council/sutton,London Borough of Sutton,30/06/2020,6973736,450,The Dextrous Web Ltd,35471,"Environment, Housing & Regeneration Directorate",Fees - Other,F299
http://opendatacommunities.org/id/london-borough-council/sutton,London Borough of Sutton,07/07/2020,6974496,"1,960.00",Capita Business Services Ltd,10780,Peoples Services Directorate,Miscellaneous Training Courses,F304
http://opendatacommunities.org/id/london-borough-council/sutton,London Borough of Sutton,28/04/2020,6973636,"20,209.37",Zurich Municipal,21353,Resources Directorate,Insurance Premiums (Other),F330
http://opendatacommunities.org/id/london-borough-council/sutton,London Borough of Sutton,28/04/2020,6974021,"283,740.71",Zurich Municipal,21353,Resources Directorate,Insurance Premiums (Other),F330
http://opendatacommunities.org/id/london-borough-council/sutton,London Borough of Sutton,01/04/2020,6975088,562.5,Zurich Municipal,21353,Resources Directorate,Insurance Premiums (Other),F330
http://opendatacommunities.org/id/london-borough-council/sutton,London Borough of Sutton,16/06/2020,6974849,611.34,Capita Business Services Ltd,10780,Peoples Services Directorate,Other Services,F340
http://opendatacommunities.org/id/london-borough-council/sutton,London Borough of Sutton,29/07/2020,6975280,"-10,390.00",Cheam High School (Academy),23996,Peoples Services Directorate,Other Services,F340
http://opendatacommunities.org/id/london-borough-council/sutton,London Borough of Sutton,03/07/2020,6973858,"5,955.93",Cognus Ltd,26829,Peoples Services Directorate,Other Services,F340
http://opendatacommunities.org/id/london-borough-council/sutton,London Borough of Sutton,01/07/2020,6973710,"4,200.00",Emerging Field Ltd,35401,"Environment, Housing & Regeneration Directorate",Other Services,F340
http://opendatacommunities.org/id/london-borough-council/sutton,London Borough of Sutton,31/07/2020,6975435,875,Greater London Authority,11908,"Environment, Housing & Regeneration Directorate",Other Services,F340
http://opendatacommunities.org/id/london-borough-council/sutton,London Borough of Sutton,19/06/2020,6974528,"3,135.00",Metric Group Ltd,12947,"Environment, Housing & Regeneration Directorate",Other Services,F340
http://opendatacommunities.org/id/london-borough-council/sutton,London Borough of Sutton,16/07/2020,6974699,608,Miss T Johnson,99853,"Environment, Housing & Regeneration Directorate",Other Services,F340
http://opendatacommunities.org/id/london-borough-council/sutton,London Borough of Sutton,21/07/2020,6974982,596.56,Mitie Technical Facilities Management Ltd,97595,Chief Executive's Directorate,Other Services,F340
http://opendatacommunities.org/id/london-borough-council/sutton,London Borough of Sutton,06/07/2020,6973902,"81,266.00",SLM Ltd,23909,Chief Executive's Directorate,Other Services,F340
http://opendatacommunities.org/id/london-borough-council/sutton,London Borough of Sutton,28/05/2020,6975128,"1,200.00",Vail Williams LLP,14801,Resources Directorate,Other Services,F340
http://opendatacommunities.org/id/london-borough-council/sutton,London Borough of Sutton,14/07/2020,6974630,675.93,DSI Billing Services Ltd,17962,Resources Directorate,Postages - General,F350
http://opendatacommunities.org/id/london-borough-council/sutton,London Borough of Sutton,14/07/2020,6974630,675.93,DSI Billing Services Ltd,17962,Resources Directorate,Postages - General,F350
http://opendatacommunities.org/id/london-borough-council/sutton,London Borough of Sutton,29/07/2020,6975346,"1,351.16",DSI Billing Services Ltd,17962,Resources Directorate,Postages - General,F350
http://opendatacommunities.org/id/london-borough-council/sutton,London Borough of Sutton,29/07/2020,6975346,"1,351.16",DSI Billing Services Ltd,17962,Resources Directorate,Postages - General,F350
http://opendatacommunities.org/id/london-borough-council/sutton,London Borough of Sutton,29/06/2020,6973777,"1,532.61",Royal Mail,13837,Resources Directorate,Postages - General,F350
http://opendatacommunities.org/id/london-borough-council/sutton,London Borough of Sutton,13/07/2020,6974840,"1,937.82",Royal Mail,13837,Resources Directorate,Postages - General,F350
http://opendatacommunities.org/id/london-borough-council/sutton,London Borough of Sutton,20/07/2020,6975177,"2,718.27",Royal Mail,13837,Resources Directorate,Postages - General,F350
http://opendatacommunities.org/id/london-borough-council/sutton,London Borough of Sutton,02/07/2020,6974240,800,Odinn Orn Hilmarsson,35312,Resources Directorate,Corporate Publicity,F356
http://opendatacommunities.org/id/london-borough-council/sutton,London Borough of Sutton,01/07/2020,6974001,"1,168.21",AdEPT Education,10310,Peoples Services Directorate,Telephones - Rentals,F370
http://opendatacommunities.org/id/london-borough-council/sutton,London Borough of Sutton,13/05/2020,6973767,"1,605.00",British Telecommunications Plc,10574,Resources Directorate,Telephones - Rentals,F370
http://opendatacommunities.org/id/london-borough-council/sutton,London Borough of Sutton,24/05/2020,6973339,417.65,EE Airtime,24846,Resources Directorate,Telephones - Rentals,F370
http://opendatacommunities.org/id/london-borough-council/sutton,London Borough of Sutton,07/07/2020,6974639,"1,846.48",Virgin Media Limited,97402,Resources Directorate,Telephones - Rentals,F370
http://opendatacommunities.org/id/london-borough-council/sutton,London Borough of Sutton,29/07/2020,6975320,"-1,846.49",Virgin Media Limited,97402,Resources Directorate,Telephones - Rentals,F370
http://opendatacommunities.org/id/london-borough-council/sutton,London Borough of Sutton,08/07/2020,6974099,"-1,885.34",Virgin Media Payments Ltd (Telewest Communications,14559,Resources Directorate,Telephones - Rentals,F370
http://opendatacommunities.org/id/london-borough-council/sutton,London Borough of Sutton,07/07/2020,6974901,"1,846.48",Virgin Media Payments Ltd (Telewest Communications,14559,Resources Directorate,Telephones - Rentals,F370
http://opendatacommunities.org/id/london-borough-council/sutton,London Borough of Sutton,23/06/2020,6975066,"4,615.79",Virgin Media Payments Ltd (Telewest Communications,14559,Resources Directorate,Telephones - Rentals,F370
http://opendatacommunities.org/id/london-borough-council/sutton,London Borough of Sutton,22/07/2020,6975067,"4,615.73",Virgin Media Payments Ltd (Telewest Communications,14559,Resources Directorate,Telephones - Rentals,F370
http://opendatacommunities.org/id/london-borough-council/sutton,London Borough of Sutton,31/12/2019,6973332,770.58,Advanced Health & Care,23939,Peoples Services Directorate,Telephones - Other Expenses,F373
http://opendatacommunities.org/id/london-borough-council/sutton,London Borough of Sutton,31/12/2019,6973333,784.29,Advanced Health & Care,23939,Peoples Services Directorate,Telephones - Other Expenses,F373
http://opendatacommunities.org/id/london-borough-council/sutton,London Borough of Sutton,27/03/2020,6973334,735.44,Advanced Health & Care,23939,Peoples Services Directorate,Telephones - Other Expenses,F373
http://opendatacommunities.org/id/london-borough-council/sutton,London Borough of Sutton,28/02/2020,6973335,826,Advanced Health & Care,23939,Peoples Services Directorate,Telephones - Other Expenses,F373
http://opendatacommunities.org/id/london-borough-council/sutton,London Borough of Sutton,27/04/2020,6973336,759.44,Advanced Health & Care,23939,Peoples Services Directorate,Telephones - Other Expenses,F373
http://opendatacommunities.org/id/london-borough-council/sutton,London Borough of Sutton,31/05/2020,6973337,719.41,Advanced Health & Care,23939,Peoples Services Directorate,Telephones - Other Expenses,F373
http://opendatacommunities.org/id/london-borough-council/sutton,London Borough of Sutton,24/05/2020,6972552,"1,262.67",EE Airtime,24846,Peoples Services Directorate,Telephones - Other Expenses,F373
http://opendatacommunities.org/id/london-borough-council/sutton,London Borough of Sutton,07/04/2020,6973331,"11,255.85",Advanced Health & Care,23939,Peoples Services Directorate,Purchase of IT Equipment,F380
http://opendatacommunities.org/id/london-borough-council/sutton,London Borough of Sutton,21/07/2020,6975038,"19,000.00",Servium Ltd,35877,Resources Directorate,Purchase of IT Equipment,F380
http://opendatacommunities.org/id/london-borough-council/sutton,London Borough of Sutton,20/07/2020,6974894,"1,478.40",Supportplan Ltd,29685,Chief Executive's Directorate,Purchase of IT Equipment,F380
http://opendatacommunities.org/id/london-borough-council/sutton,London Borough of Sutton,26/06/2020,6973856,"5,225.00",Capita Business Services Ltd,10780,Resources Directorate,Purchase of Software,F381
http://opendatacommunities.org/id/london-borough-council/sutton,London Borough of Sutton,26/06/2020,6973857,"5,225.00",Capita Business Services Ltd,10780,Resources Directorate,Purchase of Software,F381
http://opendatacommunities.org/id/london-borough-council/sutton,London Borough of Sutton,01/06/2020,6974215,"30,450.00",Quality Education Solutions Ltd T/A QES,21028,Peoples Services Directorate,Purchase of Software,F381
http://opendatacommunities.org/id/london-borough-council/sutton,London Borough of Sutton,28/01/2020,6965232,"2,700.00",Unit 4 Business Software Ltd,23227,Resources Directorate,Purchase of Software,F381
http://opendatacommunities.org/id/london-borough-council/sutton,London Borough of Sutton,28/01/2020,6965233,"2,250.00",Unit 4 Business Software Ltd,23227,Resources Directorate,Purchase of Software,F381
http://opendatacommunities.org/id/london-borough-council/sutton,London Borough of Sutton,28/01/2020,6965234,"1,600.00",Unit 4 Business Software Ltd,23227,Resources Directorate,Purchase of Software,F381
http://opendatacommunities.org/id/london-borough-council/sutton,London Borough of Sutton,27/03/2020,6969032,"2,745.00",Unit 4 Business Software Ltd,23227,Resources Directorate,Purchase of Software,F381
http://opendatacommunities.org/id/london-borough-council/sutton,London Borough of Sutton,23/06/2020,6973209,"26,489.86",Chroma Vision Limited,20351,"Environment, Housing & Regeneration Directorate",IT Equipment - Repair and Maintenance,F382
http://opendatacommunities.org/id/london-borough-council/sutton,London Borough of Sutton,23/06/2020,6973210,"30,425.11",Chroma Vision Limited,20351,"Environment, Housing & Regeneration Directorate",IT Equipment - Repair and Maintenance,F382
http://opendatacommunities.org/id/london-borough-council/sutton,London Borough of Sutton,01/07/2020,6973667,420,Supportplan Ltd,29685,Chief Executive's Directorate,IT Equipment - Repair and Maintenance,F382
http://opendatacommunities.org/id/london-borough-council/sutton,London Borough of Sutton,30/06/2020,6973878,"13,625.31",Bottomline Technologies Ltd,25145,Resources Directorate,Fees - Computer Software,F384
http://opendatacommunities.org/id/london-borough-council/sutton,London Borough of Sutton,30/06/2020,6973670,800,Ovaltech Ltd t/A Otech Ltd,13361,Resources Directorate,Fees - Computer Software,F384
http://opendatacommunities.org/id/london-borough-council/sutton,London Borough of Sutton,21/07/2020,6974908,"3,855.05",Oxford Computer Consultants LTD,16133,Resources Directorate,Fees - Computer Software,F384
http://opendatacommunities.org/id/london-borough-council/sutton,London Borough of Sutton,06/07/2020,6973920,"2,096.84",Paypoint Network Ltd (Payment requests),25021,Resources Directorate,Fees - Computer Software,F384
http://opendatacommunities.org/id/london-borough-council/sutton,London Borough of Sutton,14/07/2020,6974555,"2,220.00",Paypoint Network Ltd (Payment requests),25021,Resources Directorate,Fees - Computer Software,F384
http://opendatacommunities.org/id/london-borough-council/sutton,London Borough of Sutton,21/07/2020,6974973,"2,777.15",Paypoint Network Ltd (Payment requests),25021,Resources Directorate,Fees - Computer Software,F384
http://opendatacommunities.org/id/london-borough-council/sutton,London Borough of Sutton,28/07/2020,6975213,"2,477.52",Paypoint Network Ltd (Payment requests),25021,Resources Directorate,Fees - Computer Software,F384
http://opendatacommunities.org/id/london-borough-council/sutton,London Borough of Sutton,06/07/2020,6973915,"15,910.66",Servelec Social Care Ltd,24747,Resources Directorate,Fees - Computer Software,F384
http://opendatacommunities.org/id/london-borough-council/sutton,London Borough of Sutton,03/03/2020,6973919,"1,756.00",ADCS LTD,11126,Peoples Services Directorate,Subscriptions - General,F450
http://opendatacommunities.org/id/london-borough-council/sutton,London Borough of Sutton,26/06/2019,6975291,"5,000.00",City of London Corporation,22388,Peoples Services Directorate,Subscriptions - General,F450
http://opendatacommunities.org/id/london-borough-council/sutton,London Borough of Sutton,23/06/2020,6973621,"9,692.00",Housemark Ltd,12159,HRA,Subscriptions - General,F450
http://opendatacommunities.org/id/london-borough-council/sutton,London Borough of Sutton,02/07/2020,6974365,"38,275.00",London Councils,10261,Resources Directorate,Subscriptions - General,F450
http://opendatacommunities.org/id/london-borough-council/sutton,London Borough of Sutton,01/04/2020,6975303,550,London Telecare Ltd,21002,Peoples Services Directorate,Subscriptions - General,F450
http://opendatacommunities.org/id/london-borough-council/sutton,London Borough of Sutton,14/07/2020,6974632,910,Rics,13807,Resources Directorate,Subscriptions - General,F450
http://opendatacommunities.org/id/london-borough-council/sutton,London Borough of Sutton,30/06/2020,6973575,"14,994.11",Servelec Youth Services Limited,33446,Peoples Services Directorate,Subscriptions - General,F450
http://opendatacommunities.org/id/london-borough-council/sutton,London Borough of Sutton,06/05/2020,6975230,620,The UK District Energy Association,26083,"Environment, Housing & Regeneration Directorate",Subscriptions - General,F450
http://opendatacommunities.org/id/london-borough-council/sutton,London Borough of Sutton,01/07/2020,6973897,448,Thomson Reuters,14511,Resources Directorate,Subscriptions - General,F450
http://opendatacommunities.org/id/london-borough-council/sutton,London Borough of Sutton,01/06/2020,6975366,479,Thomson Reuters,14511,Resources Directorate,Subscriptions - General,F450
http://opendatacommunities.org/id/london-borough-council/sutton,London Borough of Sutton,19/06/2020,6975308,"10,000.00",West Midlands Pension Fund,28911,Non-Service Cost Centres,Subscriptions - General,F450
http://opendatacommunities.org/id/london-borough-council/sutton,London Borough of Sutton,31/05/2020,6973393,525,Advocacy For All,24795,Peoples Services Directorate,Provider Contract Payments,F470
http://opendatacommunities.org/id/london-borough-council/sutton,London Borough of Sutton,30/06/2020,6973679,"12,916.66",Advocacy For All,24795,Peoples Services Directorate,Provider Contract Payments,F470
http://opendatacommunities.org/id/london-borough-council/sutton,London Borough of Sutton,30/06/2020,6973680,"2,916.67",Advocacy For All,24795,Peoples Services Directorate,Provider Contract Payments,F470
http://opendatacommunities.org/id/london-borough-council/sutton,London Borough of Sutton,30/07/2020,6975372,"2,916.67",Advocacy For All,24795,Peoples Services Directorate,Provider Contract Payments,F470
http://opendatacommunities.org/id/london-borough-council/sutton,London Borough of Sutton,30/07/2020,6975373,"12,916.66",Advocacy For All,24795,Peoples Services Directorate,Provider Contract Payments,F470
http://opendatacommunities.org/id/london-borough-council/sutton,London Borough of Sutton,29/06/2020,6973556,"22,754.40",Ambient Support Limited,21702,Peoples Services Directorate,Provider Contract Payments,F470
http://opendatacommunities.org/id/london-borough-council/sutton,London Borough of Sutton,27/07/2020,6975163,"22,754.40",Ambient Support Limited,21702,Peoples Services Directorate,Provider Contract Payments,F470
http://opendatacommunities.org/id/london-borough-council/sutton,London Borough of Sutton,13/07/2020,40437045,556.5,Barnardo's,10370,Peoples Services Directorate,Provider Contract Payments,F470
http://opendatacommunities.org/id/london-borough-council/sutton,London Borough of Sutton,13/07/2020,40437048,742,Barnardo's,10370,Peoples Services Directorate,Provider Contract Payments,F470
http://opendatacommunities.org/id/london-borough-council/sutton,London Borough of Sutton,13/07/2020,40437050,661.5,Barnardo's,10370,Peoples Services Directorate,Provider Contract Payments,F470
http://opendatacommunities.org/id/london-borough-council/sutton,London Borough of Sutton,13/07/2020,40437051,441,Barnardo's,10370,Peoples Services Directorate,Provider Contract Payments,F470
http://opendatacommunities.org/id/london-borough-council/sutton,London Borough of Sutton,13/07/2020,40437052,650.25,Barnardo's,10370,Peoples Services Directorate,Provider Contract Payments,F470
http://opendatacommunities.org/id/london-borough-council/sutton,London Borough of Sutton,13/07/2020,40437059,514.5,Barnardo's,10370,Peoples Services Directorate,Provider Contract Payments,F470
http://opendatacommunities.org/id/london-borough-council/sutton,London Borough of Sutton,13/07/2020,40437060,563.5,Barnardo's,10370,Peoples Services Directorate,Provider Contract Payments,F470
http://opendatacommunities.org/id/london-borough-council/sutton,London Borough of Sutton,19/06/2020,6973298,"9,105.08",Central London Community Healthcare NHS Trust,29865,Chief Executive's Directorate,Provider Contract Payments,F470
http://opendatacommunities.org/id/london-borough-council/sutton,London Borough of Sutton,30/06/2020,6974874,"6,339.40",Chelsea and Westminster NHS ft,28891,Chief Executive's Directorate,Provider Contract Payments,F470
http://opendatacommunities.org/id/london-borough-council/sutton,London Borough of Sutton,14/07/2020,6974542,"5,000.00",Community Action Sutton,14439,Chief Executive's Directorate,Provider Contract Payments,F470
http://opendatacommunities.org/id/london-borough-council/sutton,London Borough of Sutton,01/07/2020,6973759,"151,231.67",Cranstoun,11184,Chief Executive's Directorate,Provider Contract Payments,F470
http://opendatacommunities.org/id/london-borough-council/sutton,London Borough of Sutton,01/07/2020,6974383,"7,036.20",Cranstoun,11184,Resources Directorate,Provider Contract Payments,F470
http://opendatacommunities.org/id/london-borough-council/sutton,London Borough of Sutton,30/03/2020,6972971,"15,856.03",Croydon Health Service NHST,26283,Chief Executive's Directorate,Provider Contract Payments,F470
http://opendatacommunities.org/id/london-borough-council/sutton,London Borough of Sutton,01/07/2020,6973891,"-1,383.61",Enviva Paediatric Care/formerlyPNL Nursing Link Ltd (Pnl),28212,Peoples Services Directorate,Provider Contract Payments,F470
http://opendatacommunities.org/id/london-borough-council/sutton,London Borough of Sutton,08/07/2020,40437047,"1,307.25",Enviva Paediatric Care/formerlyPNL Nursing Link Ltd (Pnl),28212,Peoples Services Directorate,Provider Contract Payments,F470
http://opendatacommunities.org/id/london-borough-council/sutton,London Borough of Sutton,01/07/2020,40437055,"3,401.30",Enviva Paediatric Care/formerlyPNL Nursing Link Ltd (Pnl),28212,Peoples Services Directorate,Provider Contract Payments,F470
http://opendatacommunities.org/id/london-borough-council/sutton,London Borough of Sutton,08/07/2020,40437056,426.14,Enviva Paediatric Care/formerlyPNL Nursing Link Ltd (Pnl),28212,Peoples Services Directorate,Provider Contract Payments,F470
http://opendatacommunities.org/id/london-borough-council/sutton,London Borough of Sutton,08/07/2020,40437058,"23,123.45",Enviva Paediatric Care/formerlyPNL Nursing Link Ltd (Pnl),28212,Peoples Services Directorate,Provider Contract Payments,F470
http://opendatacommunities.org/id/london-borough-council/sutton,London Borough of Sutton,03/06/2020,6972607,"92,158.37",Epsom & St Helier Nhs Trust,11542,Chief Executive's Directorate,Provider Contract Payments,F470
http://opendatacommunities.org/id/london-borough-council/sutton,London Borough of Sutton,02/06/2020,6972611,"7,841.63",Epsom & St Helier Nhs Trust,11542,Chief Executive's Directorate,Provider Contract Payments,F470
http://opendatacommunities.org/id/london-borough-council/sutton,London Borough of Sutton,20/05/2020,6973359,"92,158.37",Epsom & St Helier Nhs Trust,11542,Chief Executive's Directorate,Provider Contract Payments,F470
http://opendatacommunities.org/id/london-borough-council/sutton,London Borough of Sutton,04/02/2020,6973890,"92,158.37",Epsom & St Helier Nhs Trust,11542,Chief Executive's Directorate,Provider Contract Payments,F470
http://opendatacommunities.org/id/london-borough-council/sutton,London Borough of Sutton,02/07/2020,6974583,"7,841.63",Epsom & St Helier Nhs Trust,11542,Chief Executive's Directorate,Provider Contract Payments,F470
http://opendatacommunities.org/id/london-borough-council/sutton,London Borough of Sutton,24/04/2020,6971013,"2,096.95",Guys and St Thomas NHS Foundation Trust,25430,Chief Executive's Directorate,Provider Contract Payments,F470
http://opendatacommunities.org/id/london-borough-council/sutton,London Borough of Sutton,26/03/2020,6971654,"1,898.46",Guys and St Thomas NHS Foundation Trust,25430,Chief Executive's Directorate,Provider Contract Payments,F470
http://opendatacommunities.org/id/london-borough-council/sutton,London Borough of Sutton,16/06/2020,6974862,"7,361.51",Guys and St Thomas NHS Foundation Trust,25430,Chief Executive's Directorate,Provider Contract Payments,F470
http://opendatacommunities.org/id/london-borough-council/sutton,London Borough of Sutton,30/06/2020,6974089,"1,574.91",Has Technology Ltd  (Care Management),20716,Peoples Services Directorate,Provider Contract Payments,F470
http://opendatacommunities.org/id/london-borough-council/sutton,London Borough of Sutton,01/07/2020,6974483,816,Havant & East Hants Mind,25776,Peoples Services Directorate,Provider Contract Payments,F470
http://opendatacommunities.org/id/london-borough-council/sutton,London Borough of Sutton,01/07/2020,6973721,"27,490.50",Healthwatch Sutton Ltd,24984,Resources Directorate,Provider Contract Payments,F470
http://opendatacommunities.org/id/london-borough-council/sutton,London Borough of Sutton,22/07/2020,6975020,"5,000.00",Home-Start Sutton,14429,Resources Directorate,Provider Contract Payments,F470
http://opendatacommunities.org/id/london-borough-council/sutton,London Borough of Sutton,28/04/2020,6972434,758.75,Kings College Hospital NHS Foundation Trust,26311,Chief Executive's Directorate,Provider Contract Payments,F470
http://opendatacommunities.org/id/london-borough-council/sutton,London Borough of Sutton,01/07/2020,6973708,"7,000.00",London Youth Games,12719,Chief Executive's Directorate,Provider Contract Payments,F470
http://opendatacommunities.org/id/london-borough-council/sutton,London Borough of Sutton,31/05/2020,6972192,"4,408.50",Preventx Limited,27998,Chief Executive's Directorate,Provider Contract Payments,F470
http://opendatacommunities.org/id/london-borough-council/sutton,London Borough of Sutton,30/06/2020,6973786,"3,657.50",Preventx Limited,27998,Chief Executive's Directorate,Provider Contract Payments,F470
http://opendatacommunities.org/id/london-borough-council/sutton,London Borough of Sutton,30/06/2020,6973597,"5,893.00",Rethink,13756,Peoples Services Directorate,Provider Contract Payments,F470
http://opendatacommunities.org/id/london-borough-council/sutton,London Borough of Sutton,23/06/2020,6973216,"2,500.00",Riverside Community Association,13794,"Environment, Housing & Regeneration Directorate",Provider Contract Payments,F470
http://opendatacommunities.org/id/london-borough-council/sutton,London Borough of Sutton,21/06/2017,6971284,453,Royal Berkshire Nhs Foundation Trust,26259,Chief Executive's Directorate,Provider Contract Payments,F470
http://opendatacommunities.org/id/london-borough-council/sutton,London Borough of Sutton,03/07/2020,6973845,"61,583.50",Spear,99853,"Environment, Housing & Regeneration Directorate",Provider Contract Payments,F470
http://opendatacommunities.org/id/london-borough-council/sutton,London Borough of Sutton,17/07/2020,6974929,"49,995.00",Sutton Carers Centre,14457,Peoples Services Directorate,Provider Contract Payments,F470
http://opendatacommunities.org/id/london-borough-council/sutton,London Borough of Sutton,20/07/2020,6974931,"5,629.75",Sutton Carers Centre,14457,Resources Directorate,Provider Contract Payments,F470
http://opendatacommunities.org/id/london-borough-council/sutton,London Borough of Sutton,16/07/2020,6974736,"4,000.00",Sutton Community Works,24175,"Environment, Housing & Regeneration Directorate",Provider Contract Payments,F470
http://opendatacommunities.org/id/london-borough-council/sutton,London Borough of Sutton,20/07/2020,6974889,"13,475.90",Sutton Old Peoples Welfare Committee,14411,Chief Executive's Directorate,Provider Contract Payments,F470
http://opendatacommunities.org/id/london-borough-council/sutton,London Borough of Sutton,03/06/2020,6973962,900,What Goes Around Limited,35421,"Environment, Housing & Regeneration Directorate",Provider Contract Payments,F470
http://opendatacommunities.org/id/london-borough-council/sutton,London Borough of Sutton,01/07/2020,6974779,"1,260.00",Wrythe Green Surgery,22666,Chief Executive's Directorate,Provider Contract Payments,F470
http://opendatacommunities.org/id/london-borough-council/sutton,London Borough of Sutton,11/06/2020,6973240,"1,848.96",Your Healthcare CIC,23857,Chief Executive's Directorate,Provider Contract Payments,F470
http://opendatacommunities.org/id/london-borough-council/sutton,London Borough of Sutton,08/07/2020,6974478,944.7,Hilliard Bros. (Ewell) Ltd,35414,Resources Directorate,Assistance to Voluntary Organisations,F471
http://opendatacommunities.org/id/london-borough-council/sutton,London Borough of Sutton,15/07/2020,6974937,810.1,Hilliard Bros. (Ewell) Ltd,35414,Resources Directorate,Assistance to Voluntary Organisations,F471
http://opendatacommunities.org/id/london-borough-council/sutton,London Borough of Sutton,22/07/2020,6975034,"1,178.25",Hilliard Bros. (Ewell) Ltd,35414,Resources Directorate,Assistance to Voluntary Organisations,F471
http://opendatacommunities.org/id/london-borough-council/sutton,London Borough of Sutton,08/07/2020,6974157,"10,000.00",99Home Ltd,99879,"Environment, Housing & Regeneration Directorate",Grants,F473
http://opendatacommunities.org/id/london-borough-council/sutton,London Borough of Sutton,08/07/2020,6974116,"5,000.00",Analyst LTD,99879,"Environment, Housing & Regeneration Directorate",Grants,F473
http://opendatacommunities.org/id/london-borough-council/sutton,London Borough of Sutton,09/07/2020,6974272,"5,000.00",Augustus Press Limited,99879,"Environment, Housing & Regeneration Directorate",Grants,F473
http://opendatacommunities.org/id/london-borough-council/sutton,London Borough of Sutton,10/07/2020,6974358,"5,000.00",Axalt Services Limited,99879,"Environment, Housing & Regeneration Directorate",Grants,F473
http://opendatacommunities.org/id/london-borough-council/sutton,London Borough of Sutton,08/07/2020,6974096,"5,000.00",Backs and Feet Ltd Osteopaths and Podiatrists,99879,"Environment, Housing & Regeneration Directorate",Grants,F473
http://opendatacommunities.org/id/london-borough-council/sutton,London Borough of Sutton,08/07/2020,6974114,"5,000.00",BDG Security LTD,99879,"Environment, Housing & Regeneration Directorate",Grants,F473
http://opendatacommunities.org/id/london-borough-council/sutton,London Borough of Sutton,09/07/2020,6974287,"10,000.00",Bead Electrical Services Ltd,99879,"Environment, Housing & Regeneration Directorate",Grants,F473
http://opendatacommunities.org/id/london-borough-council/sutton,London Borough of Sutton,09/07/2020,6974288,"5,000.00",Beeches Tree Care Ltd,99879,"Environment, Housing & Regeneration Directorate",Grants,F473
http://opendatacommunities.org/id/london-borough-council/sutton,London Borough of Sutton,09/07/2020,6974245,"5,000.00",Bellwether Solicitors,99879,"Environment, Housing & Regeneration Directorate",Grants,F473
http://opendatacommunities.org/id/london-borough-council/sutton,London Borough of Sutton,09/07/2020,6974274,"10,000.00",Bespoke Business Finance,99879,"Environment, Housing & Regeneration Directorate",Grants,F473
http://opendatacommunities.org/id/london-borough-council/sutton,London Borough of Sutton,08/07/2020,6974225,"5,000.00",Blue Arrow Cleaners Limited,99879,"Environment, Housing & Regeneration Directorate",Grants,F473
http://opendatacommunities.org/id/london-borough-council/sutton,London Borough of Sutton,08/07/2020,6974160,"5,000.00",BRILLSOL LTD,99879,"Environment, Housing & Regeneration Directorate",Grants,F473
http://opendatacommunities.org/id/london-borough-council/sutton,London Borough of Sutton,10/07/2020,6974351,"10,000.00",Bumpsa Daisies Nursery Ltd,99879,"Environment, Housing & Regeneration Directorate",Grants,F473
http://opendatacommunities.org/id/london-borough-council/sutton,London Borough of Sutton,10/07/2020,6974299,"5,000.00",BXINS Direct Limited,99879,"Environment, Housing & Regeneration Directorate",Grants,F473
http://opendatacommunities.org/id/london-borough-council/sutton,London Borough of Sutton,08/07/2020,6974135,"5,000.00",C & B Finance LTD,99879,"Environment, Housing & Regeneration Directorate",Grants,F473
http://opendatacommunities.org/id/london-borough-council/sutton,London Borough of Sutton,08/07/2020,6974118,"10,000.00",CW Cleaning Specialists,99879,"Environment, Housing & Regeneration Directorate",Grants,F473
http://opendatacommunities.org/id/london-borough-council/sutton,London Borough of Sutton,13/07/2020,6974454,"10,000.00",Cafe in the park ltd T/A Simon Clark,99879,"Environment, Housing & Regeneration Directorate",Grants,F473
http://opendatacommunities.org/id/london-borough-council/sutton,London Borough of Sutton,08/07/2020,6974222,"10,000.00",Cafe Pavillion Limited,99879,"Environment, Housing & Regeneration Directorate",Grants,F473
http://opendatacommunities.org/id/london-borough-council/sutton,London Borough of Sutton,10/07/2020,6974354,"10,000.00",Cavendish Basements Ltd,99879,"Environment, Housing & Regeneration Directorate",Grants,F473
http://opendatacommunities.org/id/london-borough-council/sutton,London Borough of Sutton,10/07/2020,6974337,"10,000.00",Cheam Park Cafe Ltd,99879,"Environment, Housing & Regeneration Directorate",Grants,F473
http://opendatacommunities.org/id/london-borough-council/sutton,London Borough of Sutton,09/07/2020,6974206,"5,000.00",Common Cars UK Ltd,99879,"Environment, Housing & Regeneration Directorate",Grants,F473
http://opendatacommunities.org/id/london-borough-council/sutton,London Borough of Sutton,09/07/2020,6974310,"5,000.00",Correct Decor Limited,99879,"Environment, Housing & Regeneration Directorate",Grants,F473
http://opendatacommunities.org/id/london-borough-council/sutton,London Borough of Sutton,08/07/2020,6974080,"10,000.00",Craggy Island,99879,"Environment, Housing & Regeneration Directorate",Grants,F473
http://opendatacommunities.org/id/london-borough-council/sutton,London Borough of Sutton,08/07/2020,6974082,"5,000.00",Curness Trading Ltd,99879,"Environment, Housing & Regeneration Directorate",Grants,F473
http://opendatacommunities.org/id/london-borough-council/sutton,London Borough of Sutton,08/07/2020,6974120,"10,000.00",Cygnet IT Services CIC,99879,"Environment, Housing & Regeneration Directorate",Grants,F473
http://opendatacommunities.org/id/london-borough-council/sutton,London Borough of Sutton,10/07/2020,6974350,"5,000.00",Dan M Limited,99879,"Environment, Housing & Regeneration Directorate",Grants,F473
http://opendatacommunities.org/id/london-borough-council/sutton,London Borough of Sutton,08/07/2020,6974177,"10,000.00",Datalead Limited,99879,"Environment, Housing & Regeneration Directorate",Grants,F473
http://opendatacommunities.org/id/london-borough-council/sutton,London Borough of Sutton,08/07/2020,6974216,"10,000.00",Deadline Flooring Commercial Ltd,99879,"Environment, Housing & Regeneration Directorate",Grants,F473
http://opendatacommunities.org/id/london-borough-council/sutton,London Borough of Sutton,09/07/2020,6974285,"5,000.00",Domestika Ltd,99879,"Environment, Housing & Regeneration Directorate",Grants,F473
http://opendatacommunities.org/id/london-borough-council/sutton,London Borough of Sutton,08/07/2020,6974097,"10,000.00",Event London Limited,99879,"Environment, Housing & Regeneration Directorate",Grants,F473
http://opendatacommunities.org/id/london-borough-council/sutton,London Borough of Sutton,08/07/2020,6974155,"10,000.00",Fino's kitchen LTD,99879,"Environment, Housing & Regeneration Directorate",Grants,F473
http://opendatacommunities.org/id/london-borough-council/sutton,London Borough of Sutton,08/07/2020,6974156,"10,000.00",Fire Risk Assessments Limited,99879,"Environment, Housing & Regeneration Directorate",Grants,F473
http://opendatacommunities.org/id/london-borough-council/sutton,London Borough of Sutton,08/07/2020,6974119,"5,000.00",Freedom Caffe Ltd,99879,"Environment, Housing & Regeneration Directorate",Grants,F473
http://opendatacommunities.org/id/london-borough-council/sutton,London Borough of Sutton,08/07/2020,6974151,"5,000.00",Futurewise Consultancy Limited,99879,"Environment, Housing & Regeneration Directorate",Grants,F473
http://opendatacommunities.org/id/london-borough-council/sutton,London Borough of Sutton,08/07/2020,6974094,"10,000.00",Garrett Appliances Limited,99879,"Environment, Housing & Regeneration Directorate",Grants,F473
http://opendatacommunities.org/id/london-borough-council/sutton,London Borough of Sutton,08/07/2020,6974211,"10,000.00",HMD UK Ltd,99879,"Environment, Housing & Regeneration Directorate",Grants,F473
http://opendatacommunities.org/id/london-borough-council/sutton,London Borough of Sutton,08/07/2020,6974108,"10,000.00",HAMPTON CONSERVATORIES (SOUTH LONDON) LTD,99879,"Environment, Housing & Regeneration Directorate",Grants,F473
http://opendatacommunities.org/id/london-borough-council/sutton,London Borough of Sutton,08/07/2020,6974213,"10,000.00",Harris Brothers Ltd,99879,"Environment, Housing & Regeneration Directorate",Grants,F473
http://opendatacommunities.org/id/london-borough-council/sutton,London Borough of Sutton,10/07/2020,6974348,"5,000.00",Health Safeguarding Limited,99879,"Environment, Housing & Regeneration Directorate",Grants,F473
http://opendatacommunities.org/id/london-borough-council/sutton,London Borough of Sutton,08/07/2020,6974165,"10,000.00",In-vent Environmental Services Ltd,99879,"Environment, Housing & Regeneration Directorate",Grants,F473
http://opendatacommunities.org/id/london-borough-council/sutton,London Borough of Sutton,08/07/2020,6974098,"5,000.00",Indian Mermaid Hair Xtension LTD,99879,"Environment, Housing & Regeneration Directorate",Grants,F473
http://opendatacommunities.org/id/london-borough-council/sutton,London Borough of Sutton,08/07/2020,6974134,"10,000.00",Ionica Wine Ltd,99879,"Environment, Housing & Regeneration Directorate",Grants,F473
http://opendatacommunities.org/id/london-borough-council/sutton,London Borough of Sutton,08/07/2020,6974147,"10,000.00",JUST SEW LTD,99879,"Environment, Housing & Regeneration Directorate",Grants,F473
http://opendatacommunities.org/id/london-borough-council/sutton,London Borough of Sutton,13/07/2020,6974482,"5,000.00",K. Khan & Sons Ltd,99879,"Environment, Housing & Regeneration Directorate",Grants,F473
http://opendatacommunities.org/id/london-borough-council/sutton,London Borough of Sutton,08/07/2020,6974152,"5,000.00",Le Beau Lighting Co,99879,"Environment, Housing & Regeneration Directorate",Grants,F473
http://opendatacommunities.org/id/london-borough-council/sutton,London Borough of Sutton,08/07/2020,6974122,"10,000.00",LIFESTYLE WINDON SYSTEMS LTD,99879,"Environment, Housing & Regeneration Directorate",Grants,F473
http://opendatacommunities.org/id/london-borough-council/sutton,London Borough of Sutton,08/07/2020,6974158,"5,000.00",LogiTax Ltd,99879,"Environment, Housing & Regeneration Directorate",Grants,F473
http://opendatacommunities.org/id/london-borough-council/sutton,London Borough of Sutton,13/07/2020,6974452,"5,000.00",London Autocare Ltd,99879,"Environment, Housing & Regeneration Directorate",Grants,F473
http://opendatacommunities.org/id/london-borough-council/sutton,London Borough of Sutton,08/07/2020,6974167,"5,000.00",M R Properties Ltd,99879,"Environment, Housing & Regeneration Directorate",Grants,F473
http://opendatacommunities.org/id/london-borough-council/sutton,London Borough of Sutton,08/07/2020,6974159,"10,000.00",MA CHIRO LTD,99879,"Environment, Housing & Regeneration Directorate",Grants,F473
http://opendatacommunities.org/id/london-borough-council/sutton,London Borough of Sutton,09/07/2020,6974302,"5,000.00",Maintained Building Services Ltd,99879,"Environment, Housing & Regeneration Directorate",Grants,F473
http://opendatacommunities.org/id/london-borough-council/sutton,London Borough of Sutton,10/07/2020,6974364,"10,000.00",Marco Alimentari Ltd,99879,"Environment, Housing & Regeneration Directorate",Grants,F473
http://opendatacommunities.org/id/london-borough-council/sutton,London Borough of Sutton,08/07/2020,6974083,"5,000.00",Marina Beauty and Spa Ltd,99879,"Environment, Housing & Regeneration Directorate",Grants,F473
http://opendatacommunities.org/id/london-borough-council/sutton,London Borough of Sutton,08/07/2020,6974663,"10,000.00",Metallic Autos Limited,99879,"Environment, Housing & Regeneration Directorate",Grants,F473
http://opendatacommunities.org/id/london-borough-council/sutton,London Borough of Sutton,14/07/2020,6974575,"10,000.00",Metropolitan Scaffolding London Ltd,99879,"Environment, Housing & Regeneration Directorate",Grants,F473
http://opendatacommunities.org/id/london-borough-council/sutton,London Borough of Sutton,08/07/2020,6974179,"5,000.00",New Dawn Trading Academy Limited,99879,"Environment, Housing & Regeneration Directorate",Grants,F473
http://opendatacommunities.org/id/london-borough-council/sutton,London Borough of Sutton,08/07/2020,6974095,"5,000.00",New Era Products Limited,99879,"Environment, Housing & Regeneration Directorate",Grants,F473
http://opendatacommunities.org/id/london-borough-council/sutton,London Borough of Sutton,08/07/2020,6974223,"10,000.00",Number One Car & Van Hire,99879,"Environment, Housing & Regeneration Directorate",Grants,F473
http://opendatacommunities.org/id/london-borough-council/sutton,London Borough of Sutton,09/07/2020,6974251,"5,000.00",Oaks Park Cafe JB Ltd,99879,"Environment, Housing & Regeneration Directorate",Grants,F473
http://opendatacommunities.org/id/london-borough-council/sutton,London Borough of Sutton,08/07/2020,6974136,"5,000.00",Party Pronto LTD,99879,"Environment, Housing & Regeneration Directorate",Grants,F473
http://opendatacommunities.org/id/london-borough-council/sutton,London Borough of Sutton,08/07/2020,6974137,"5,000.00",Pioneer Computers LTD,99879,"Environment, Housing & Regeneration Directorate",Grants,F473
http://opendatacommunities.org/id/london-borough-council/sutton,London Borough of Sutton,13/07/2020,6974494,"10,000.00",Professional Inventories Ltd,99879,"Environment, Housing & Regeneration Directorate",Grants,F473
http://opendatacommunities.org/id/london-borough-council/sutton,London Borough of Sutton,08/07/2020,6974124,"10,000.00",PUMEX LTD,99879,"Environment, Housing & Regeneration Directorate",Grants,F473
http://opendatacommunities.org/id/london-borough-council/sutton,London Borough of Sutton,03/07/2020,6974492,"5,000.00",Regal Silver Ltd,99879,"Environment, Housing & Regeneration Directorate",Grants,F473
http://opendatacommunities.org/id/london-borough-council/sutton,London Borough of Sutton,08/07/2020,6974138,"10,000.00",Renaissance Infotech Limited,99879,"Environment, Housing & Regeneration Directorate",Grants,F473
http://opendatacommunities.org/id/london-borough-council/sutton,London Borough of Sutton,09/07/2020,6974283,"10,000.00",RTS London Limited,99879,"Environment, Housing & Regeneration Directorate",Grants,F473
http://opendatacommunities.org/id/london-borough-council/sutton,London Borough of Sutton,14/07/2020,6974512,"10,000.00",Satin Ivy Laundry Service Ltd,99879,"Environment, Housing & Regeneration Directorate",Grants,F473
http://opendatacommunities.org/id/london-borough-council/sutton,London Borough of Sutton,09/07/2020,6974275,"5,000.00",Scotts Marketing & System,99879,"Environment, Housing & Regeneration Directorate",Grants,F473
http://opendatacommunities.org/id/london-borough-council/sutton,London Borough of Sutton,09/07/2020,6974289,"5,000.00",SD Beauty & Hair Ltd,99879,"Environment, Housing & Regeneration Directorate",Grants,F473
http://opendatacommunities.org/id/london-borough-council/sutton,London Borough of Sutton,08/07/2020,6974148,"10,000.00",SMS Electrical Services (London) LTD,99879,"Environment, Housing & Regeneration Directorate",Grants,F473
http://opendatacommunities.org/id/london-borough-council/sutton,London Borough of Sutton,08/07/2020,6974164,"10,000.00",Spirit Displays,99879,"Environment, Housing & Regeneration Directorate",Grants,F473
http://opendatacommunities.org/id/london-borough-council/sutton,London Borough of Sutton,08/07/2020,6974220,"10,000.00",Stable Publishing Ltd,99879,"Environment, Housing & Regeneration Directorate",Grants,F473
http://opendatacommunities.org/id/london-borough-council/sutton,London Borough of Sutton,08/07/2020,6974142,"5,000.00",Stonecot Car Sales Ltd,99879,"Environment, Housing & Regeneration Directorate",Grants,F473
http://opendatacommunities.org/id/london-borough-council/sutton,London Borough of Sutton,09/07/2020,6974278,"10,000.00",SunRise Imaging EMEA Limited,99879,"Environment, Housing & Regeneration Directorate",Grants,F473
http://opendatacommunities.org/id/london-borough-council/sutton,London Borough of Sutton,08/07/2020,6974139,"10,000.00",The Frying Squad (London) Ltd,99879,"Environment, Housing & Regeneration Directorate",Grants,F473
http://opendatacommunities.org/id/london-borough-council/sutton,London Borough of Sutton,08/07/2020,6974117,"5,000.00",The Health Care Group (THCG) Limited,99879,"Environment, Housing & Regeneration Directorate",Grants,F473
http://opendatacommunities.org/id/london-borough-council/sutton,London Borough of Sutton,09/07/2020,6974208,"10,000.00",The Hospitality Group (Surrey) Ltd,99879,"Environment, Housing & Regeneration Directorate",Grants,F473
http://opendatacommunities.org/id/london-borough-council/sutton,London Borough of Sutton,03/07/2020,6974389,"5,000.00",The Montessori Childrens House Limited,99879,"Environment, Housing & Regeneration Directorate",Grants,F473
http://opendatacommunities.org/id/london-borough-council/sutton,London Borough of Sutton,08/07/2020,6974154,"10,000.00",The Sports Injury and Physio Clinics Ltd,99879,"Environment, Housing & Regeneration Directorate",Grants,F473
http://opendatacommunities.org/id/london-borough-council/sutton,London Borough of Sutton,08/07/2020,6974146,"10,000.00",The Stars Childcare Group Limited,99879,"Environment, Housing & Regeneration Directorate",Grants,F473
http://opendatacommunities.org/id/london-borough-council/sutton,London Borough of Sutton,10/07/2020,6974367,"10,000.00",The Surrey Osteopaths RK Ltd,99879,"Environment, Housing & Regeneration Directorate",Grants,F473
http://opendatacommunities.org/id/london-borough-council/sutton,London Borough of Sutton,08/07/2020,6974221,"5,000.00",The Traditional Group (Surrey) Ltd,99879,"Environment, Housing & Regeneration Directorate",Grants,F473
http://opendatacommunities.org/id/london-borough-council/sutton,London Borough of Sutton,13/07/2020,6974387,"10,000.00",The Training & Recruitment Partnership Ltd,99879,"Environment, Housing & Regeneration Directorate",Grants,F473
http://opendatacommunities.org/id/london-borough-council/sutton,London Borough of Sutton,03/07/2020,6974388,"5,000.00",Top Gift Ltd,99879,"Environment, Housing & Regeneration Directorate",Grants,F473
http://opendatacommunities.org/id/london-borough-council/sutton,London Borough of Sutton,08/07/2020,6974141,"10,000.00",Upstream Seafoods,99879,"Environment, Housing & Regeneration Directorate",Grants,F473
http://opendatacommunities.org/id/london-borough-council/sutton,London Borough of Sutton,08/07/2020,6974090,"10,000.00",Veneto Importers UK LTD,99879,"Environment, Housing & Regeneration Directorate",Grants,F473
http://opendatacommunities.org/id/london-borough-council/sutton,London Borough of Sutton,09/07/2020,6974241,"5,000.00",VJSAR Consultant Service Ltd,99879,"Environment, Housing & Regeneration Directorate",Grants,F473
http://opendatacommunities.org/id/london-borough-council/sutton,London Borough of Sutton,09/07/2020,6974279,"5,000.00",VM Computers Limited,99879,"Environment, Housing & Regeneration Directorate",Grants,F473
http://opendatacommunities.org/id/london-borough-council/sutton,London Borough of Sutton,08/07/2020,6974150,"10,000.00",WAD Associates Ltd,99879,"Environment, Housing & Regeneration Directorate",Grants,F473
http://opendatacommunities.org/id/london-borough-council/sutton,London Borough of Sutton,08/07/2020,6974217,"10,000.00",Ward Property Services (UK) Ltd,99879,"Environment, Housing & Regeneration Directorate",Grants,F473
http://opendatacommunities.org/id/london-borough-council/sutton,London Borough of Sutton,08/07/2020,6974143,"5,000.00",Will & Probate Co Ltd,99879,"Environment, Housing & Regeneration Directorate",Grants,F473
http://opendatacommunities.org/id/london-borough-council/sutton,London Borough of Sutton,08/07/2020,6974115,"10,000.00",XXR Sports & Garments Ltd,99879,"Environment, Housing & Regeneration Directorate",Grants,F473
http://opendatacommunities.org/id/london-borough-council/sutton,London Borough of Sutton,08/07/2020,6974166,"5,000.00",YIM LTD,99879,"Environment, Housing & Regeneration Directorate",Grants,F473
http://opendatacommunities.org/id/london-borough-council/sutton,London Borough of Sutton,10/07/2020,6974291,"5,000.00",Bodysmart Physiotherapy,99879,"Environment, Housing & Regeneration Directorate",Grants,F473
http://opendatacommunities.org/id/london-borough-council/sutton,London Borough of Sutton,10/07/2020,6974363,"5,000.00",Community Action Sutton,99879,"Environment, Housing & Regeneration Directorate",Grants,F473
http://opendatacommunities.org/id/london-borough-council/sutton,London Borough of Sutton,09/07/2020,6974209,"5,000.00",Kidcare International,99879,"Environment, Housing & Regeneration Directorate",Grants,F473
http://opendatacommunities.org/id/london-borough-council/sutton,London Borough of Sutton,08/07/2020,6974212,"5,000.00",Rosehill Community Association,99879,"Environment, Housing & Regeneration Directorate",Grants,F473
http://opendatacommunities.org/id/london-borough-council/sutton,London Borough of Sutton,09/07/2020,6974248,"5,000.00",Sutton Vision,99879,"Environment, Housing & Regeneration Directorate",Grants,F473
http://opendatacommunities.org/id/london-borough-council/sutton,London Borough of Sutton,08/07/2020,6974125,"10,000.00",Eastleigh Dental Practice,99879,"Environment, Housing & Regeneration Directorate",Grants,F473
http://opendatacommunities.org/id/london-borough-council/sutton,London Borough of Sutton,08/07/2020,6974219,"5,000.00",Top Tier,99879,"Environment, Housing & Regeneration Directorate",Grants,F473
http://opendatacommunities.org/id/london-borough-council/sutton,London Borough of Sutton,09/07/2020,6974277,"5,000.00",REDACTED - PERSONAL DATA,99879,"Environment, Housing & Regeneration Directorate",Grants,F473
http://opendatacommunities.org/id/london-borough-council/sutton,London Borough of Sutton,08/07/2020,6974210,"10,000.00",REDACTED - PERSONAL DATA,99879,"Environment, Housing & Regeneration Directorate",Grants,F473
http://opendatacommunities.org/id/london-borough-council/sutton,London Borough of Sutton,08/07/2020,6974224,"5,000.00",REDACTED - PERSONAL DATA,99879,"Environment, Housing & Regeneration Directorate",Grants,F473
http://opendatacommunities.org/id/london-borough-council/sutton,London Borough of Sutton,13/07/2020,6974451,"5,000.00",REDACTED - PERSONAL DATA,99879,"Environment, Housing & Regeneration Directorate",Grants,F473
http://opendatacommunities.org/id/london-borough-council/sutton,London Borough of Sutton,08/07/2020,6974218,"5,000.00",REDACTED - PERSONAL DATA,99879,"Environment, Housing & Regeneration Directorate",Grants,F473
http://opendatacommunities.org/id/london-borough-council/sutton,London Borough of Sutton,09/07/2020,6974207,"5,000.00",REDACTED - PERSONAL DATA,99879,"Environment, Housing & Regeneration Directorate",Grants,F473
http://opendatacommunities.org/id/london-borough-council/sutton,London Borough of Sutton,08/07/2020,6974091,"5,000.00",REDACTED - PERSONAL DATA,99879,"Environment, Housing & Regeneration Directorate",Grants,F473
http://opendatacommunities.org/id/london-borough-council/sutton,London Borough of Sutton,08/07/2020,6974123,"5,000.00",REDACTED - PERSONAL DATA,99879,"Environment, Housing & Regeneration Directorate",Grants,F473
http://opendatacommunities.org/id/london-borough-council/sutton,London Borough of Sutton,08/07/2020,6974107,"10,000.00",REDACTED - PERSONAL DATA,99879,"Environment, Housing & Regeneration Directorate",Grants,F473
http://opendatacommunities.org/id/london-borough-council/sutton,London Borough of Sutton,09/07/2020,6974284,"5,000.00",REDACTED - PERSONAL DATA,99879,"Environment, Housing & Regeneration Directorate",Grants,F473
http://opendatacommunities.org/id/london-borough-council/sutton,London Borough of Sutton,09/07/2020,6974301,"5,000.00",REDACTED - PERSONAL DATA,99879,"Environment, Housing & Regeneration Directorate",Grants,F473
http://opendatacommunities.org/id/london-borough-council/sutton,London Borough of Sutton,08/07/2020,6974193,"5,000.00",REDACTED - PERSONAL DATA,99879,"Environment, Housing & Regeneration Directorate",Grants,F473
http://opendatacommunities.org/id/london-borough-council/sutton,London Borough of Sutton,10/07/2020,6974355,"5,000.00",REDACTED - PERSONAL DATA,99879,"Environment, Housing & Regeneration Directorate",Grants,F473
http://opendatacommunities.org/id/london-borough-council/sutton,London Borough of Sutton,09/07/2020,6974265,"5,000.00",REDACTED - PERSONAL DATA,99879,"Environment, Housing & Regeneration Directorate",Grants,F473
http://opendatacommunities.org/id/london-borough-council/sutton,London Borough of Sutton,10/07/2020,6974317,"10,000.00",REDACTED - PERSONAL DATA,99879,"Environment, Housing & Regeneration Directorate",Grants,F473
http://opendatacommunities.org/id/london-borough-council/sutton,London Borough of Sutton,10/07/2020,6974349,"5,000.00",REDACTED - PERSONAL DATA,99879,"Environment, Housing & Regeneration Directorate",Grants,F473
http://opendatacommunities.org/id/london-borough-council/sutton,London Borough of Sutton,08/07/2020,6974145,"10,000.00",REDACTED - PERSONAL DATA,99879,"Environment, Housing & Regeneration Directorate",Grants,F473
http://opendatacommunities.org/id/london-borough-council/sutton,London Borough of Sutton,08/07/2020,6974153,"5,000.00",REDACTED - PERSONAL DATA,99879,"Environment, Housing & Regeneration Directorate",Grants,F473
http://opendatacommunities.org/id/london-borough-council/sutton,London Borough of Sutton,09/07/2020,6974264,"5,000.00",REDACTED - PERSONAL DATA,99879,"Environment, Housing & Regeneration Directorate",Grants,F473
http://opendatacommunities.org/id/london-borough-council/sutton,London Borough of Sutton,08/07/2020,6974121,"5,000.00",REDACTED - PERSONAL DATA,99879,"Environment, Housing & Regeneration Directorate",Grants,F473
http://opendatacommunities.org/id/london-borough-council/sutton,London Borough of Sutton,09/07/2020,6974246,"5,000.00",REDACTED - PERSONAL DATA,99879,"Environment, Housing & Regeneration Directorate",Grants,F473
http://opendatacommunities.org/id/london-borough-council/sutton,London Borough of Sutton,09/07/2020,6974312,"10,000.00",REDACTED - PERSONAL DATA,99879,"Environment, Housing & Regeneration Directorate",Grants,F473
http://opendatacommunities.org/id/london-borough-council/sutton,London Borough of Sutton,22/07/2020,6975028,"1,000.00",Chroma Vision Limited,20351,Resources Directorate,Contingency Fund,F600
http://opendatacommunities.org/id/london-borough-council/sutton,London Borough of Sutton,30/06/2020,6973638,"4,693.45",Mitie Technical Facilities Management Ltd,97595,Resources Directorate,Contingency Fund,F600
http://opendatacommunities.org/id/london-borough-council/sutton,London Borough of Sutton,30/06/2020,6973639,534.6,Mitie Technical Facilities Management Ltd,97595,Resources Directorate,Contingency Fund,F600
http://opendatacommunities.org/id/london-borough-council/sutton,London Borough of Sutton,30/06/2020,6973642,"20,100.96",Mitie Technical Facilities Management Ltd,97595,Resources Directorate,Contingency Fund,F600
http://opendatacommunities.org/id/london-borough-council/sutton,London Borough of Sutton,30/06/2020,6973645,"1,945.10",Mitie Technical Facilities Management Ltd,97595,Resources Directorate,Contingency Fund,F600
http://opendatacommunities.org/id/london-borough-council/sutton,London Borough of Sutton,09/07/2020,6974446,777.6,Mitie Technical Facilities Management Ltd,97595,Resources Directorate,Contingency Fund,F600
http://opendatacommunities.org/id/london-borough-council/sutton,London Borough of Sutton,28/05/2020,6974447,"2,938.90",Mitie Technical Facilities Management Ltd,97595,Resources Directorate,Contingency Fund,F600
http://opendatacommunities.org/id/london-borough-council/sutton,London Borough of Sutton,10/07/2020,6974470,"1,807.92",Mitie Technical Facilities Management Ltd,97595,Resources Directorate,Contingency Fund,F600
http://opendatacommunities.org/id/london-borough-council/sutton,London Borough of Sutton,10/07/2020,6974471,711.07,Mitie Technical Facilities Management Ltd,97595,Resources Directorate,Contingency Fund,F600
http://opendatacommunities.org/id/london-borough-council/sutton,London Borough of Sutton,09/07/2020,6974473,"5,942.16",Mitie Technical Facilities Management Ltd,97595,Resources Directorate,Contingency Fund,F600
http://opendatacommunities.org/id/london-borough-council/sutton,London Borough of Sutton,13/07/2020,6974520,"3,110.40",Mitie Technical Facilities Management Ltd,97595,Resources Directorate,Contingency Fund,F600
http://opendatacommunities.org/id/london-borough-council/sutton,London Borough of Sutton,13/07/2020,6974521,"1,188.00",Mitie Technical Facilities Management Ltd,97595,Resources Directorate,Contingency Fund,F600
http://opendatacommunities.org/id/london-borough-council/sutton,London Borough of Sutton,15/07/2020,6974914,"2,232.12",Mitie Technical Facilities Management Ltd,97595,Resources Directorate,Contingency Fund,F600
http://opendatacommunities.org/id/london-borough-council/sutton,London Borough of Sutton,28/07/2020,6975296,"3,608.65",Mitie Technical Facilities Management Ltd,97595,Resources Directorate,Contingency Fund,F600
http://opendatacommunities.org/id/london-borough-council/sutton,London Borough of Sutton,28/07/2020,6975299,"4,628.98",Mitie Technical Facilities Management Ltd,97595,Resources Directorate,Contingency Fund,F600
http://opendatacommunities.org/id/london-borough-council/sutton,London Borough of Sutton,08/07/2020,6974331,"3,521.60",REDACTED - PERSONAL DATA,99891,"Environment, Housing & Regeneration Directorate",Compensation Payments,F603
http://opendatacommunities.org/id/london-borough-council/sutton,London Borough of Sutton,03/04/2020,6974584,"10,852.77",NHS Sutton CCG,25441,Peoples Services Directorate,Miscellaneous Expenses,F620
http://opendatacommunities.org/id/london-borough-council/sutton,London Borough of Sutton,24/06/2020,6973622,"16,283.20",Royal Borough of Kingston upon Thames,17086,"Environment, Housing & Regeneration Directorate",Shared Service Contribution,G002
http://opendatacommunities.org/id/london-borough-council/sutton,London Borough of Sutton,15/07/2020,6974974,"33,123.71",Royal Borough of Kingston upon Thames,17086,"Environment, Housing & Regeneration Directorate",Shared Service Contribution,G002
http://opendatacommunities.org/id/london-borough-council/sutton,London Borough of Sutton,24/06/2020,6974074,"1,645.20",British Flora (Avanti Landscape Supplies Ltd),28415,"Environment, Housing & Regeneration Directorate",Nature Conservation,G014
http://opendatacommunities.org/id/london-borough-council/sutton,London Borough of Sutton,20/07/2020,1295797,"15,707.50",Children's Trust,10927,Peoples Services Directorate,NMSS Payments,G061
http://opendatacommunities.org/id/london-borough-council/sutton,London Borough of Sutton,20/07/2020,1295798,"12,948.94",Children's Trust,10927,Peoples Services Directorate,NMSS Payments,G061
http://opendatacommunities.org/id/london-borough-council/sutton,London Borough of Sutton,08/07/2020,1295594,"18,545.00",Muntham House School,13086,Peoples Services Directorate,NMSS Payments,G061
http://opendatacommunities.org/id/london-borough-council/sutton,London Borough of Sutton,05/07/2020,1295388,"1,852.50",Foresters Primary,11726,Peoples Services Directorate,Place Funding,G063
http://opendatacommunities.org/id/london-borough-council/sutton,London Borough of Sutton,24/06/2020,1295795,"4,157.70",OHCAT T/A Link Primary School,30008,Peoples Services Directorate,Place Funding,G063
http://opendatacommunities.org/id/london-borough-council/sutton,London Borough of Sutton,02/07/2020,1295592,"102,327.12",Wandsworth Borough Council,14843,Peoples Services Directorate,Place Funding,G063
http://opendatacommunities.org/id/london-borough-council/sutton,London Borough of Sutton,06/07/2020,1295606,"-15,095.72",Wandsworth Borough Council,14843,Peoples Services Directorate,Place Funding,G063
http://opendatacommunities.org/id/london-borough-council/sutton,London Borough of Sutton,05/07/2020,1295392,740,Avenue Primary Acadamy,26025,Peoples Services Directorate,Top-up Funding,G064
http://opendatacommunities.org/id/london-borough-council/sutton,London Borough of Sutton,05/07/2020,1295393,"3,541.66",Bandon Hill Primary,10372,Peoples Services Directorate,Top-up Funding,G064
http://opendatacommunities.org/id/london-borough-council/sutton,London Borough of Sutton,05/07/2020,1295390,"1,126.67",Cheam Common Junior Academy,28932,Peoples Services Directorate,Top-up Funding,G064
http://opendatacommunities.org/id/london-borough-council/sutton,London Borough of Sutton,05/07/2020,1295391,740,Cheam Park Farm Primary School (LEO Academy Trust),23882,Peoples Services Directorate,Top-up Funding,G064
http://opendatacommunities.org/id/london-borough-council/sutton,London Borough of Sutton,05/07/2020,1295385,"1,110.00",Devonshire Primary School,11321,Peoples Services Directorate,Top-up Funding,G064
http://opendatacommunities.org/id/london-borough-council/sutton,London Borough of Sutton,05/07/2020,1295389,933.33,Harris Junior Acadamy Carshalton,25440,Peoples Services Directorate,Top-up Funding,G064
http://opendatacommunities.org/id/london-borough-council/sutton,London Borough of Sutton,23/04/2020,1296039,"2,833.33",Mosaic Jewish Primary School,30108,Peoples Services Directorate,Top-up Funding,G064
http://opendatacommunities.org/id/london-borough-council/sutton,London Borough of Sutton,05/07/2020,1295386,"2,125.00",Muschamp Primary School,13083,Peoples Services Directorate,Top-up Funding,G064
http://opendatacommunities.org/id/london-borough-council/sutton,London Borough of Sutton,23/06/2020,1294997,"70,125.82",Nescot,13171,Peoples Services Directorate,Top-up Funding,G064
http://opendatacommunities.org/id/london-borough-council/sutton,London Borough of Sutton,24/04/2020,1295381,"62,406.08",Nescot,13171,Peoples Services Directorate,Top-up Funding,G064
http://opendatacommunities.org/id/london-borough-council/sutton,London Borough of Sutton,05/07/2020,1295383,"-1,249.30",Nonsuch Primary School Account,13236,Peoples Services Directorate,Top-up Funding,G064
http://opendatacommunities.org/id/london-borough-council/sutton,London Borough of Sutton,24/06/2020,1295795,"4,310.00",OHCAT T/A Link Primary School,30008,Peoples Services Directorate,Top-up Funding,G064
http://opendatacommunities.org/id/london-borough-council/sutton,London Borough of Sutton,05/07/2020,1295387,"1,690.00",Robin Hood Infants,13867,Peoples Services Directorate,Top-up Funding,G064
http://opendatacommunities.org/id/london-borough-council/sutton,London Borough of Sutton,05/07/2020,1295384,"1,812.50",Robin Hood Junior School,13856,Peoples Services Directorate,Top-up Funding,G064
http://opendatacommunities.org/id/london-borough-council/sutton,London Borough of Sutton,24/07/2020,1296045,"1,666.67",South Thames College,23006,Peoples Services Directorate,Top-up Funding,G064
http://opendatacommunities.org/id/london-borough-council/sutton,London Borough of Sutton,17/03/2020,1296035,"3,884.53",University of Creative Arts,27756,Peoples Services Directorate,Top-up Funding,G064
http://opendatacommunities.org/id/london-borough-council/sutton,London Borough of Sutton,17/03/2020,1296036,"13,595.87",University of Creative Arts,27756,Peoples Services Directorate,Top-up Funding,G064
http://opendatacommunities.org/id/london-borough-council/sutton,London Borough of Sutton,30/07/2020,1296051,600,All Saints Benhilton C Of E,10115,Peoples Services Directorate,Payments to Schools,G065
http://opendatacommunities.org/id/london-borough-council/sutton,London Borough of Sutton,30/07/2020,1296048,600,Carew Academy,25284,Peoples Services Directorate,Payments to Schools,G065
http://opendatacommunities.org/id/london-borough-council/sutton,London Borough of Sutton,30/07/2020,1296053,600,Carew Academy,25284,Peoples Services Directorate,Payments to Schools,G065
http://opendatacommunities.org/id/london-borough-council/sutton,London Borough of Sutton,02/07/2020,1294994,"2,345.00",Coulsdon CofE Primary School,35465,Peoples Services Directorate,Payments to Schools,G065
http://opendatacommunities.org/id/london-borough-council/sutton,London Borough of Sutton,02/07/2020,1294995,"2,345.00",Coulsdon CofE Primary School,35465,Peoples Services Directorate,Payments to Schools,G065
http://opendatacommunities.org/id/london-borough-council/sutton,London Borough of Sutton,02/07/2020,1294996,580,Downham Church of England Primary School,35848,Peoples Services Directorate,Payments to Schools,G065
http://opendatacommunities.org/id/london-borough-council/sutton,London Borough of Sutton,30/07/2020,1296052,550,Harris Junior Acadamy Carshalton,25440,Peoples Services Directorate,Payments to Schools,G065
http://opendatacommunities.org/id/london-borough-council/sutton,London Borough of Sutton,02/07/2020,1294991,480,KCC re Bysing Wood Primary School,27012,Peoples Services Directorate,Payments to Schools,G065
http://opendatacommunities.org/id/london-borough-council/sutton,London Borough of Sutton,30/07/2020,1296058,600,Limes College (Academy),34683,Peoples Services Directorate,Payments to Schools,G065
http://opendatacommunities.org/id/london-borough-council/sutton,London Borough of Sutton,02/07/2020,1294992,567,Merridale Primary School,34244,Peoples Services Directorate,Payments to Schools,G065
http://opendatacommunities.org/id/london-borough-council/sutton,London Borough of Sutton,02/07/2020,1294993,567,Merridale Primary School,34244,Peoples Services Directorate,Payments to Schools,G065
http://opendatacommunities.org/id/london-borough-council/sutton,London Borough of Sutton,30/07/2020,6975360,"7,182.00",OHCAT T/A Link Primary School,30008,Peoples Services Directorate,Payments to Schools,G065
http://opendatacommunities.org/id/london-borough-council/sutton,London Borough of Sutton,29/07/2020,6975319,"3,004.00",OHCAT T/A Link Secondary School,30007,Peoples Services Directorate,Payments to Schools,G065
http://opendatacommunities.org/id/london-borough-council/sutton,London Borough of Sutton,02/07/2020,1294990,"1,100.00",Saffron Valley Collegiate,35464,Peoples Services Directorate,Payments to Schools,G065
http://opendatacommunities.org/id/london-borough-council/sutton,London Borough of Sutton,30/07/2020,1296057,600,Sherwood Park School,14055,Peoples Services Directorate,Payments to Schools,G065
http://opendatacommunities.org/id/london-borough-council/sutton,London Borough of Sutton,30/07/2020,1296054,600,The Abbey School (Faversham),33366,Peoples Services Directorate,Payments to Schools,G065
http://opendatacommunities.org/id/london-borough-council/sutton,London Borough of Sutton,30/07/2020,1296055,600,The Abbey School (Faversham),33366,Peoples Services Directorate,Payments to Schools,G065
http://opendatacommunities.org/id/london-borough-council/sutton,London Borough of Sutton,30/07/2020,1296056,600,The Abbey School (Faversham),33366,Peoples Services Directorate,Payments to Schools,G065
http://opendatacommunities.org/id/london-borough-council/sutton,London Borough of Sutton,19/03/2020,6969359,"645,595.46",Croydon Council,11227,"Environment, Housing & Regeneration Directorate",Gate Fee Tonnage,G105
http://opendatacommunities.org/id/london-borough-council/sutton,London Borough of Sutton,30/04/2020,6970817,"71,191.70",Suez Recycling and Recovery UK LTD,35013,"Environment, Housing & Regeneration Directorate",Gate Fee Tonnage,G105
http://opendatacommunities.org/id/london-borough-council/sutton,London Borough of Sutton,05/05/2020,6971008,"3,674.60",Suez Recycling and Recovery UK LTD,35013,"Environment, Housing & Regeneration Directorate",Gate Fee Tonnage,G105
http://opendatacommunities.org/id/london-borough-council/sutton,London Borough of Sutton,14/05/2020,6971405,"23,743.50",Suez Recycling and Recovery UK LTD,35013,"Environment, Housing & Regeneration Directorate",Gate Fee Tonnage,G105
http://opendatacommunities.org/id/london-borough-council/sutton,London Borough of Sutton,21/05/2020,6971831,"13,013.30",Suez Recycling and Recovery UK LTD,35013,"Environment, Housing & Regeneration Directorate",Gate Fee Tonnage,G105
http://opendatacommunities.org/id/london-borough-council/sutton,London Borough of Sutton,28/05/2020,6972103,"32,039.70",Suez Recycling and Recovery UK LTD,35013,"Environment, Housing & Regeneration Directorate",Gate Fee Tonnage,G105
http://opendatacommunities.org/id/london-borough-council/sutton,London Borough of Sutton,29/05/2020,6972104,"30,556.60",Suez Recycling and Recovery UK LTD,35013,"Environment, Housing & Regeneration Directorate",Gate Fee Tonnage,G105
http://opendatacommunities.org/id/london-borough-council/sutton,London Borough of Sutton,03/06/2020,6972385,"5,390.80",Suez Recycling and Recovery UK LTD,35013,"Environment, Housing & Regeneration Directorate",Gate Fee Tonnage,G105
http://opendatacommunities.org/id/london-borough-council/sutton,London Borough of Sutton,12/06/2020,6972880,"26,412.00",Suez Recycling and Recovery UK LTD,35013,"Environment, Housing & Regeneration Directorate",Gate Fee Tonnage,G105
http://opendatacommunities.org/id/london-borough-council/sutton,London Borough of Sutton,18/06/2020,6973176,"33,166.10",Suez Recycling and Recovery UK LTD,35013,"Environment, Housing & Regeneration Directorate",Gate Fee Tonnage,G105
http://opendatacommunities.org/id/london-borough-council/sutton,London Borough of Sutton,25/06/2020,6973463,"29,613.10",Suez Recycling and Recovery UK LTD,35013,"Environment, Housing & Regeneration Directorate",Gate Fee Tonnage,G105
http://opendatacommunities.org/id/london-borough-council/sutton,London Borough of Sutton,23/07/2020,6975119,"4,162.71",London Councils,10261,"Environment, Housing & Regeneration Directorate",Transport Committee for London,G110
http://opendatacommunities.org/id/london-borough-council/sutton,London Borough of Sutton,04/05/2020,6972440,"706,885.67",Croydon Council,11227,"Environment, Housing & Regeneration Directorate",Veolia - Contract Payment,G255
http://opendatacommunities.org/id/london-borough-council/sutton,London Borough of Sutton,25/02/2020,6972443,"274,005.36",Croydon Council,11227,"Environment, Housing & Regeneration Directorate",Veolia - Contract Payment,G255
http://opendatacommunities.org/id/london-borough-council/sutton,London Borough of Sutton,01/06/2020,40433713,836,Ambient Support Limited,21702,Peoples Services Directorate,Supported Living - Ext Provider,G306
http://opendatacommunities.org/id/london-borough-council/sutton,London Borough of Sutton,05/05/2020,40433714,836,Ambient Support Limited,21702,Peoples Services Directorate,Supported Living - Ext Provider,G306
http://opendatacommunities.org/id/london-borough-council/sutton,London Borough of Sutton,28/11/2019,40433715,"2,589.80",Ambient Support Limited,21702,Peoples Services Directorate,Supported Living - Ext Provider,G306
http://opendatacommunities.org/id/london-borough-council/sutton,London Borough of Sutton,12/07/2020,40438485,505.67,Ambient Support Limited,21702,Peoples Services Directorate,Supported Living - Ext Provider,G306
http://opendatacommunities.org/id/london-borough-council/sutton,London Borough of Sutton,01/06/2020,40438220,"1,845.60",Ashlong House Ltd,23101,Peoples Services Directorate,Supported Living - Ext Provider,G306
http://opendatacommunities.org/id/london-borough-council/sutton,London Borough of Sutton,01/07/2020,40438221,"1,264.80",Ashlong House Ltd,23101,Peoples Services Directorate,Supported Living - Ext Provider,G306
http://opendatacommunities.org/id/london-borough-council/sutton,London Borough of Sutton,01/07/2020,40438222,"1,845.60",Ashlong House Ltd,23101,Peoples Services Directorate,Supported Living - Ext Provider,G306
http://opendatacommunities.org/id/london-borough-council/sutton,London Borough of Sutton,01/06/2020,40438223,"1,264.80",Ashlong House Ltd,23101,Peoples Services Directorate,Supported Living - Ext Provider,G306
http://opendatacommunities.org/id/london-borough-council/sutton,London Borough of Sutton,01/06/2020,40432852,"4,732.00",Care Unlimited Domcare Ltd,28906,Peoples Services Directorate,Supported Living - Ext Provider,G306
http://opendatacommunities.org/id/london-borough-council/sutton,London Borough of Sutton,01/07/2020,40438481,"4,060.00",Care Unlimited Domcare Ltd,28906,Peoples Services Directorate,Supported Living - Ext Provider,G306
http://opendatacommunities.org/id/london-borough-council/sutton,London Borough of Sutton,01/07/2020,40438482,"4,060.00",Care Unlimited Domcare Ltd,28906,Peoples Services Directorate,Supported Living - Ext Provider,G306
http://opendatacommunities.org/id/london-borough-council/sutton,London Borough of Sutton,01/07/2020,40438483,"4,060.00",Care Unlimited Domcare Ltd,28906,Peoples Services Directorate,Supported Living - Ext Provider,G306
http://opendatacommunities.org/id/london-borough-council/sutton,London Borough of Sutton,01/07/2020,40438484,"4,060.00",Care Unlimited Domcare Ltd,28906,Peoples Services Directorate,Supported Living - Ext Provider,G306
http://opendatacommunities.org/id/london-borough-council/sutton,London Borough of Sutton,01/07/2020,40441664,"4,732.00",Care Unlimited Domcare Ltd,28906,Peoples Services Directorate,Supported Living - Ext Provider,G306
http://opendatacommunities.org/id/london-borough-council/sutton,London Borough of Sutton,02/07/2020,40434041,"2,528.56",Carlene House,10763,Peoples Services Directorate,Supported Living - Ext Provider,G306
http://opendatacommunities.org/id/london-borough-council/sutton,London Borough of Sutton,02/07/2020,40434042,"3,225.56",Carlene House,10763,Peoples Services Directorate,Supported Living - Ext Provider,G306
http://opendatacommunities.org/id/london-borough-council/sutton,London Borough of Sutton,02/07/2020,40434043,"2,397.56",Carlene House,10763,Peoples Services Directorate,Supported Living - Ext Provider,G306
http://opendatacommunities.org/id/london-borough-council/sutton,London Borough of Sutton,02/07/2020,40434044,"3,369.76",Carlene House,10763,Peoples Services Directorate,Supported Living - Ext Provider,G306
http://opendatacommunities.org/id/london-borough-council/sutton,London Borough of Sutton,02/07/2020,40435231,682,Carlene House,10763,Peoples Services Directorate,Supported Living - Ext Provider,G306
http://opendatacommunities.org/id/london-borough-council/sutton,London Borough of Sutton,02/07/2020,40435232,420,Carlene House,10763,Peoples Services Directorate,Supported Living - Ext Provider,G306
http://opendatacommunities.org/id/london-borough-council/sutton,London Borough of Sutton,02/07/2020,40435235,992,Carlene House,10763,Peoples Services Directorate,Supported Living - Ext Provider,G306
http://opendatacommunities.org/id/london-borough-council/sutton,London Borough of Sutton,30/06/2020,40441317,858.73,Choice Support,12929,Peoples Services Directorate,Supported Living - Ext Provider,G306
http://opendatacommunities.org/id/london-borough-council/sutton,London Borough of Sutton,30/06/2020,40441317,"6,423.77",Choice Support,12929,Peoples Services Directorate,Supported Living - Ext Provider,G306
http://opendatacommunities.org/id/london-borough-council/sutton,London Borough of Sutton,30/06/2020,40441318,858.73,Choice Support,12929,Peoples Services Directorate,Supported Living - Ext Provider,G306
http://opendatacommunities.org/id/london-borough-council/sutton,London Borough of Sutton,30/06/2020,40441318,"5,068.07",Choice Support,12929,Peoples Services Directorate,Supported Living - Ext Provider,G306
http://opendatacommunities.org/id/london-borough-council/sutton,London Borough of Sutton,30/06/2020,40441319,858.73,Choice Support,12929,Peoples Services Directorate,Supported Living - Ext Provider,G306
http://opendatacommunities.org/id/london-borough-council/sutton,London Borough of Sutton,30/06/2020,40441319,"5,440.37",Choice Support,12929,Peoples Services Directorate,Supported Living - Ext Provider,G306
http://opendatacommunities.org/id/london-borough-council/sutton,London Borough of Sutton,30/06/2020,40441320,"3,337.24",Choice Support,12929,Peoples Services Directorate,Supported Living - Ext Provider,G306
http://opendatacommunities.org/id/london-borough-council/sutton,London Borough of Sutton,30/06/2020,40441320,613.37,Choice Support,12929,Peoples Services Directorate,Supported Living - Ext Provider,G306
http://opendatacommunities.org/id/london-borough-council/sutton,London Borough of Sutton,30/06/2020,40441320,"2,922.35",Choice Support,12929,Peoples Services Directorate,Supported Living - Ext Provider,G306
http://opendatacommunities.org/id/london-borough-council/sutton,London Borough of Sutton,30/06/2020,40441321,858.73,Choice Support,12929,Peoples Services Directorate,Supported Living - Ext Provider,G306
http://opendatacommunities.org/id/london-borough-council/sutton,London Borough of Sutton,30/06/2020,40441321,"4,646.57",Choice Support,12929,Peoples Services Directorate,Supported Living - Ext Provider,G306
http://opendatacommunities.org/id/london-borough-council/sutton,London Borough of Sutton,30/06/2020,40441322,"1,538.31",Choice Support,12929,Peoples Services Directorate,Supported Living - Ext Provider,G306
http://opendatacommunities.org/id/london-borough-council/sutton,London Borough of Sutton,30/06/2020,40441322,613.37,Choice Support,12929,Peoples Services Directorate,Supported Living - Ext Provider,G306
http://opendatacommunities.org/id/london-borough-council/sutton,London Borough of Sutton,30/06/2020,40441322,"1,861.68",Choice Support,12929,Peoples Services Directorate,Supported Living - Ext Provider,G306
http://opendatacommunities.org/id/london-borough-council/sutton,London Borough of Sutton,30/06/2020,40441323,"1,580.49",Choice Support,12929,Peoples Services Directorate,Supported Living - Ext Provider,G306
http://opendatacommunities.org/id/london-borough-council/sutton,London Borough of Sutton,30/06/2020,40441323,613.37,Choice Support,12929,Peoples Services Directorate,Supported Living - Ext Provider,G306
http://opendatacommunities.org/id/london-borough-council/sutton,London Borough of Sutton,30/06/2020,40441323,"1,650.90",Choice Support,12929,Peoples Services Directorate,Supported Living - Ext Provider,G306
http://opendatacommunities.org/id/london-borough-council/sutton,London Borough of Sutton,30/06/2020,40441324,"2,177.53",Choice Support,12929,Peoples Services Directorate,Supported Living - Ext Provider,G306
http://opendatacommunities.org/id/london-borough-council/sutton,London Borough of Sutton,30/06/2020,40441324,613.37,Choice Support,12929,Peoples Services Directorate,Supported Living - Ext Provider,G306
http://opendatacommunities.org/id/london-borough-council/sutton,London Borough of Sutton,30/06/2020,40441324,"1,404.86",Choice Support,12929,Peoples Services Directorate,Supported Living - Ext Provider,G306
http://opendatacommunities.org/id/london-borough-council/sutton,London Borough of Sutton,30/06/2020,40441325,613.37,Choice Support,12929,Peoples Services Directorate,Supported Living - Ext Provider,G306
http://opendatacommunities.org/id/london-borough-council/sutton,London Borough of Sutton,30/06/2020,40441325,"5,900.49",Choice Support,12929,Peoples Services Directorate,Supported Living - Ext Provider,G306
http://opendatacommunities.org/id/london-borough-council/sutton,London Borough of Sutton,30/06/2020,40441326,858.73,Choice Support,12929,Peoples Services Directorate,Supported Living - Ext Provider,G306
http://opendatacommunities.org/id/london-borough-council/sutton,London Borough of Sutton,22/07/2020,40442338,"2,420.12",Choice Support,12929,Peoples Services Directorate,Supported Living - Ext Provider,G306
http://opendatacommunities.org/id/london-borough-council/sutton,London Borough of Sutton,22/07/2020,40442338,"1,688.52",Choice Support,12929,Peoples Services Directorate,Supported Living - Ext Provider,G306
http://opendatacommunities.org/id/london-borough-council/sutton,London Borough of Sutton,22/07/2020,40442340,"2,946.24",Choice Support,12929,Peoples Services Directorate,Supported Living - Ext Provider,G306
http://opendatacommunities.org/id/london-borough-council/sutton,London Borough of Sutton,22/07/2020,40442340,"1,192.52",Choice Support,12929,Peoples Services Directorate,Supported Living - Ext Provider,G306
http://opendatacommunities.org/id/london-borough-council/sutton,London Borough of Sutton,22/07/2020,40442341,"2,665.64",Choice Support,12929,Peoples Services Directorate,Supported Living - Ext Provider,G306
http://opendatacommunities.org/id/london-borough-council/sutton,London Borough of Sutton,22/07/2020,40442341,"1,697.82",Choice Support,12929,Peoples Services Directorate,Supported Living - Ext Provider,G306
http://opendatacommunities.org/id/london-borough-council/sutton,London Borough of Sutton,22/07/2020,40442342,"2,490.28",Choice Support,12929,Peoples Services Directorate,Supported Living - Ext Provider,G306
http://opendatacommunities.org/id/london-borough-council/sutton,London Borough of Sutton,22/07/2020,40442342,"1,697.82",Choice Support,12929,Peoples Services Directorate,Supported Living - Ext Provider,G306
http://opendatacommunities.org/id/london-borough-council/sutton,London Borough of Sutton,22/07/2020,40442343,"5,191.00",Choice Support,12929,Peoples Services Directorate,Supported Living - Ext Provider,G306
http://opendatacommunities.org/id/london-borough-council/sutton,London Borough of Sutton,22/07/2020,40442343,"1,697.82",Choice Support,12929,Peoples Services Directorate,Supported Living - Ext Provider,G306
http://opendatacommunities.org/id/london-borough-council/sutton,London Borough of Sutton,22/07/2020,40442345,"3,675.10",Choice Support,12929,Peoples Services Directorate,Supported Living - Ext Provider,G306
http://opendatacommunities.org/id/london-borough-council/sutton,London Borough of Sutton,22/07/2020,40442345,574.87,Choice Support,12929,Peoples Services Directorate,Supported Living - Ext Provider,G306
http://opendatacommunities.org/id/london-borough-council/sutton,London Borough of Sutton,22/07/2020,40442350,"2,490.28",Choice Support,12929,Peoples Services Directorate,Supported Living - Ext Provider,G306
http://opendatacommunities.org/id/london-borough-council/sutton,London Borough of Sutton,22/07/2020,40442350,"1,697.82",Choice Support,12929,Peoples Services Directorate,Supported Living - Ext Provider,G306
http://opendatacommunities.org/id/london-borough-council/sutton,London Borough of Sutton,22/07/2020,40442351,"2,735.80",Choice Support,12929,Peoples Services Directorate,Supported Living - Ext Provider,G306
http://opendatacommunities.org/id/london-borough-council/sutton,London Borough of Sutton,22/07/2020,40442351,"1,697.82",Choice Support,12929,Peoples Services Directorate,Supported Living - Ext Provider,G306
http://opendatacommunities.org/id/london-borough-council/sutton,London Borough of Sutton,22/07/2020,40442352,"2,349.98",Choice Support,12929,Peoples Services Directorate,Supported Living - Ext Provider,G306
http://opendatacommunities.org/id/london-borough-council/sutton,London Borough of Sutton,22/07/2020,40442352,484.53,Choice Support,12929,Peoples Services Directorate,Supported Living - Ext Provider,G306
http://opendatacommunities.org/id/london-borough-council/sutton,London Borough of Sutton,22/07/2020,40442352,"1,651.99",Choice Support,12929,Peoples Services Directorate,Supported Living - Ext Provider,G306
http://opendatacommunities.org/id/london-borough-council/sutton,London Borough of Sutton,22/07/2020,40442353,"2,285.45",Choice Support,12929,Peoples Services Directorate,Supported Living - Ext Provider,G306
http://opendatacommunities.org/id/london-borough-council/sutton,London Borough of Sutton,22/07/2020,40442353,484.53,Choice Support,12929,Peoples Services Directorate,Supported Living - Ext Provider,G306
http://opendatacommunities.org/id/london-borough-council/sutton,London Borough of Sutton,22/07/2020,40442353,"1,616.91",Choice Support,12929,Peoples Services Directorate,Supported Living - Ext Provider,G306
http://opendatacommunities.org/id/london-borough-council/sutton,London Borough of Sutton,22/07/2020,40442354,"5,165.04",Choice Support,12929,Peoples Services Directorate,Supported Living - Ext Provider,G306
http://opendatacommunities.org/id/london-borough-council/sutton,London Borough of Sutton,22/07/2020,40442354,446.14,Choice Support,12929,Peoples Services Directorate,Supported Living - Ext Provider,G306
http://opendatacommunities.org/id/london-borough-council/sutton,London Borough of Sutton,22/07/2020,40442355,"6,281.76",Choice Support,12929,Peoples Services Directorate,Supported Living - Ext Provider,G306
http://opendatacommunities.org/id/london-borough-council/sutton,London Borough of Sutton,22/07/2020,40442355,949.92,Choice Support,12929,Peoples Services Directorate,Supported Living - Ext Provider,G306
http://opendatacommunities.org/id/london-borough-council/sutton,London Borough of Sutton,22/07/2020,40442361,"1,999.24",Choice Support,12929,Peoples Services Directorate,Supported Living - Ext Provider,G306
http://opendatacommunities.org/id/london-borough-council/sutton,London Borough of Sutton,22/07/2020,40442361,"1,052.22",Choice Support,12929,Peoples Services Directorate,Supported Living - Ext Provider,G306
http://opendatacommunities.org/id/london-borough-council/sutton,London Borough of Sutton,22/07/2020,40442362,"4,068.62",Choice Support,12929,Peoples Services Directorate,Supported Living - Ext Provider,G306
http://opendatacommunities.org/id/london-borough-council/sutton,London Borough of Sutton,22/07/2020,40442362,"1,688.52",Choice Support,12929,Peoples Services Directorate,Supported Living - Ext Provider,G306
http://opendatacommunities.org/id/london-borough-council/sutton,London Borough of Sutton,22/07/2020,40442363,"4,068.62",Choice Support,12929,Peoples Services Directorate,Supported Living - Ext Provider,G306
http://opendatacommunities.org/id/london-borough-council/sutton,London Borough of Sutton,22/07/2020,40442363,872.47,Choice Support,12929,Peoples Services Directorate,Supported Living - Ext Provider,G306
http://opendatacommunities.org/id/london-borough-council/sutton,London Borough of Sutton,22/07/2020,40442365,"3,928.32",Choice Support,12929,Peoples Services Directorate,Supported Living - Ext Provider,G306
http://opendatacommunities.org/id/london-borough-council/sutton,London Borough of Sutton,22/07/2020,40442365,"1,688.52",Choice Support,12929,Peoples Services Directorate,Supported Living - Ext Provider,G306
http://opendatacommunities.org/id/london-borough-council/sutton,London Borough of Sutton,22/07/2020,40442366,"3,156.68",Choice Support,12929,Peoples Services Directorate,Supported Living - Ext Provider,G306
http://opendatacommunities.org/id/london-borough-council/sutton,London Borough of Sutton,22/07/2020,40442366,"1,697.82",Choice Support,12929,Peoples Services Directorate,Supported Living - Ext Provider,G306
http://opendatacommunities.org/id/london-borough-council/sutton,London Borough of Sutton,22/07/2020,40442367,"3,402.20",Choice Support,12929,Peoples Services Directorate,Supported Living - Ext Provider,G306
http://opendatacommunities.org/id/london-borough-council/sutton,London Borough of Sutton,22/07/2020,40442367,"1,688.52",Choice Support,12929,Peoples Services Directorate,Supported Living - Ext Provider,G306
http://opendatacommunities.org/id/london-borough-council/sutton,London Borough of Sutton,22/07/2020,40442374,"1,402.98",Choice Support,12929,Peoples Services Directorate,Supported Living - Ext Provider,G306
http://opendatacommunities.org/id/london-borough-council/sutton,London Borough of Sutton,22/07/2020,40442374,"2,400.46",Choice Support,12929,Peoples Services Directorate,Supported Living - Ext Provider,G306
http://opendatacommunities.org/id/london-borough-council/sutton,London Borough of Sutton,22/07/2020,40442374,484.53,Choice Support,12929,Peoples Services Directorate,Supported Living - Ext Provider,G306
http://opendatacommunities.org/id/london-borough-council/sutton,London Borough of Sutton,22/07/2020,40442375,"2,951.43",Choice Support,12929,Peoples Services Directorate,Supported Living - Ext Provider,G306
http://opendatacommunities.org/id/london-borough-council/sutton,London Borough of Sutton,22/07/2020,40442375,"1,688.52",Choice Support,12929,Peoples Services Directorate,Supported Living - Ext Provider,G306
http://opendatacommunities.org/id/london-borough-council/sutton,London Borough of Sutton,22/07/2020,40442376,"2,791.91",Choice Support,12929,Peoples Services Directorate,Supported Living - Ext Provider,G306
http://opendatacommunities.org/id/london-borough-council/sutton,London Borough of Sutton,22/07/2020,40442376,"1,431.04",Choice Support,12929,Peoples Services Directorate,Supported Living - Ext Provider,G306
http://opendatacommunities.org/id/london-borough-council/sutton,London Borough of Sutton,22/07/2020,40442376,872.47,Choice Support,12929,Peoples Services Directorate,Supported Living - Ext Provider,G306
http://opendatacommunities.org/id/london-borough-council/sutton,London Borough of Sutton,22/07/2020,40442377,"2,112.42",Choice Support,12929,Peoples Services Directorate,Supported Living - Ext Provider,G306
http://opendatacommunities.org/id/london-borough-council/sutton,London Borough of Sutton,22/07/2020,40442377,484.53,Choice Support,12929,Peoples Services Directorate,Supported Living - Ext Provider,G306
http://opendatacommunities.org/id/london-borough-council/sutton,London Borough of Sutton,22/07/2020,40442377,"1,881.44",Choice Support,12929,Peoples Services Directorate,Supported Living - Ext Provider,G306
http://opendatacommunities.org/id/london-borough-council/sutton,London Borough of Sutton,22/07/2020,40442378,"2,665.64",Choice Support,12929,Peoples Services Directorate,Supported Living - Ext Provider,G306
http://opendatacommunities.org/id/london-borough-council/sutton,London Borough of Sutton,22/07/2020,40442378,"1,697.82",Choice Support,12929,Peoples Services Directorate,Supported Living - Ext Provider,G306
http://opendatacommunities.org/id/london-borough-council/sutton,London Borough of Sutton,22/07/2020,40442384,"2,314.90",Choice Support,12929,Peoples Services Directorate,Supported Living - Ext Provider,G306
http://opendatacommunities.org/id/london-borough-council/sutton,London Borough of Sutton,22/07/2020,40442384,484.53,Choice Support,12929,Peoples Services Directorate,Supported Living - Ext Provider,G306
http://opendatacommunities.org/id/london-borough-council/sutton,London Borough of Sutton,22/07/2020,40442384,"1,626.03",Choice Support,12929,Peoples Services Directorate,Supported Living - Ext Provider,G306
http://opendatacommunities.org/id/london-borough-council/sutton,London Borough of Sutton,22/07/2020,40442385,"3,156.68",Choice Support,12929,Peoples Services Directorate,Supported Living - Ext Provider,G306
http://opendatacommunities.org/id/london-borough-council/sutton,London Borough of Sutton,22/07/2020,40442385,"1,697.82",Choice Support,12929,Peoples Services Directorate,Supported Living - Ext Provider,G306
http://opendatacommunities.org/id/london-borough-council/sutton,London Borough of Sutton,22/07/2020,40442386,"2,069.38",Choice Support,12929,Peoples Services Directorate,Supported Living - Ext Provider,G306
http://opendatacommunities.org/id/london-borough-council/sutton,London Borough of Sutton,22/07/2020,40442386,"1,599.37",Choice Support,12929,Peoples Services Directorate,Supported Living - Ext Provider,G306
http://opendatacommunities.org/id/london-borough-council/sutton,London Borough of Sutton,22/07/2020,40442386,484.53,Choice Support,12929,Peoples Services Directorate,Supported Living - Ext Provider,G306
http://opendatacommunities.org/id/london-borough-council/sutton,London Borough of Sutton,25/06/2020,40435241,"6,333.60",Clear Thinking Care Limited,35437,Peoples Services Directorate,Supported Living - Ext Provider,G306
http://opendatacommunities.org/id/london-borough-council/sutton,London Borough of Sutton,22/07/2020,40442346,"3,162.00",Cmg Homes Ltd,11026,Peoples Services Directorate,Supported Living - Ext Provider,G306
http://opendatacommunities.org/id/london-borough-council/sutton,London Borough of Sutton,22/07/2020,40442356,"3,662.42",Cmg Homes Ltd,11026,Peoples Services Directorate,Supported Living - Ext Provider,G306
http://opendatacommunities.org/id/london-borough-council/sutton,London Borough of Sutton,22/07/2020,40442357,"3,675.72",Cmg Homes Ltd,11026,Peoples Services Directorate,Supported Living - Ext Provider,G306
http://opendatacommunities.org/id/london-borough-council/sutton,London Borough of Sutton,22/07/2020,40442368,"4,592.42",Cmg Homes Ltd,11026,Peoples Services Directorate,Supported Living - Ext Provider,G306
http://opendatacommunities.org/id/london-borough-council/sutton,London Borough of Sutton,01/07/2020,40441534,"1,748.70",Cognithan Ltd,29938,Peoples Services Directorate,Supported Living - Ext Provider,G306
http://opendatacommunities.org/id/london-borough-council/sutton,London Borough of Sutton,28/09/2019,40437478,"4,106.88",Direct Care And Support Services,23268,Peoples Services Directorate,Supported Living - Ext Provider,G306
http://opendatacommunities.org/id/london-borough-council/sutton,London Borough of Sutton,10/03/2020,40437479,"4,106.88",Direct Care And Support Services,23268,Peoples Services Directorate,Supported Living - Ext Provider,G306
http://opendatacommunities.org/id/london-borough-council/sutton,London Borough of Sutton,03/01/2020,40437481,"4,106.88",Direct Care And Support Services,23268,Peoples Services Directorate,Supported Living - Ext Provider,G306
http://opendatacommunities.org/id/london-borough-council/sutton,London Borough of Sutton,03/01/2020,40437482,"4,106.88",Direct Care And Support Services,23268,Peoples Services Directorate,Supported Living - Ext Provider,G306
http://opendatacommunities.org/id/london-borough-council/sutton,London Borough of Sutton,05/06/2020,40437483,"4,400.10",Direct Care And Support Services,23268,Peoples Services Directorate,Supported Living - Ext Provider,G306
http://opendatacommunities.org/id/london-borough-council/sutton,London Borough of Sutton,03/02/2020,40437485,"4,106.88",Direct Care And Support Services,23268,Peoples Services Directorate,Supported Living - Ext Provider,G306
http://opendatacommunities.org/id/london-borough-council/sutton,London Borough of Sutton,03/01/2020,40437486,"4,106.88",Direct Care And Support Services,23268,Peoples Services Directorate,Supported Living - Ext Provider,G306
http://opendatacommunities.org/id/london-borough-council/sutton,London Borough of Sutton,10/01/2020,40437487,"4,106.88",Direct Care And Support Services,23268,Peoples Services Directorate,Supported Living - Ext Provider,G306
http://opendatacommunities.org/id/london-borough-council/sutton,London Borough of Sutton,18/07/2020,40442234,"2,128.28",Direct Care And Support Services,23268,Peoples Services Directorate,Supported Living - Ext Provider,G306
http://opendatacommunities.org/id/london-borough-council/sutton,London Borough of Sutton,18/07/2020,40442235,"1,299.48",Direct Care And Support Services,23268,Peoples Services Directorate,Supported Living - Ext Provider,G306
http://opendatacommunities.org/id/london-borough-council/sutton,London Borough of Sutton,18/07/2020,40442236,"2,116.80",Direct Care And Support Services,23268,Peoples Services Directorate,Supported Living - Ext Provider,G306
http://opendatacommunities.org/id/london-borough-council/sutton,London Borough of Sutton,18/07/2020,40442237,"3,132.80",Direct Care And Support Services,23268,Peoples Services Directorate,Supported Living - Ext Provider,G306
http://opendatacommunities.org/id/london-borough-council/sutton,London Borough of Sutton,18/07/2020,40442238,"2,450.00",Direct Care And Support Services,23268,Peoples Services Directorate,Supported Living - Ext Provider,G306
http://opendatacommunities.org/id/london-borough-council/sutton,London Borough of Sutton,18/07/2020,40442239,"2,232.44",Direct Care And Support Services,23268,Peoples Services Directorate,Supported Living - Ext Provider,G306
http://opendatacommunities.org/id/london-borough-council/sutton,London Borough of Sutton,18/07/2020,40442242,"4,062.24",Direct Care And Support Services,23268,Peoples Services Directorate,Supported Living - Ext Provider,G306
http://opendatacommunities.org/id/london-borough-council/sutton,London Borough of Sutton,18/07/2020,40442252,"5,514.48",Direct Care And Support Services,23268,Peoples Services Directorate,Supported Living - Ext Provider,G306
http://opendatacommunities.org/id/london-borough-council/sutton,London Borough of Sutton,18/07/2020,40442253,"2,256.24",Direct Care And Support Services,23268,Peoples Services Directorate,Supported Living - Ext Provider,G306
http://opendatacommunities.org/id/london-borough-council/sutton,London Borough of Sutton,18/07/2020,40442254,"2,204.16",Direct Care And Support Services,23268,Peoples Services Directorate,Supported Living - Ext Provider,G306
http://opendatacommunities.org/id/london-borough-council/sutton,London Borough of Sutton,18/07/2020,40442255,"1,570.80",Direct Care And Support Services,23268,Peoples Services Directorate,Supported Living - Ext Provider,G306
http://opendatacommunities.org/id/london-borough-council/sutton,London Borough of Sutton,18/07/2020,40442256,"7,669.20",Direct Care And Support Services,23268,Peoples Services Directorate,Supported Living - Ext Provider,G306
http://opendatacommunities.org/id/london-borough-council/sutton,London Borough of Sutton,18/07/2020,40442261,"3,496.00",Direct Care And Support Services,23268,Peoples Services Directorate,Supported Living - Ext Provider,G306
http://opendatacommunities.org/id/london-borough-council/sutton,London Borough of Sutton,02/07/2020,40438468,"2,784.92",HF Trust Ltd,12131,Peoples Services Directorate,Supported Living - Ext Provider,G306
http://opendatacommunities.org/id/london-borough-council/sutton,London Borough of Sutton,30/06/2020,40437670,"9,732.60",Independence Homes,16042,Peoples Services Directorate,Supported Living - Ext Provider,G306
http://opendatacommunities.org/id/london-borough-council/sutton,London Borough of Sutton,30/06/2020,40437671,"5,675.10",Independence Homes,16042,Peoples Services Directorate,Supported Living - Ext Provider,G306
http://opendatacommunities.org/id/london-borough-council/sutton,London Borough of Sutton,30/06/2020,40437672,"7,353.90",Independence Homes,16042,Peoples Services Directorate,Supported Living - Ext Provider,G306
http://opendatacommunities.org/id/london-borough-council/sutton,London Borough of Sutton,30/06/2020,40437673,"3,107.10",Independence Homes,16042,Peoples Services Directorate,Supported Living - Ext Provider,G306
http://opendatacommunities.org/id/london-borough-council/sutton,London Borough of Sutton,30/06/2020,40437674,"4,885.20",Independence Homes,16042,Peoples Services Directorate,Supported Living - Ext Provider,G306
http://opendatacommunities.org/id/london-borough-council/sutton,London Borough of Sutton,30/06/2020,40437675,"6,292.80",Independence Homes,16042,Peoples Services Directorate,Supported Living - Ext Provider,G306
http://opendatacommunities.org/id/london-borough-council/sutton,London Borough of Sutton,30/06/2020,40437676,925.8,Independence Homes,16042,Peoples Services Directorate,Supported Living - Ext Provider,G306
http://opendatacommunities.org/id/london-borough-council/sutton,London Borough of Sutton,30/06/2020,40437677,"6,705.00",Independence Homes,16042,Peoples Services Directorate,Supported Living - Ext Provider,G306
http://opendatacommunities.org/id/london-borough-council/sutton,London Borough of Sutton,30/06/2020,40437680,"8,806.80",Independence Homes,16042,Peoples Services Directorate,Supported Living - Ext Provider,G306
http://opendatacommunities.org/id/london-borough-council/sutton,London Borough of Sutton,30/06/2020,40437681,"6,018.30",Independence Homes,16042,Peoples Services Directorate,Supported Living - Ext Provider,G306
http://opendatacommunities.org/id/london-borough-council/sutton,London Borough of Sutton,30/06/2020,40437682,"3,699.30",Independence Homes,16042,Peoples Services Directorate,Supported Living - Ext Provider,G306
http://opendatacommunities.org/id/london-borough-council/sutton,London Borough of Sutton,22/07/2020,40442334,"1,509.62",Living Ambitions Ltd,10811,Peoples Services Directorate,Supported Living - Ext Provider,G306
http://opendatacommunities.org/id/london-borough-council/sutton,London Borough of Sutton,22/07/2020,40442334,"1,034.65",Living Ambitions Ltd,10811,Peoples Services Directorate,Supported Living - Ext Provider,G306
http://opendatacommunities.org/id/london-borough-council/sutton,London Borough of Sutton,22/07/2020,40442334,"3,537.28",Living Ambitions Ltd,10811,Peoples Services Directorate,Supported Living - Ext Provider,G306
http://opendatacommunities.org/id/london-borough-council/sutton,London Borough of Sutton,22/07/2020,40442336,"6,993.16",Living Ambitions Ltd,10811,Peoples Services Directorate,Supported Living - Ext Provider,G306
http://opendatacommunities.org/id/london-borough-council/sutton,London Borough of Sutton,22/07/2020,40442336,"6,209.61",Living Ambitions Ltd,10811,Peoples Services Directorate,Supported Living - Ext Provider,G306
http://opendatacommunities.org/id/london-borough-council/sutton,London Borough of Sutton,22/07/2020,40442337,967.74,Living Ambitions Ltd,10811,Peoples Services Directorate,Supported Living - Ext Provider,G306
http://opendatacommunities.org/id/london-borough-council/sutton,London Borough of Sutton,22/07/2020,40442337,"5,180.10",Living Ambitions Ltd,10811,Peoples Services Directorate,Supported Living - Ext Provider,G306
http://opendatacommunities.org/id/london-borough-council/sutton,London Borough of Sutton,22/07/2020,40442339,"1,034.65",Living Ambitions Ltd,10811,Peoples Services Directorate,Supported Living - Ext Provider,G306
http://opendatacommunities.org/id/london-borough-council/sutton,London Borough of Sutton,22/07/2020,40442339,"7,955.17",Living Ambitions Ltd,10811,Peoples Services Directorate,Supported Living - Ext Provider,G306
http://opendatacommunities.org/id/london-borough-council/sutton,London Borough of Sutton,22/07/2020,40442347,"1,034.65",Living Ambitions Ltd,10811,Peoples Services Directorate,Supported Living - Ext Provider,G306
http://opendatacommunities.org/id/london-borough-council/sutton,London Borough of Sutton,22/07/2020,40442347,"5,254.11",Living Ambitions Ltd,10811,Peoples Services Directorate,Supported Living - Ext Provider,G306
http://opendatacommunities.org/id/london-borough-council/sutton,London Borough of Sutton,22/07/2020,40442358,"7,067.15",Living Ambitions Ltd,10811,Peoples Services Directorate,Supported Living - Ext Provider,G306
http://opendatacommunities.org/id/london-borough-council/sutton,London Borough of Sutton,22/07/2020,40442358,"1,034.65",Living Ambitions Ltd,10811,Peoples Services Directorate,Supported Living - Ext Provider,G306
http://opendatacommunities.org/id/london-borough-council/sutton,London Borough of Sutton,22/07/2020,40442359,967.74,Living Ambitions Ltd,10811,Peoples Services Directorate,Supported Living - Ext Provider,G306
http://opendatacommunities.org/id/london-borough-council/sutton,London Borough of Sutton,22/07/2020,40442359,"4,921.12",Living Ambitions Ltd,10811,Peoples Services Directorate,Supported Living - Ext Provider,G306
http://opendatacommunities.org/id/london-borough-council/sutton,London Borough of Sutton,22/07/2020,40442360,"1,739.05",Living Ambitions Ltd,10811,Peoples Services Directorate,Supported Living - Ext Provider,G306
http://opendatacommunities.org/id/london-borough-council/sutton,London Borough of Sutton,22/07/2020,40442360,"1,034.65",Living Ambitions Ltd,10811,Peoples Services Directorate,Supported Living - Ext Provider,G306
http://opendatacommunities.org/id/london-borough-council/sutton,London Borough of Sutton,22/07/2020,40442360,"3,293.08",Living Ambitions Ltd,10811,Peoples Services Directorate,Supported Living - Ext Provider,G306
http://opendatacommunities.org/id/london-borough-council/sutton,London Borough of Sutton,22/07/2020,40442369,967.74,Living Ambitions Ltd,10811,Peoples Services Directorate,Supported Living - Ext Provider,G306
http://opendatacommunities.org/id/london-borough-council/sutton,London Borough of Sutton,22/07/2020,40442369,"6,216.12",Living Ambitions Ltd,10811,Peoples Services Directorate,Supported Living - Ext Provider,G306
http://opendatacommunities.org/id/london-borough-council/sutton,London Borough of Sutton,22/07/2020,40442372,967.74,Living Ambitions Ltd,10811,Peoples Services Directorate,Supported Living - Ext Provider,G306
http://opendatacommunities.org/id/london-borough-council/sutton,London Borough of Sutton,22/07/2020,40442372,"2,590.05",Living Ambitions Ltd,10811,Peoples Services Directorate,Supported Living - Ext Provider,G306
http://opendatacommunities.org/id/london-borough-council/sutton,London Borough of Sutton,22/07/2020,40442373,"1,058.78",Living Ambitions Ltd,10811,Peoples Services Directorate,Supported Living - Ext Provider,G306
http://opendatacommunities.org/id/london-borough-council/sutton,London Borough of Sutton,22/07/2020,40442373,"6,844.02",Living Ambitions Ltd,10811,Peoples Services Directorate,Supported Living - Ext Provider,G306
http://opendatacommunities.org/id/london-borough-council/sutton,London Borough of Sutton,22/07/2020,40442373,"4,071.84",Living Ambitions Ltd,10811,Peoples Services Directorate,Supported Living - Ext Provider,G306
http://opendatacommunities.org/id/london-borough-council/sutton,London Borough of Sutton,22/07/2020,40442373,"10,775.56",Living Ambitions Ltd,10811,Peoples Services Directorate,Supported Living - Ext Provider,G306
http://opendatacommunities.org/id/london-borough-council/sutton,London Borough of Sutton,22/07/2020,40442379,967.74,Living Ambitions Ltd,10811,Peoples Services Directorate,Supported Living - Ext Provider,G306
http://opendatacommunities.org/id/london-borough-council/sutton,London Borough of Sutton,22/07/2020,40442379,"6,216.12",Living Ambitions Ltd,10811,Peoples Services Directorate,Supported Living - Ext Provider,G306
http://opendatacommunities.org/id/london-borough-council/sutton,London Borough of Sutton,22/07/2020,40442382,967.74,Living Ambitions Ltd,10811,Peoples Services Directorate,Supported Living - Ext Provider,G306
http://opendatacommunities.org/id/london-borough-council/sutton,London Borough of Sutton,22/07/2020,40442382,"4,662.09",Living Ambitions Ltd,10811,Peoples Services Directorate,Supported Living - Ext Provider,G306
http://opendatacommunities.org/id/london-borough-council/sutton,London Borough of Sutton,22/07/2020,40442383,967.74,Living Ambitions Ltd,10811,Peoples Services Directorate,Supported Living - Ext Provider,G306
http://opendatacommunities.org/id/london-borough-council/sutton,London Borough of Sutton,22/07/2020,40442383,648.14,Living Ambitions Ltd,10811,Peoples Services Directorate,Supported Living - Ext Provider,G306
http://opendatacommunities.org/id/london-borough-council/sutton,London Borough of Sutton,12/07/2020,40442392,"5,620.00",Morton Gardens Domicilary Care Agency,24324,Peoples Services Directorate,Supported Living - Ext Provider,G306
http://opendatacommunities.org/id/london-borough-council/sutton,London Borough of Sutton,12/07/2020,40442393,"5,960.00",Morton Gardens Domicilary Care Agency,24324,Peoples Services Directorate,Supported Living - Ext Provider,G306
http://opendatacommunities.org/id/london-borough-council/sutton,London Borough of Sutton,22/07/2020,40442370,"9,562.50",Next Step Support,35462,Peoples Services Directorate,Supported Living - Ext Provider,G306
http://opendatacommunities.org/id/london-borough-council/sutton,London Borough of Sutton,01/07/2020,40442394,"3,289.08",Outreach,20473,Peoples Services Directorate,Supported Living - Ext Provider,G306
http://opendatacommunities.org/id/london-borough-council/sutton,London Borough of Sutton,24/06/2020,40438477,"2,553.64",Providence LINC United Services(t/a Plus),29006,Peoples Services Directorate,Supported Living - Ext Provider,G306
http://opendatacommunities.org/id/london-borough-council/sutton,London Borough of Sutton,24/06/2020,40438478,"4,293.90",Providence LINC United Services(t/a Plus),29006,Peoples Services Directorate,Supported Living - Ext Provider,G306
http://opendatacommunities.org/id/london-borough-council/sutton,London Borough of Sutton,24/06/2020,40438479,"2,422.93",Providence LINC United Services(t/a Plus),29006,Peoples Services Directorate,Supported Living - Ext Provider,G306
http://opendatacommunities.org/id/london-borough-council/sutton,London Borough of Sutton,22/07/2020,40442335,"5,146.44",Royal Mencap Society,12963,Peoples Services Directorate,Supported Living - Ext Provider,G306
http://opendatacommunities.org/id/london-borough-council/sutton,London Borough of Sutton,22/07/2020,40442364,"3,160.14",Royal Mencap Society,12963,Peoples Services Directorate,Supported Living - Ext Provider,G306
http://opendatacommunities.org/id/london-borough-council/sutton,London Borough of Sutton,22/07/2020,40442371,"4,703.76",Royal Mencap Society,12963,Peoples Services Directorate,Supported Living - Ext Provider,G306
http://opendatacommunities.org/id/london-borough-council/sutton,London Borough of Sutton,22/07/2020,40442380,"4,780.56",Royal Mencap Society,12963,Peoples Services Directorate,Supported Living - Ext Provider,G306
http://opendatacommunities.org/id/london-borough-council/sutton,London Borough of Sutton,22/07/2020,40442381,"3,876.94",Royal Mencap Society,12963,Peoples Services Directorate,Supported Living - Ext Provider,G306
http://opendatacommunities.org/id/london-borough-council/sutton,London Borough of Sutton,22/07/2020,40442349,"4,307.76",S.A.I Infinity Care Ltd,28577,Peoples Services Directorate,Supported Living - Ext Provider,G306
http://opendatacommunities.org/id/london-borough-council/sutton,London Borough of Sutton,30/06/2020,40438469,"5,236.07",Transparent Care Ltd,27081,Peoples Services Directorate,Supported Living - Ext Provider,G306
http://opendatacommunities.org/id/london-borough-council/sutton,London Borough of Sutton,30/06/2020,40438471,"4,671.40",Transparent Care Ltd,27081,Peoples Services Directorate,Supported Living - Ext Provider,G306
http://opendatacommunities.org/id/london-borough-council/sutton,London Borough of Sutton,30/06/2020,40438472,"3,080.00",Transparent Care Ltd,27081,Peoples Services Directorate,Supported Living - Ext Provider,G306
http://opendatacommunities.org/id/london-borough-council/sutton,London Borough of Sutton,22/07/2020,40440556,"1,438.21",REDACTED - PERSONAL DATA,21929,Peoples Services Directorate,Shared Lives (AFP) - Ext Provider,G307
http://opendatacommunities.org/id/london-borough-council/sutton,London Borough of Sutton,22/07/2020,40440557,"1,139.01",REDACTED - PERSONAL DATA,28556,Peoples Services Directorate,Shared Lives (AFP) - Ext Provider,G307
http://opendatacommunities.org/id/london-borough-council/sutton,London Borough of Sutton,22/07/2020,40440558,"1,139.01",REDACTED - PERSONAL DATA,26062,Peoples Services Directorate,Shared Lives (AFP) - Ext Provider,G307
http://opendatacommunities.org/id/london-borough-council/sutton,London Borough of Sutton,22/07/2020,40440559,"3,000.00",REDACTED - PERSONAL DATA,99205,Peoples Services Directorate,Shared Lives (AFP) - Ext Provider,G307
http://opendatacommunities.org/id/london-borough-council/sutton,London Borough of Sutton,22/07/2020,40440560,"1,139.01",REDACTED - PERSONAL DATA,20211,Peoples Services Directorate,Shared Lives (AFP) - Ext Provider,G307
http://opendatacommunities.org/id/london-borough-council/sutton,London Borough of Sutton,22/07/2020,40440561,"1,417.92",REDACTED - PERSONAL DATA,10360,Peoples Services Directorate,Shared Lives (AFP) - Ext Provider,G307
http://opendatacommunities.org/id/london-borough-council/sutton,London Borough of Sutton,22/07/2020,40440562,"1,417.92",REDACTED - PERSONAL DATA,23950,Peoples Services Directorate,Shared Lives (AFP) - Ext Provider,G307
http://opendatacommunities.org/id/london-borough-council/sutton,London Borough of Sutton,22/07/2020,40440563,"1,417.92",REDACTED - PERSONAL DATA,21929,Peoples Services Directorate,Shared Lives (AFP) - Ext Provider,G307
http://opendatacommunities.org/id/london-borough-council/sutton,London Borough of Sutton,22/07/2020,40440564,"1,417.92",REDACTED - PERSONAL DATA,24542,Peoples Services Directorate,Shared Lives (AFP) - Ext Provider,G307
http://opendatacommunities.org/id/london-borough-council/sutton,London Borough of Sutton,22/07/2020,40440566,"1,401.09",REDACTED - PERSONAL DATA,28322,Peoples Services Directorate,Shared Lives (AFP) - Ext Provider,G307
http://opendatacommunities.org/id/london-borough-council/sutton,London Borough of Sutton,22/07/2020,40440567,"1,438.21",REDACTED - PERSONAL DATA,23950,Peoples Services Directorate,Shared Lives (AFP) - Ext Provider,G307
http://opendatacommunities.org/id/london-borough-council/sutton,London Borough of Sutton,22/07/2020,40440568,"1,118.72",REDACTED - PERSONAL DATA,10670,Peoples Services Directorate,Shared Lives (AFP) - Ext Provider,G307
http://opendatacommunities.org/id/london-borough-council/sutton,London Borough of Sutton,22/07/2020,40440569,"1,118.72",REDACTED - PERSONAL DATA,16718,Peoples Services Directorate,Shared Lives (AFP) - Ext Provider,G307
http://opendatacommunities.org/id/london-borough-council/sutton,London Borough of Sutton,22/07/2020,40440570,"1,980.29",REDACTED - PERSONAL DATA,28116,Peoples Services Directorate,Shared Lives (AFP) - Ext Provider,G307
http://opendatacommunities.org/id/london-borough-council/sutton,London Borough of Sutton,22/07/2020,40440571,"1,118.72",REDACTED - PERSONAL DATA,28754,Peoples Services Directorate,Shared Lives (AFP) - Ext Provider,G307
http://opendatacommunities.org/id/london-borough-council/sutton,London Borough of Sutton,22/07/2020,40440572,"1,277.12",REDACTED - PERSONAL DATA,28116,Peoples Services Directorate,Shared Lives (AFP) - Ext Provider,G307
http://opendatacommunities.org/id/london-borough-council/sutton,London Borough of Sutton,22/07/2020,40440573,"1,438.21",REDACTED - PERSONAL DATA,10670,Peoples Services Directorate,Shared Lives (AFP) - Ext Provider,G307
http://opendatacommunities.org/id/london-borough-council/sutton,London Borough of Sutton,22/07/2020,40440574,"1,139.01",REDACTED - PERSONAL DATA,12667,Peoples Services Directorate,Shared Lives (AFP) - Ext Provider,G307
http://opendatacommunities.org/id/london-borough-council/sutton,London Borough of Sutton,22/07/2020,40440575,"1,417.92",REDACTED - PERSONAL DATA,20211,Peoples Services Directorate,Shared Lives (AFP) - Ext Provider,G307
http://opendatacommunities.org/id/london-borough-council/sutton,London Borough of Sutton,22/07/2020,40440576,"1,438.21",REDACTED - PERSONAL DATA,13714,Peoples Services Directorate,Shared Lives (AFP) - Ext Provider,G307
http://opendatacommunities.org/id/london-borough-council/sutton,London Borough of Sutton,22/07/2020,40440577,"1,438.21",REDACTED - PERSONAL DATA,28525,Peoples Services Directorate,Shared Lives (AFP) - Ext Provider,G307
http://opendatacommunities.org/id/london-borough-council/sutton,London Borough of Sutton,22/07/2020,40440578,"1,118.72",REDACTED - PERSONAL DATA,23950,Peoples Services Directorate,Shared Lives (AFP) - Ext Provider,G307
http://opendatacommunities.org/id/london-borough-council/sutton,London Borough of Sutton,22/07/2020,40440579,"1,438.21",REDACTED - PERSONAL DATA,11371,Peoples Services Directorate,Shared Lives (AFP) - Ext Provider,G307
http://opendatacommunities.org/id/london-borough-council/sutton,London Borough of Sutton,22/07/2020,40440580,"1,438.21",REDACTED - PERSONAL DATA,24542,Peoples Services Directorate,Shared Lives (AFP) - Ext Provider,G307
http://opendatacommunities.org/id/london-borough-council/sutton,London Borough of Sutton,22/07/2020,40440581,"1,438.21",REDACTED - PERSONAL DATA,13022,Peoples Services Directorate,Shared Lives (AFP) - Ext Provider,G307
http://opendatacommunities.org/id/london-borough-council/sutton,London Borough of Sutton,22/07/2020,40440582,"1,118.72",REDACTED - PERSONAL DATA,11371,Peoples Services Directorate,Shared Lives (AFP) - Ext Provider,G307
http://opendatacommunities.org/id/london-borough-council/sutton,London Borough of Sutton,22/07/2020,40440583,"1,139.01",REDACTED - PERSONAL DATA,13920,Peoples Services Directorate,Shared Lives (AFP) - Ext Provider,G307
http://opendatacommunities.org/id/london-borough-council/sutton,London Borough of Sutton,22/07/2020,40440584,"1,118.72",REDACTED - PERSONAL DATA,25403,Peoples Services Directorate,Shared Lives (AFP) - Ext Provider,G307
http://opendatacommunities.org/id/london-borough-council/sutton,London Borough of Sutton,22/07/2020,40440585,"1,139.01",REDACTED - PERSONAL DATA,16718,Peoples Services Directorate,Shared Lives (AFP) - Ext Provider,G307
http://opendatacommunities.org/id/london-borough-council/sutton,London Borough of Sutton,22/07/2020,40440586,"1,400.29",REDACTED - PERSONAL DATA,10360,Peoples Services Directorate,Shared Lives (AFP) - Ext Provider,G307
http://opendatacommunities.org/id/london-borough-council/sutton,London Borough of Sutton,22/07/2020,40440587,"1,438.21",REDACTED - PERSONAL DATA,28754,Peoples Services Directorate,Shared Lives (AFP) - Ext Provider,G307
http://opendatacommunities.org/id/london-borough-council/sutton,London Borough of Sutton,22/07/2020,40440588,"2,790.00",REDACTED - PERSONAL DATA,35869,Peoples Services Directorate,Shared Lives (AFP) - Ext Provider,G307
http://opendatacommunities.org/id/london-borough-council/sutton,London Borough of Sutton,10/07/2020,40442240,780,REDACTED - PERSONAL DATA,28754,Peoples Services Directorate,Shared Lives (AFP) - Ext Provider,G307
http://opendatacommunities.org/id/london-borough-council/sutton,London Borough of Sutton,27/03/2020,40442241,511.14,REDACTED - PERSONAL DATA,24164,Peoples Services Directorate,Shared Lives (AFP) - Ext Provider,G307
http://opendatacommunities.org/id/london-borough-council/sutton,London Borough of Sutton,13/07/2020,40442245,"1,000.00",REDACTED - PERSONAL DATA,34854,Peoples Services Directorate,Shared Lives (AFP) - Ext Provider,G307
http://opendatacommunities.org/id/london-borough-council/sutton,London Borough of Sutton,02/06/2020,40442246,450,REDACTED - PERSONAL DATA,20211,Peoples Services Directorate,Shared Lives (AFP) - Ext Provider,G307
http://opendatacommunities.org/id/london-borough-council/sutton,London Borough of Sutton,30/06/2020,40442247,"1,100.00",REDACTED - PERSONAL DATA,24542,Peoples Services Directorate,Shared Lives (AFP) - Ext Provider,G307
http://opendatacommunities.org/id/london-borough-council/sutton,London Borough of Sutton,24/06/2020,40442248,428.56,REDACTED - PERSONAL DATA,99205,Peoples Services Directorate,Shared Lives (AFP) - Ext Provider,G307
http://opendatacommunities.org/id/london-borough-council/sutton,London Borough of Sutton,29/06/2020,40442249,720,REDACTED - PERSONAL DATA,34853,Peoples Services Directorate,Shared Lives (AFP) - Ext Provider,G307
http://opendatacommunities.org/id/london-borough-council/sutton,London Borough of Sutton,05/06/2020,40442250,436.31,REDACTED - PERSONAL DATA,34945,Peoples Services Directorate,Shared Lives (AFP) - Ext Provider,G307
http://opendatacommunities.org/id/london-borough-council/sutton,London Borough of Sutton,24/06/2020,40442251,428.56,REDACTED - PERSONAL DATA,29003,Peoples Services Directorate,Shared Lives (AFP) - Ext Provider,G307
http://opendatacommunities.org/id/london-borough-council/sutton,London Borough of Sutton,16/07/2020,40442257,600,REDACTED - PERSONAL DATA,23950,Peoples Services Directorate,Shared Lives (AFP) - Ext Provider,G307
http://opendatacommunities.org/id/london-borough-council/sutton,London Borough of Sutton,26/06/2020,40442264,"2,745.24",REDACTED - PERSONAL DATA,35869,Peoples Services Directorate,Shared Lives (AFP) - Ext Provider,G307
http://opendatacommunities.org/id/london-borough-council/sutton,London Borough of Sutton,10/07/2020,40436087,"2,903.20",Acorn Lodge,15804,Peoples Services Directorate,Residential Care - Ext Provider,G310
http://opendatacommunities.org/id/london-borough-council/sutton,London Borough of Sutton,10/07/2020,40436174,"3,115.36",Acorn Residential Home,15828,Peoples Services Directorate,Residential Care - Ext Provider,G310
http://opendatacommunities.org/id/london-borough-council/sutton,London Borough of Sutton,10/07/2020,40436182,"7,511.00",Aims Care Partnership (Leighton House Ltd),12628,Peoples Services Directorate,Residential Care - Ext Provider,G310
http://opendatacommunities.org/id/london-borough-council/sutton,London Borough of Sutton,10/07/2020,40435936,"8,400.16",Aitch Care Homes,20446,Peoples Services Directorate,Residential Care - Ext Provider,G310
http://opendatacommunities.org/id/london-borough-council/sutton,London Borough of Sutton,10/07/2020,40436138,"5,278.00",Aitch Care Homes,20446,Peoples Services Directorate,Residential Care - Ext Provider,G310
http://opendatacommunities.org/id/london-borough-council/sutton,London Borough of Sutton,10/07/2020,40436132,"4,454.16",Allied Care (Mhs) Ltd,10145,Peoples Services Directorate,Residential Care - Ext Provider,G310
http://opendatacommunities.org/id/london-borough-council/sutton,London Borough of Sutton,10/07/2020,40436133,"4,505.60",Allswell Care Services Ltd,20761,Peoples Services Directorate,Residential Care - Ext Provider,G310
http://opendatacommunities.org/id/london-borough-council/sutton,London Borough of Sutton,10/07/2020,40436183,"6,370.00",Allswell Care Services Ltd,20761,Peoples Services Directorate,Residential Care - Ext Provider,G310
http://opendatacommunities.org/id/london-borough-council/sutton,London Borough of Sutton,10/07/2020,40436227,"3,563.52",Allswell Care Services Ltd,20761,Peoples Services Directorate,Residential Care - Ext Provider,G310
http://opendatacommunities.org/id/london-borough-council/sutton,London Borough of Sutton,10/07/2020,40435938,"2,662.40",Anchor Trust,17878,Peoples Services Directorate,Residential Care - Ext Provider,G310
http://opendatacommunities.org/id/london-borough-council/sutton,London Borough of Sutton,10/07/2020,40435846,"6,848.00",Ashcroft Care Services,22571,Peoples Services Directorate,Residential Care - Ext Provider,G310
http://opendatacommunities.org/id/london-borough-council/sutton,London Borough of Sutton,10/07/2020,40435863,"7,534.40",Ashcroft Care Services,22571,Peoples Services Directorate,Residential Care - Ext Provider,G310
http://opendatacommunities.org/id/london-borough-council/sutton,London Borough of Sutton,10/07/2020,40436201,"5,492.48",Aspens Charities,30002,Peoples Services Directorate,Residential Care - Ext Provider,G310
http://opendatacommunities.org/id/london-borough-council/sutton,London Borough of Sutton,10/07/2020,40436179,"4,580.72",Autism & Aspergers Care Services,10327,Peoples Services Directorate,Residential Care - Ext Provider,G310
http://opendatacommunities.org/id/london-borough-council/sutton,London Borough of Sutton,10/07/2020,40435855,"7,824.28",Butterfly's Care Homes Ltd,28860,Peoples Services Directorate,Residential Care - Ext Provider,G310
http://opendatacommunities.org/id/london-borough-council/sutton,London Borough of Sutton,10/07/2020,40435858,"3,913.56",Canterbury Oast Trust,10755,Peoples Services Directorate,Residential Care - Ext Provider,G310
http://opendatacommunities.org/id/london-borough-council/sutton,London Borough of Sutton,10/07/2020,40436121,"3,631.80",Care Direct Uk Ltd  (David House),27080,Peoples Services Directorate,Residential Care - Ext Provider,G310
http://opendatacommunities.org/id/london-borough-council/sutton,London Borough of Sutton,10/07/2020,40436047,"4,600.00",Care UK Homecare Ltd,10853,Peoples Services Directorate,Residential Care - Ext Provider,G310
http://opendatacommunities.org/id/london-borough-council/sutton,London Borough of Sutton,10/07/2020,40435994,"5,676.16",Caretech Community Services Ltd,10791,Peoples Services Directorate,Residential Care - Ext Provider,G310
http://opendatacommunities.org/id/london-borough-council/sutton,London Borough of Sutton,10/07/2020,40436088,"5,531.60",Caretech Community Services Ltd,10791,Peoples Services Directorate,Residential Care - Ext Provider,G310
http://opendatacommunities.org/id/london-borough-council/sutton,London Borough of Sutton,10/07/2020,40436134,"5,534.00",Caretech Community Services Ltd,10791,Peoples Services Directorate,Residential Care - Ext Provider,G310
http://opendatacommunities.org/id/london-borough-council/sutton,London Borough of Sutton,10/07/2020,40436135,"5,534.00",Caretech Community Services Ltd,10791,Peoples Services Directorate,Residential Care - Ext Provider,G310
http://opendatacommunities.org/id/london-borough-council/sutton,London Borough of Sutton,10/07/2020,40435878,"4,440.00",Carlene House,10763,Peoples Services Directorate,Residential Care - Ext Provider,G310
http://opendatacommunities.org/id/london-borough-council/sutton,London Borough of Sutton,10/07/2020,40435879,"2,806.40",Carlene House,10763,Peoples Services Directorate,Residential Care - Ext Provider,G310
http://opendatacommunities.org/id/london-borough-council/sutton,London Borough of Sutton,10/07/2020,40435880,"2,693.72",Carlene House,10763,Peoples Services Directorate,Residential Care - Ext Provider,G310
http://opendatacommunities.org/id/london-borough-council/sutton,London Borough of Sutton,10/07/2020,40435881,"2,718.40",Carlene House,10763,Peoples Services Directorate,Residential Care - Ext Provider,G310
http://opendatacommunities.org/id/london-borough-council/sutton,London Borough of Sutton,10/07/2020,40435989,"2,688.28",Carlene House,10763,Peoples Services Directorate,Residential Care - Ext Provider,G310
http://opendatacommunities.org/id/london-borough-council/sutton,London Borough of Sutton,10/07/2020,40436129,"2,747.08",Carlene House,10763,Peoples Services Directorate,Residential Care - Ext Provider,G310
http://opendatacommunities.org/id/london-borough-council/sutton,London Borough of Sutton,10/07/2020,40436175,"2,688.28",Carlene House,10763,Peoples Services Directorate,Residential Care - Ext Provider,G310
http://opendatacommunities.org/id/london-borough-council/sutton,London Borough of Sutton,10/07/2020,40436109,"2,790.40",Cherry Lodge,10934,Peoples Services Directorate,Residential Care - Ext Provider,G310
http://opendatacommunities.org/id/london-borough-council/sutton,London Borough of Sutton,10/07/2020,40436184,"3,360.00",Cherry Lodge,10934,Peoples Services Directorate,Residential Care - Ext Provider,G310
http://opendatacommunities.org/id/london-borough-council/sutton,London Borough of Sutton,10/07/2020,40435941,"7,511.00",Choice Care Group (Surrey) Ltd,22029,Peoples Services Directorate,Residential Care - Ext Provider,G310
http://opendatacommunities.org/id/london-borough-council/sutton,London Borough of Sutton,10/07/2020,40435942,"7,526.32",Choice Care Group (Surrey) Ltd,22029,Peoples Services Directorate,Residential Care - Ext Provider,G310
http://opendatacommunities.org/id/london-borough-council/sutton,London Borough of Sutton,10/07/2020,40436049,"7,240.00",Choice Care Group (Surrey) Ltd,22029,Peoples Services Directorate,Residential Care - Ext Provider,G310
http://opendatacommunities.org/id/london-borough-council/sutton,London Borough of Sutton,10/07/2020,40436090,"7,878.28",Choice Care Group (Surrey) Ltd,22029,Peoples Services Directorate,Residential Care - Ext Provider,G310
http://opendatacommunities.org/id/london-borough-council/sutton,London Borough of Sutton,10/07/2020,40435944,"5,509.00",Choice Support,12929,Peoples Services Directorate,Residential Care - Ext Provider,G310
http://opendatacommunities.org/id/london-borough-council/sutton,London Borough of Sutton,10/07/2020,40436142,"2,600.00",Cloyda Limited,20402,Peoples Services Directorate,Residential Care - Ext Provider,G310
http://opendatacommunities.org/id/london-borough-council/sutton,London Borough of Sutton,10/07/2020,40435967,"7,036.00",Cmg Homes Ltd,11026,Peoples Services Directorate,Residential Care - Ext Provider,G310
http://opendatacommunities.org/id/london-borough-council/sutton,London Borough of Sutton,10/07/2020,40436089,"5,416.92",Cmg Homes Ltd,11026,Peoples Services Directorate,Residential Care - Ext Provider,G310
http://opendatacommunities.org/id/london-borough-council/sutton,London Borough of Sutton,10/07/2020,40436081,"2,634.68",Crossways Community,11187,Peoples Services Directorate,Residential Care - Ext Provider,G310
http://opendatacommunities.org/id/london-borough-council/sutton,London Borough of Sutton,10/07/2020,40436114,"4,168.24",Crossways Community,11187,Peoples Services Directorate,Residential Care - Ext Provider,G310
http://opendatacommunities.org/id/london-borough-council/sutton,London Borough of Sutton,10/07/2020,40435887,"7,200.00",CSS Ltd t/a Grove Care,19184,Peoples Services Directorate,Residential Care - Ext Provider,G310
http://opendatacommunities.org/id/london-borough-council/sutton,London Borough of Sutton,10/07/2020,40435918,"2,918.00",Denville Hall 2012,35324,Peoples Services Directorate,Residential Care - Ext Provider,G310
http://opendatacommunities.org/id/london-borough-council/sutton,London Borough of Sutton,10/07/2020,40436185,"3,071.92",Dunheved Lodge,11403,Peoples Services Directorate,Residential Care - Ext Provider,G310
http://opendatacommunities.org/id/london-borough-council/sutton,London Borough of Sutton,10/07/2020,40436140,"4,484.80",Eleanor Nursing & Social Care Ltd,25134,Peoples Services Directorate,Residential Care - Ext Provider,G310
http://opendatacommunities.org/id/london-borough-council/sutton,London Borough of Sutton,10/07/2020,40435864,"7,390.52",Elysium Supported Living Limited,34957,Peoples Services Directorate,Residential Care - Ext Provider,G310
http://opendatacommunities.org/id/london-borough-council/sutton,London Borough of Sutton,10/07/2020,40435871,"2,600.00",Eothen Homes Ltd,11539,Peoples Services Directorate,Residential Care - Ext Provider,G310
http://opendatacommunities.org/id/london-borough-council/sutton,London Borough of Sutton,10/07/2020,40435925,"2,600.00",Eothen Homes Ltd,11539,Peoples Services Directorate,Residential Care - Ext Provider,G310
http://opendatacommunities.org/id/london-borough-council/sutton,London Borough of Sutton,10/07/2020,40435984,"2,600.00",Eothen Homes Ltd,11539,Peoples Services Directorate,Residential Care - Ext Provider,G310
http://opendatacommunities.org/id/london-borough-council/sutton,London Borough of Sutton,10/07/2020,40435985,"2,600.00",Eothen Homes Ltd,11539,Peoples Services Directorate,Residential Care - Ext Provider,G310
http://opendatacommunities.org/id/london-borough-council/sutton,London Borough of Sutton,10/07/2020,40436220,"2,600.00",Eothen Homes Ltd,11539,Peoples Services Directorate,Residential Care - Ext Provider,G310
http://opendatacommunities.org/id/london-borough-council/sutton,London Borough of Sutton,10/07/2020,40435890,"3,520.52",Fircroft Homes,11660,Peoples Services Directorate,Residential Care - Ext Provider,G310
http://opendatacommunities.org/id/london-borough-council/sutton,London Borough of Sutton,10/07/2020,40436004,"3,848.28",Fitzroy,11657,Peoples Services Directorate,Residential Care - Ext Provider,G310
http://opendatacommunities.org/id/london-borough-council/sutton,London Borough of Sutton,10/07/2020,40436213,"7,200.00",Florence Avenue Care Home Ltd,26881,Peoples Services Directorate,Residential Care - Ext Provider,G310
http://opendatacommunities.org/id/london-borough-council/sutton,London Borough of Sutton,10/07/2020,40436194,"2,600.00",Foxley Lodge,16555,Peoples Services Directorate,Residential Care - Ext Provider,G310
http://opendatacommunities.org/id/london-borough-council/sutton,London Borough of Sutton,10/07/2020,40435933,"3,212.00",Friends Of The Elderly,11766,Peoples Services Directorate,Residential Care - Ext Provider,G310
http://opendatacommunities.org/id/london-borough-council/sutton,London Borough of Sutton,10/07/2020,40435991,"2,600.00",Friends Of The Elderly,11766,Peoples Services Directorate,Residential Care - Ext Provider,G310
http://opendatacommunities.org/id/london-borough-council/sutton,London Borough of Sutton,10/07/2020,40436040,"3,212.00",Friends Of The Elderly,11766,Peoples Services Directorate,Residential Care - Ext Provider,G310
http://opendatacommunities.org/id/london-borough-council/sutton,London Borough of Sutton,10/07/2020,40435894,"2,600.00",Gable Lodge,11789,Peoples Services Directorate,Residential Care - Ext Provider,G310
http://opendatacommunities.org/id/london-borough-council/sutton,London Borough of Sutton,10/07/2020,40436006,"2,600.00",Gable Lodge,11789,Peoples Services Directorate,Residential Care - Ext Provider,G310
http://opendatacommunities.org/id/london-borough-council/sutton,London Borough of Sutton,10/07/2020,40435885,"2,600.00",Gate Lodge Care Home,16164,Peoples Services Directorate,Residential Care - Ext Provider,G310
